Department,Entity,Transaction Date,Expense Type,Expense Area,PES Category,Supplier,Transaction No.,Amount
DEPARTMENT OF ENERGY AND CLIMATE CHANGE,THE COAL AUTHORITY,14/12/2015,FARES - PUBLIC TRANSPORT,BOARD,TRAVEL&EVENTS-TAXI,STAFF EXPENSES CONTROL,96808,53.00
DEPARTMENT OF ENERGY AND CLIMATE CHANGE,THE COAL AUTHORITY,08/12/2015,FARES - RAIL,BOARD,TRAVEL&EVENTS-RAIL,STAFF EXPENSES CONTROL,96655,70.50
DEPARTMENT OF ENERGY AND CLIMATE CHANGE,THE COAL AUTHORITY,14/12/2015,FARES - RAIL,BOARD,TRAVEL&EVENTS-RAIL,STAFF EXPENSES CONTROL,96808,358.55
DEPARTMENT OF ENERGY AND CLIMATE CHANGE,THE COAL AUTHORITY,30/11/2015,HOTEL ACCOMMODATION,BOARD,TRAVEL&EVENTS-HOTELS,REDFERN TRAVEL LTD,96662,403.44
DEPARTMENT OF ENERGY AND CLIMATE CHANGE,THE COAL AUTHORITY,01/12/2015,MEETINGS,BOARD,TRAVEL&EVENTS-VEHICLE HIRE,CASA HOTELS LIMITED,96273,1233.50
DEPARTMENT OF ENERGY AND CLIMATE CHANGE,THE COAL AUTHORITY,09/12/2015,SUBSISTENCE ALLOWANCES,BOARD,FACILITIES - FOOD,STAFF EXPENSES CONTROL,96691,3.31
DEPARTMENT OF ENERGY AND CLIMATE CHANGE,THE COAL AUTHORITY,26/11/2015,TRAINING AND EDUCATION,BOARD,PROF SER LRNG&DEV-STAFF TRNING,CIVIL SERVICE COLLEGE,96278,595.00
DEPARTMENT OF ENERGY AND CLIMATE CHANGE,THE COAL AUTHORITY,30/11/2015,CHILDCARE VOUCHERS,BOSS PROGRAMME,PERSONNEL RLTD-STAFF CHILDCARE,FIDELITI LIMITED,96318,124.00
DEPARTMENT OF ENERGY AND CLIMATE CHANGE,THE COAL AUTHORITY,30/11/2015,CONSULTANCY,BOSS PROGRAMME,ICT-SYSTEMS DELIVERY,SAPPHIRE SYSTEMS PLC,96603,119.34
DEPARTMENT OF ENERGY AND CLIMATE CHANGE,THE COAL AUTHORITY,01/12/2015,CONSULTANCY,BOSS PROGRAMME,ICT-SYSTEMS DELIVERY,SAPPHIRE SYSTEMS PLC,96364,6.12
DEPARTMENT OF ENERGY AND CLIMATE CHANGE,THE COAL AUTHORITY,08/12/2015,CONSULTANCY,BOSS PROGRAMME,ICT-SYSTEMS DELIVERY,SAPPHIRE SYSTEMS PLC,96737,83.52
DEPARTMENT OF ENERGY AND CLIMATE CHANGE,THE COAL AUTHORITY,30/11/2015,CURR YR ADD-INTNGBLE INFO TECH,BOSS PROGRAMME,ICT-SYSTEMS DELIVERY,SAPPHIRE SYSTEMS PLC,96503,185.00
DEPARTMENT OF ENERGY AND CLIMATE CHANGE,THE COAL AUTHORITY,01/12/2015,CURR YR ADD-INTNGBLE INFO TECH,BOSS PROGRAMME,ICT-SYSTEMS DELIVERY,SAPPHIRE SYSTEMS PLC,96363,1387.50
DEPARTMENT OF ENERGY AND CLIMATE CHANGE,THE COAL AUTHORITY,01/12/2015,CURR YR ADD-INTNGBLE INFO TECH,BOSS PROGRAMME,ICT-SYSTEMS DELIVERY,SAPPHIRE SYSTEMS PLC,96364,2775.00
DEPARTMENT OF ENERGY AND CLIMATE CHANGE,THE COAL AUTHORITY,15/12/2015,CURR YR ADD-INTNGBLE INFO TECH,BOSS PROGRAMME,ICT-SYSTEMS DELIVERY,SAPPHIRE SYSTEMS PLC,96885,92.50
DEPARTMENT OF ENERGY AND CLIMATE CHANGE,THE COAL AUTHORITY,30/11/2015,FARES - RAIL,BOSS PROGRAMME,TRAVEL&EVENTS-RAIL,REDFERN TRAVEL LTD,96660,164.34
DEPARTMENT OF ENERGY AND CLIMATE CHANGE,THE COAL AUTHORITY,08/12/2015,INCIDENTALS,BOSS PROGRAMME,VEHICLES-FLEET MANAGEMENT,STAFF EXPENSES CONTROL,96651,15.08
DEPARTMENT OF ENERGY AND CLIMATE CHANGE,THE COAL AUTHORITY,11/12/2015,IT-APPLICATIONS MANAGEMENT,BOSS PROGRAMME,ICT-SYSTEMS DELIVERY,MIDLAND SOFTWARE LTD,96882,1638.00
DEPARTMENT OF ENERGY AND CLIMATE CHANGE,THE COAL AUTHORITY,08/12/2015,MILEAGE PAYMENTS,BOSS PROGRAMME,FUELS/LUBRCNT/GAS-FUELS,STAFF EXPENSES CONTROL,96651,172.89
DEPARTMENT OF ENERGY AND CLIMATE CHANGE,THE COAL AUTHORITY,14/12/2015,MILEAGE PAYMENTS,BOSS PROGRAMME,FUELS/LUBRCNT/GAS-FUELS,STAFF EXPENSES CONTROL,96818,123.93
DEPARTMENT OF ENERGY AND CLIMATE CHANGE,THE COAL AUTHORITY,25/11/2015,PAYMENTS TO AGENCIES FOR TEMPS,BOSS PROGRAMME,PROF SER TMP STFF-SPCLST CNTRT,HAYS,96290,1296.00
DEPARTMENT OF ENERGY AND CLIMATE CHANGE,THE COAL AUTHORITY,03/12/2015,PAYMENTS TO AGENCIES FOR TEMPS,BOSS PROGRAMME,PROF SER TMP STFF-SPCLST CNTRT,HAYS,96640,1440.00
DEPARTMENT OF ENERGY AND CLIMATE CHANGE,THE COAL AUTHORITY,10/12/2015,PAYMENTS TO AGENCIES FOR TEMPS,BOSS PROGRAMME,PROF SER TMP STFF-SPCLST CNTRT,HAYS,96845,1440.00
DEPARTMENT OF ENERGY AND CLIMATE CHANGE,THE COAL AUTHORITY,08/12/2015,SUBSISTENCE ALLOWANCES,BOSS PROGRAMME,FACILITIES - FOOD,STAFF EXPENSES CONTROL,96651,6.70
DEPARTMENT OF ENERGY AND CLIMATE CHANGE,THE COAL AUTHORITY,14/12/2015,SUBSISTENCE ALLOWANCES,BOSS PROGRAMME,FACILITIES - FOOD,STAFF EXPENSES CONTROL,96818,5.54
DEPARTMENT OF ENERGY AND CLIMATE CHANGE,THE COAL AUTHORITY,05/11/2015,CAR HIRE,BUSINESS DEVELOPMENT,TRAVEL&EVENTS-VEHICLE HIRE,ENTERPRISE RENT A CAR,96314,41.98
DEPARTMENT OF ENERGY AND CLIMATE CHANGE,THE COAL AUTHORITY,11/11/2015,CAR HIRE,BUSINESS DEVELOPMENT,TRAVEL&EVENTS-VEHICLE HIRE,ENTERPRISE RENT A CAR,96304,63.50
DEPARTMENT OF ENERGY AND CLIMATE CHANGE,THE COAL AUTHORITY,30/11/2015,FARES - RAIL,BUSINESS DEVELOPMENT,TRAVEL&EVENTS-RAIL,REDFERN TRAVEL LTD,96660,125.45
DEPARTMENT OF ENERGY AND CLIMATE CHANGE,THE COAL AUTHORITY,03/11/2015,SUBSISTENCE ALLOWANCES,BUSINESS DEVELOPMENT,FACILITIES - FOOD,RBS GPC October 2015,97160,14.26
DEPARTMENT OF ENERGY AND CLIMATE CHANGE,THE COAL AUTHORITY,03/12/2015,TRAINING AND EDUCATION,BUSINESS DEVELOPMENT,PROF SER LRNG&DEV-STAFF TRNING,EMPHASIS TRAINING LTD,96528,495.00
DEPARTMENT OF ENERGY AND CLIMATE CHANGE,THE COAL AUTHORITY,21/11/2015,CAR HIRE,CHIEF EXECUTIVE,TRAVEL&EVENTS-VEHICLE HIRE,ENTERPRISE RENT A CAR,96305,88.12
DEPARTMENT OF ENERGY AND CLIMATE CHANGE,THE COAL AUTHORITY,01/12/2015,FARES - PUBLIC TRANSPORT,CHIEF EXECUTIVE,TRAVEL&EVENTS-TAXI,STAFF EXPENSES CONTROL,96292,32.00
DEPARTMENT OF ENERGY AND CLIMATE CHANGE,THE COAL AUTHORITY,30/11/2015,FARES - RAIL,CHIEF EXECUTIVE,TRAVEL&EVENTS-RAIL,REDFERN TRAVEL LTD,96660,1306.44
DEPARTMENT OF ENERGY AND CLIMATE CHANGE,THE COAL AUTHORITY,09/12/2015,FARES - RAIL,CHIEF EXECUTIVE,TRAVEL&EVENTS-RAIL,STAFF EXPENSES CONTROL,96691,116.80
DEPARTMENT OF ENERGY AND CLIMATE CHANGE,THE COAL AUTHORITY,01/12/2015,FUEL (VEHICLE),CHIEF EXECUTIVE,FUELS/LUBRCNT/GAS-FUELS,STAFF EXPENSES CONTROL,96292,25.00
DEPARTMENT OF ENERGY AND CLIMATE CHANGE,THE COAL AUTHORITY,03/11/2015,HOTEL ACCOMMODATION,CHIEF EXECUTIVE,TRAVEL&EVENTS-HOTELS,RBS GPC October 2015,97160,80.00
DEPARTMENT OF ENERGY AND CLIMATE CHANGE,THE COAL AUTHORITY,30/11/2015,HOTEL ACCOMMODATION,CHIEF EXECUTIVE,TRAVEL&EVENTS-HOTELS,REDFERN TRAVEL LTD,96662,103.12
DEPARTMENT OF ENERGY AND CLIMATE CHANGE,THE COAL AUTHORITY,03/11/2015,INCIDENTALS,CHIEF EXECUTIVE,VEHICLES-FLEET MANAGEMENT,RBS GPC October 2015,97160,52.58
DEPARTMENT OF ENERGY AND CLIMATE CHANGE,THE COAL AUTHORITY,09/12/2015,INCIDENTALS,CHIEF EXECUTIVE,VEHICLES-FLEET MANAGEMENT,STAFF EXPENSES CONTROL,96691,33.32
DEPARTMENT OF ENERGY AND CLIMATE CHANGE,THE COAL AUTHORITY,10/12/2015,INCIDENTALS,CHIEF EXECUTIVE,VEHICLES-FLEET MANAGEMENT,STAFF EXPENSES CONTROL,96719,32.92
DEPARTMENT OF ENERGY AND CLIMATE CHANGE,THE COAL AUTHORITY,03/11/2015,MEETINGS,CHIEF EXECUTIVE,TRAVEL&EVENTS-EVENT ORGNSTN,RBS GPC October 2015,97160,137.50
DEPARTMENT OF ENERGY AND CLIMATE CHANGE,THE COAL AUTHORITY,01/12/2015,MEETINGS,CHIEF EXECUTIVE,TRAVEL&EVENTS-EVENT ORGNSTN,HEXGREAVE ESTATES LTD,96366,200.00
DEPARTMENT OF ENERGY AND CLIMATE CHANGE,THE COAL AUTHORITY,01/12/2015,MILEAGE PAYMENTS,CHIEF EXECUTIVE,FUELS/LUBRCNT/GAS-FUELS,STAFF EXPENSES CONTROL,96292,343.80
DEPARTMENT OF ENERGY AND CLIMATE CHANGE,THE COAL AUTHORITY,08/12/2015,MILEAGE PAYMENTS,CHIEF EXECUTIVE,FUELS/LUBRCNT/GAS-FUELS,STAFF EXPENSES CONTROL,96656,22.23
DEPARTMENT OF ENERGY AND CLIMATE CHANGE,THE COAL AUTHORITY,09/12/2015,MILEAGE PAYMENTS,CHIEF EXECUTIVE,FUELS/LUBRCNT/GAS-FUELS,STAFF EXPENSES CONTROL,96691,16.52
DEPARTMENT OF ENERGY AND CLIMATE CHANGE,THE COAL AUTHORITY,10/12/2015,MILEAGE PAYMENTS,CHIEF EXECUTIVE,FUELS/LUBRCNT/GAS-FUELS,STAFF EXPENSES CONTROL,96719,64.40
DEPARTMENT OF ENERGY AND CLIMATE CHANGE,THE COAL AUTHORITY,03/10/2015,PROFESSIONAL SUBSCRIPTIONS,CHIEF EXECUTIVE,PERSONNEL RLTD-STAFF SUBSCRPTN,RBS GPC September 2015,97159,130.00
DEPARTMENT OF ENERGY AND CLIMATE CHANGE,THE COAL AUTHORITY,03/10/2015,STAFF EVENTS,CHIEF EXECUTIVE,MARKETING & MEDIA-PROMOTION,RBS GPC September 2015,97159,427.50
DEPARTMENT OF ENERGY AND CLIMATE CHANGE,THE COAL AUTHORITY,03/11/2015,SUBSISTENCE ALLOWANCES,CHIEF EXECUTIVE,FACILITIES - FOOD,RBS GPC October 2015,97160,72.85
DEPARTMENT OF ENERGY AND CLIMATE CHANGE,THE COAL AUTHORITY,01/12/2015,SUBSISTENCE ALLOWANCES,CHIEF EXECUTIVE,FACILITIES - FOOD,STAFF EXPENSES CONTROL,96292,9.19
DEPARTMENT OF ENERGY AND CLIMATE CHANGE,THE COAL AUTHORITY,09/12/2015,SUBSISTENCE ALLOWANCES,CHIEF EXECUTIVE,FACILITIES - FOOD,STAFF EXPENSES CONTROL,96691,87.55
DEPARTMENT OF ENERGY AND CLIMATE CHANGE,THE COAL AUTHORITY,10/12/2015,SUBSISTENCE ALLOWANCES,CHIEF EXECUTIVE,FACILITIES - FOOD,STAFF EXPENSES CONTROL,96719,11.49
DEPARTMENT OF ENERGY AND CLIMATE CHANGE,THE COAL AUTHORITY,30/11/2015,TRAINING AND EDUCATION,CHIEF EXECUTIVE,PROF SER LRNG&DEV-STAFF TRNING,PRICING SOLUTIONS UK,96844,4882.00
DEPARTMENT OF ENERGY AND CLIMATE CHANGE,THE COAL AUTHORITY,30/11/2015,APPRENTICE COSTS,CORPORATE MANAGEMENT,PROF SER TMP STFF-TEMP WRKERS,FUTURES ADVICE SKILLS & EMP,96352,1137.19
DEPARTMENT OF ENERGY AND CLIMATE CHANGE,THE COAL AUTHORITY,25/11/2015,CAR HIRE,CORPORATE MANAGEMENT,TRAVEL&EVENTS-VEHICLE HIRE,ENTERPRISE RENT A CAR,96308,80.72
DEPARTMENT OF ENERGY AND CLIMATE CHANGE,THE COAL AUTHORITY,30/11/2015,HOTEL ACCOMMODATION,CORPORATE MANAGEMENT,TRAVEL&EVENTS-HOTELS,REDFERN TRAVEL LTD,96662,72.27
DEPARTMENT OF ENERGY AND CLIMATE CHANGE,THE COAL AUTHORITY,18/11/2015,MEETINGS,CORPORATE MANAGEMENT,TRAVEL&EVENTS-EVENT ORGNSTN,JURYS INN NOTTINGHAM,96341,1775.00
DEPARTMENT OF ENERGY AND CLIMATE CHANGE,THE COAL AUTHORITY,30/11/2015,PUBLIC RELATIONS,CORPORATE MANAGEMENT,MARKETING & MEDIA-PROMOTION,GORKANA GROUP LTD,96605,260.00
DEPARTMENT OF ENERGY AND CLIMATE CHANGE,THE COAL AUTHORITY,30/11/2015,PUBLIC RELATIONS,CORPORATE MANAGEMENT,MARKETING & MEDIA-PROMOTION,GORKANA GROUP LTD,96606,860.44
DEPARTMENT OF ENERGY AND CLIMATE CHANGE,THE COAL AUTHORITY,30/11/2015,PUBLIC RELATIONS,CORPORATE MANAGEMENT,MARKETING & MEDIA-PROMOTION,SHARPE PRITCHARD,96823,425.00
DEPARTMENT OF ENERGY AND CLIMATE CHANGE,THE COAL AUTHORITY,11/11/2015,CENTRAL TRAINING BUDGET,CORPORATE PROJECT OFFICE,PROF SER LRNG&DEV-STAFF TRNING,PEOPLE DELIVER PROJECTS LTD,96367,1600.00
DEPARTMENT OF ENERGY AND CLIMATE CHANGE,THE COAL AUTHORITY,30/11/2015,FARES - RAIL,CORPORATE PROJECT OFFICE,TRAVEL&EVENTS-RAIL,REDFERN TRAVEL LTD,96660,627.32
DEPARTMENT OF ENERGY AND CLIMATE CHANGE,THE COAL AUTHORITY,08/12/2015,FARES - RAIL,CORPORATE PROJECT OFFICE,TRAVEL&EVENTS-RAIL,STAFF EXPENSES CONTROL,96654,6.90
DEPARTMENT OF ENERGY AND CLIMATE CHANGE,THE COAL AUTHORITY,30/11/2015,HOTEL ACCOMMODATION,CORPORATE PROJECT OFFICE,TRAVEL&EVENTS-HOTELS,REDFERN TRAVEL LTD,96662,250.39
DEPARTMENT OF ENERGY AND CLIMATE CHANGE,THE COAL AUTHORITY,03/11/2015,INCIDENTALS,CORPORATE PROJECT OFFICE,VEHICLES-FLEET MANAGEMENT,RBS GPC October 2015,97160,5.83
DEPARTMENT OF ENERGY AND CLIMATE CHANGE,THE COAL AUTHORITY,08/12/2015,INCIDENTALS,CORPORATE PROJECT OFFICE,VEHICLES-FLEET MANAGEMENT,STAFF EXPENSES CONTROL,96654,20.70
DEPARTMENT OF ENERGY AND CLIMATE CHANGE,THE COAL AUTHORITY,08/12/2015,MILEAGE PAYMENTS,CORPORATE PROJECT OFFICE,FUELS/LUBRCNT/GAS-FUELS,STAFF EXPENSES CONTROL,96654,73.00
DEPARTMENT OF ENERGY AND CLIMATE CHANGE,THE COAL AUTHORITY,03/11/2015,SUBSISTENCE ALLOWANCES,CORPORATE PROJECT OFFICE,FACILITIES - FOOD,RBS GPC October 2015,97160,14.14
DEPARTMENT OF ENERGY AND CLIMATE CHANGE,THE COAL AUTHORITY,03/10/2015,TRAINING AND EDUCATION,CORPORATE PROJECT OFFICE,PROF SER LRNG&DEV-STAFF TRNING,RBS GPC September 2015,97159,1107.00
DEPARTMENT OF ENERGY AND CLIMATE CHANGE,THE COAL AUTHORITY,20/11/2015,COURIER SERVICES,CUSTOMER SERVICES,OFFICE SOLUTIONS-POST&COURIER,TNT UK LIMITED,96439,235.51
DEPARTMENT OF ENERGY AND CLIMATE CHANGE,THE COAL AUTHORITY,27/11/2015,COURIER SERVICES,CUSTOMER SERVICES,OFFICE SOLUTIONS-POST&COURIER,TNT UK LIMITED,96440,328.79
DEPARTMENT OF ENERGY AND CLIMATE CHANGE,THE COAL AUTHORITY,04/12/2015,COURIER SERVICES,CUSTOMER SERVICES,OFFICE SOLUTIONS-POST&COURIER,TNT UK LIMITED,96732,49.65
DEPARTMENT OF ENERGY AND CLIMATE CHANGE,THE COAL AUTHORITY,30/11/2015,FARES - PUBLIC TRANSPORT,CUSTOMER SERVICES,TRAVEL&EVENTS-TAXI,ACE OF MANSFIELD LTD,96342,292.00
DEPARTMENT OF ENERGY AND CLIMATE CHANGE,THE COAL AUTHORITY,21/09/2015,CONTRACTORS AND CLAIM COSTS,DAW MILL,CONSTRUCTION-MAIN CONTRACTORS,PRIORITY BUILDERS LTD,96689,5000.00
DEPARTMENT OF ENERGY AND CLIMATE CHANGE,THE COAL AUTHORITY,31/10/2015,CONTRACTORS AND CLAIM COSTS,DAW MILL,CONSTRUCTION-CNSTRN SER PROVDR,STUDIO-G ARCHITECTURE LLP,96633,4608.00
DEPARTMENT OF ENERGY AND CLIMATE CHANGE,THE COAL AUTHORITY,31/10/2015,CONTRACTORS AND CLAIM COSTS,DAW MILL,CONSTRUCTION-CNSTRN SER PROVDR,STUDIO-G ARCHITECTURE LLP,96634,888.50
DEPARTMENT OF ENERGY AND CLIMATE CHANGE,THE COAL AUTHORITY,30/11/2015,CONTRACTORS AND CLAIM COSTS,DAW MILL,PROF SER-OPERATIONAL SERVICES,IDRS LIMITED,96302,1963.85
DEPARTMENT OF ENERGY AND CLIMATE CHANGE,THE COAL AUTHORITY,30/11/2015,CONTRACTORS AND CLAIM COSTS,DAW MILL,CONSTRUCTION-MAIN CONTRACTORS,HARDYMAN & CO LTD,96759,340.73
DEPARTMENT OF ENERGY AND CLIMATE CHANGE,THE COAL AUTHORITY,02/12/2015,CONTRACTORS AND CLAIM COSTS,DAW MILL,CONSTRUCTION-MAIN CONTRACTORS,D S WILLIAMS PAINTERS & DECS,96428,10000.00
DEPARTMENT OF ENERGY AND CLIMATE CHANGE,THE COAL AUTHORITY,02/12/2015,CONTRACTORS AND CLAIM COSTS,DAW MILL,CONSTRUCTION-MAIN CONTRACTORS,D S WILLIAMS PAINTERS & DECS,96670,2333.96
DEPARTMENT OF ENERGY AND CLIMATE CHANGE,THE COAL AUTHORITY,04/12/2015,CONTRACTORS AND CLAIM COSTS,DAW MILL,"CONSTRUCTION-BLD,REPR&MAINTNCE",MR C CURLEY,96526,1000.00
DEPARTMENT OF ENERGY AND CLIMATE CHANGE,THE COAL AUTHORITY,08/12/2015,CONTRACTORS AND CLAIM COSTS,DAW MILL,PSPES NOT APPLICABLE,CHRISTOPHER LINNETT LIMITED,96647,45.24
DEPARTMENT OF ENERGY AND CLIMATE CHANGE,THE COAL AUTHORITY,11/12/2015,CONTRACTORS AND CLAIM COSTS,DAW MILL,CONSTRUCTION-MAIN CONTRACTORS,PRIORITY BUILDERS LTD,96829,1523.00
DEPARTMENT OF ENERGY AND CLIMATE CHANGE,THE COAL AUTHORITY,11/12/2015,CONTRACTORS AND CLAIM COSTS,DAW MILL,CONSTRUCTION-MAIN CONTRACTORS,PRIORITY BUILDERS LTD,96830,425.00
DEPARTMENT OF ENERGY AND CLIMATE CHANGE,THE COAL AUTHORITY,11/12/2015,CONTRACTORS AND CLAIM COSTS,DAW MILL,CONSTRUCTION-MAIN CONTRACTORS,PRIORITY BUILDERS LTD,96831,7282.31
DEPARTMENT OF ENERGY AND CLIMATE CHANGE,THE COAL AUTHORITY,15/12/2015,CONTRACTORS AND CLAIM COSTS,DAW MILL,CONSTRUCTION-MAIN CONTRACTORS,D S WILLIAMS PAINTERS & DECS,96913,20000.00
DEPARTMENT OF ENERGY AND CLIMATE CHANGE,THE COAL AUTHORITY,16/12/2015,CONTRACTORS AND CLAIM COSTS,DAW MILL,PROF SER-OPERATIONAL SERVICES,IDRS LIMITED,96951,80.00
DEPARTMENT OF ENERGY AND CLIMATE CHANGE,THE COAL AUTHORITY,03/11/2015,INCIDENTALS,DEFRA - WHEAL JANE,VEHICLES-FLEET MANAGEMENT,RBS GPC October 2015,97160,11.67
DEPARTMENT OF ENERGY AND CLIMATE CHANGE,THE COAL AUTHORITY,03/11/2015,INCIDENTALS,DEFRA - WHEAL JANE,TRAVEL&EVENTS-OTHER,RBS GPC October 2015,97160,11.67
DEPARTMENT OF ENERGY AND CLIMATE CHANGE,THE COAL AUTHORITY,03/11/2015,INCIDENTALS,DEFRA - WHEAL JANE,VEHICLES-FLEET MANAGEMENT,RBS GPC October 2015,97160,37.80
DEPARTMENT OF ENERGY AND CLIMATE CHANGE,THE COAL AUTHORITY,09/12/2015,M/W CHEMICAL OPERATIONAL,DEFRA - WHEAL JANE,ENGRNG GOODS-NON-MDICL CHMCLS,VEOLIA WATER IND OUTSOURCING L,96991,5168.11
DEPARTMENT OF ENERGY AND CLIMATE CHANGE,THE COAL AUTHORITY,09/12/2015,M/W CONTRCTR OPRNTL MTHLY MAIN,DEFRA - WHEAL JANE,CONSTRUCTION-CNSTRN SER PROVDR,VEOLIA WATER IND OUTSOURCING L,96991,32834.07
DEPARTMENT OF ENERGY AND CLIMATE CHANGE,THE COAL AUTHORITY,09/12/2015,M/W POWER COSTS,DEFRA - WHEAL JANE,ENERGY&UTILITIES-ELECTRICITY,VEOLIA WATER IND OUTSOURCING L,96992,-3520.41
DEPARTMENT OF ENERGY AND CLIMATE CHANGE,THE COAL AUTHORITY,09/12/2015,M/W POWER COSTS,DEFRA - WHEAL JANE,ENERGY&UTILITIES-ELECTRICITY,VEOLIA WATER IND OUTSOURCING L,96991,172.46
DEPARTMENT OF ENERGY AND CLIMATE CHANGE,THE COAL AUTHORITY,09/12/2015,M/W POWER COSTS,DEFRA - WHEAL JANE,ENERGY&UTILITIES-ELECTRICITY,VEOLIA WATER IND OUTSOURCING L,96991,231.60
DEPARTMENT OF ENERGY AND CLIMATE CHANGE,THE COAL AUTHORITY,09/12/2015,M/W POWER COSTS,DEFRA - WHEAL JANE,ENERGY&UTILITIES-ELECTRICITY,VEOLIA WATER IND OUTSOURCING L,96991,20.15
DEPARTMENT OF ENERGY AND CLIMATE CHANGE,THE COAL AUTHORITY,15/12/2015,M/W POWER COSTS,DEFRA - WHEAL JANE,ENERGY&UTILITIES-ELECTRICITY,EDF ENERGY,96941,26584.24
DEPARTMENT OF ENERGY AND CLIMATE CHANGE,THE COAL AUTHORITY,09/12/2015,M/W SLUDGE DISPOSAL,DEFRA - WHEAL JANE,CONSTRUCTION-CNSTRN SER PROVDR,VEOLIA WATER IND OUTSOURCING L,96991,27083.34
DEPARTMENT OF ENERGY AND CLIMATE CHANGE,THE COAL AUTHORITY,09/12/2015,M/W WATER CHARGES,DEFRA - WHEAL JANE,ENERGY&UTILITIES-WATER,VEOLIA WATER IND OUTSOURCING L,96992,-156.65
DEPARTMENT OF ENERGY AND CLIMATE CHANGE,THE COAL AUTHORITY,03/11/2015,SUBSISTENCE ALLOWANCES,DEFRA - WHEAL JANE,FACILITIES - FOOD,RBS GPC October 2015,97160,226.90
DEPARTMENT OF ENERGY AND CLIMATE CHANGE,THE COAL AUTHORITY,30/11/2015,CONSULTANTS-INVESTIGATIONS,DEFRA PROGRAMME,PROF SER TECH-ENGINEERING SER,MOUCHEL LTD,96321,167.40
DEPARTMENT OF ENERGY AND CLIMATE CHANGE,THE COAL AUTHORITY,04/12/2015,CURR YR ADDNS NON COAL MINES,DEFRA PROGRAMME,CONSTRUCTION-MAIN CONTRACTORS,J N BENTLEY LIMITED,96800,4074.14
DEPARTMENT OF ENERGY AND CLIMATE CHANGE,THE COAL AUTHORITY,04/12/2015,CURR YR ADDNS NON COAL MINES,DEFRA PROGRAMME,CONSTRUCTION-MAIN CONTRACTORS,J N BENTLEY LIMITED,96801,272.27
DEPARTMENT OF ENERGY AND CLIMATE CHANGE,THE COAL AUTHORITY,11/12/2015,CURR YR ADDNS NON COAL MINES,DEFRA PROGRAMME,CONSTRUCTION-MAIN CONTRACTORS,SOIL ENGINEERING GEOSERVICES L,96794,7565.60
DEPARTMENT OF ENERGY AND CLIMATE CHANGE,THE COAL AUTHORITY,03/11/2015,FUEL (VEHICLE),DEFRA PROGRAMME,FUELS/LUBRCNT/GAS-FUELS,RBS GPC October 2015,97160,33.47
DEPARTMENT OF ENERGY AND CLIMATE CHANGE,THE COAL AUTHORITY,03/11/2015,INCIDENTALS,DEFRA PROGRAMME,VEHICLES-FLEET MANAGEMENT,RBS GPC October 2015,97160,20.00
DEPARTMENT OF ENERGY AND CLIMATE CHANGE,THE COAL AUTHORITY,08/11/2015,INCIDENTALS,DEFRA PROGRAMME,VEHICLES-FLEET MANAGEMENT,COMPANY BARCLAYCARD,96993,12.50
DEPARTMENT OF ENERGY AND CLIMATE CHANGE,THE COAL AUTHORITY,30/11/2015,M/W LAND AGENTS (AQUISITIONS),DEFRA PROGRAMME,PROF SER TECH-ENGINEERING SER,MARK N CAREY LIMITED,96769,162.50
DEPARTMENT OF ENERGY AND CLIMATE CHANGE,THE COAL AUTHORITY,30/11/2015,M/W LAND AGENTS (AQUISITIONS),DEFRA PROGRAMME,PROF SER TECH-ENGINEERING SER,MARK N CAREY LIMITED,96764,520.00
DEPARTMENT OF ENERGY AND CLIMATE CHANGE,THE COAL AUTHORITY,30/11/2015,M/W LAND AGENTS (AQUISITIONS),DEFRA PROGRAMME,PROF SER TECH-ENGINEERING SER,MARK N CAREY LIMITED,96765,624.00
DEPARTMENT OF ENERGY AND CLIMATE CHANGE,THE COAL AUTHORITY,30/11/2015,M/W LAND AGENTS (AQUISITIONS),DEFRA PROGRAMME,PROF SER TECH-ENGINEERING SER,MARK N CAREY LIMITED,96766,1001.00
DEPARTMENT OF ENERGY AND CLIMATE CHANGE,THE COAL AUTHORITY,03/12/2015,M/W LAND AGENTS (AQUISITIONS),DEFRA PROGRAMME,PROF SER-OPERATIONAL SERVICES,PFK,96451,810.00
DEPARTMENT OF ENERGY AND CLIMATE CHANGE,THE COAL AUTHORITY,03/12/2015,M/W LAND AGENTS (AQUISITIONS),DEFRA PROGRAMME,PROF SER-OPERATIONAL SERVICES,PFK,96452,162.00
DEPARTMENT OF ENERGY AND CLIMATE CHANGE,THE COAL AUTHORITY,16/12/2015,M/W LAND AGENTS (AQUISITIONS),DEFRA PROGRAMME,PROF SER TECH-ENGINEERING SER,ATKINS LIMITED,96948,52.50
DEPARTMENT OF ENERGY AND CLIMATE CHANGE,THE COAL AUTHORITY,16/12/2015,M/W LAND AGENTS (AQUISITIONS),DEFRA PROGRAMME,PROF SER TECH-ENGINEERING SER,ATKINS LIMITED,96949,105.90
DEPARTMENT OF ENERGY AND CLIMATE CHANGE,THE COAL AUTHORITY,16/12/2015,M/W LAND AGENTS (AQUISITIONS),DEFRA PROGRAMME,PROF SER TECH-ENGINEERING SER,ATKINS LIMITED,96950,427.50
DEPARTMENT OF ENERGY AND CLIMATE CHANGE,THE COAL AUTHORITY,01/12/2015,M/W POWER COSTS,DEFRA PROGRAMME,ENERGY&UTILITIES-ELECTRICITY,EDF ENERGY CUSTOMERS PLC,96615,3024.71
DEPARTMENT OF ENERGY AND CLIMATE CHANGE,THE COAL AUTHORITY,02/12/2015,M/W POWER COSTS,DEFRA PROGRAMME,ENERGY&UTILITIES-ELECTRICITY,EDF ENERGY CUSTOMERS PLC,96616,-3024.71
DEPARTMENT OF ENERGY AND CLIMATE CHANGE,THE COAL AUTHORITY,02/12/2015,M/W POWER COSTS,DEFRA PROGRAMME,ENERGY&UTILITIES-ELECTRICITY,EDF ENERGY CUSTOMERS PLC,96617,2206.33
DEPARTMENT OF ENERGY AND CLIMATE CHANGE,THE COAL AUTHORITY,05/10/2015,M/W SCOPING/FEASIBILITY/CONCEP,DEFRA PROGRAMME,PROF SER TECH-ENGINEERING SER,AMEC ENV & INFRASTRUCTURE UK L,96289,7641.66
DEPARTMENT OF ENERGY AND CLIMATE CHANGE,THE COAL AUTHORITY,05/10/2015,M/W SCOPING/FEASIBILITY/CONCEP,DEFRA PROGRAMME,PROF SER TECH-ENGINEERING SER,AMEC ENV & INFRASTRUCTURE UK L,96677,3391.59
DEPARTMENT OF ENERGY AND CLIMATE CHANGE,THE COAL AUTHORITY,05/10/2015,M/W SCOPING/FEASIBILITY/CONCEP,DEFRA PROGRAMME,PROF SER TECH-ENGINEERING SER,AMEC ENV & INFRASTRUCTURE UK L,96680,2235.60
DEPARTMENT OF ENERGY AND CLIMATE CHANGE,THE COAL AUTHORITY,11/11/2015,M/W SCOPING/FEASIBILITY/CONCEP,DEFRA PROGRAMME,PROF SER TECH-ENGINEERING SER,AMEC ENV & INFRASTRUCTURE UK L,96678,2029.49
DEPARTMENT OF ENERGY AND CLIMATE CHANGE,THE COAL AUTHORITY,11/11/2015,M/W SCOPING/FEASIBILITY/CONCEP,DEFRA PROGRAMME,PROF SER TECH-ENGINEERING SER,AMEC ENV & INFRASTRUCTURE UK L,96679,208.32
DEPARTMENT OF ENERGY AND CLIMATE CHANGE,THE COAL AUTHORITY,30/11/2015,M/W SCOPING/FEASIBILITY/CONCEP,DEFRA PROGRAMME,PROF SER TECH-ENGINEERING SER,MOUCHEL LTD,96320,1258.00
DEPARTMENT OF ENERGY AND CLIMATE CHANGE,THE COAL AUTHORITY,30/11/2015,M/W SCOPING/FEASIBILITY/CONCEP,DEFRA PROGRAMME,PROF SER TECH-ENGINEERING SER,MOUCHEL LTD,96322,1423.17
DEPARTMENT OF ENERGY AND CLIMATE CHANGE,THE COAL AUTHORITY,30/11/2015,M/W SCOPING/FEASIBILITY/CONCEP,DEFRA PROGRAMME,PROF SER TECH-ENGINEERING SER,MOUCHEL LTD,96323,748.58
DEPARTMENT OF ENERGY AND CLIMATE CHANGE,THE COAL AUTHORITY,30/11/2015,M/W SCOPING/FEASIBILITY/CONCEP,DEFRA PROGRAMME,PROF SER TECH-ENGINEERING SER,MOUCHEL LTD,96325,1924.07
DEPARTMENT OF ENERGY AND CLIMATE CHANGE,THE COAL AUTHORITY,03/12/2015,M/W SCOPING/FEASIBILITY/CONCEP,DEFRA PROGRAMME,PROF SER TECH-ENGINEERING SER,AMEC ENV & INFRASTRUCTURE UK L,96667,1327.00
DEPARTMENT OF ENERGY AND CLIMATE CHANGE,THE COAL AUTHORITY,11/12/2015,M/W SCOPING/FEASIBILITY/CONCEP,DEFRA PROGRAMME,PROF SER TECH-ENGINEERING SER,RAMBOLL UK LTD,96879,15733.00
DEPARTMENT OF ENERGY AND CLIMATE CHANGE,THE COAL AUTHORITY,16/12/2015,M/W SCOPING/FEASIBILITY/CONCEP,DEFRA PROGRAMME,PROF SER TECH-ENGINEERING SER,ATKINS LIMITED,96952,7306.70
DEPARTMENT OF ENERGY AND CLIMATE CHANGE,THE COAL AUTHORITY,17/12/2015,M/W SCOPING/FEASIBILITY/CONCEP,DEFRA PROGRAMME,PROF SER TECH-ENGINEERING SER,CDM SMITH,96963,13554.00
DEPARTMENT OF ENERGY AND CLIMATE CHANGE,THE COAL AUTHORITY,11/12/2015,M/W SITE INVESTIGATIONS,DEFRA PROGRAMME,CONSTRUCTION-MAIN CONTRACTORS,SOIL ENGINEERING GEOSERVICES L,96795,14279.48
DEPARTMENT OF ENERGY AND CLIMATE CHANGE,THE COAL AUTHORITY,03/11/2015,MEETINGS,DEFRA PROGRAMME,FACILITIES - FOOD,RBS GPC October 2015,97160,30.00
DEPARTMENT OF ENERGY AND CLIMATE CHANGE,THE COAL AUTHORITY,03/11/2015,PUBLICATIONS,DEFRA PROGRAMME,OPRTNL GOODS&SERV-DEVLPNG MTRL,RBS GPC October 2015,97160,14.98
DEPARTMENT OF ENERGY AND CLIMATE CHANGE,THE COAL AUTHORITY,13/03/2015,R&D-EXTERNAL COSTS,DEFRA PROGRAMME,PROF SER TECH-ENGINEERING SER,RED MEDIA TECHNOLOGIES,96296,740.48
DEPARTMENT OF ENERGY AND CLIMATE CHANGE,THE COAL AUTHORITY,30/11/2015,R&D-EXTERNAL COSTS,DEFRA PROGRAMME,PROF SER TECH-ENGINEERING SER,REMEDIOS LIMITED,96319,30533.06
DEPARTMENT OF ENERGY AND CLIMATE CHANGE,THE COAL AUTHORITY,30/11/2015,R&D-EXTERNAL COSTS,DEFRA PROGRAMME,PROF SER TECH-FORENSIC/LAB SER,ENVIRONMENTAL SCIENTIFICS GRP,96441,307.68
DEPARTMENT OF ENERGY AND CLIMATE CHANGE,THE COAL AUTHORITY,09/12/2015,R&D-EXTERNAL COSTS,DEFRA PROGRAMME,PROF SER TECH-ENGINEERING SER,NEWCASTLE UNIVERSITY,96773,32926.00
DEPARTMENT OF ENERGY AND CLIMATE CHANGE,THE COAL AUTHORITY,11/12/2015,R&D-EXTERNAL COSTS,DEFRA PROGRAMME,PROF SER TECH-FORENSIC/LAB SER,ENVIRONMENTAL SCIENTIFICS GRP,96836,235.76
DEPARTMENT OF ENERGY AND CLIMATE CHANGE,THE COAL AUTHORITY,03/11/2015,SUBSISTENCE ALLOWANCES,DEFRA PROGRAMME,FACILITIES - FOOD,RBS GPC October 2015,97160,30.50
DEPARTMENT OF ENERGY AND CLIMATE CHANGE,THE COAL AUTHORITY,03/11/2015,SUBSISTENCE ALLOWANCES,DEFRA PROGRAMME,FACILITIES - FOOD,RBS GPC October 2015,97160,19.33
DEPARTMENT OF ENERGY AND CLIMATE CHANGE,THE COAL AUTHORITY,03/11/2015,SUBSISTENCE ALLOWANCES,DEFRA PROGRAMME,FACILITIES - FOOD,RBS GPC October 2015,97160,5.32
DEPARTMENT OF ENERGY AND CLIMATE CHANGE,THE COAL AUTHORITY,03/11/2015,SUBSISTENCE ALLOWANCES,DEFRA PROGRAMME,FACILITIES - FOOD,RBS GPC October 2015,97160,23.44
DEPARTMENT OF ENERGY AND CLIMATE CHANGE,THE COAL AUTHORITY,08/11/2015,SUBSISTENCE ALLOWANCES,DEFRA PROGRAMME,FACILITIES - FOOD,COMPANY BARCLAYCARD,96993,8.57
DEPARTMENT OF ENERGY AND CLIMATE CHANGE,THE COAL AUTHORITY,10/12/2015,SUBSISTENCE ALLOWANCES,DEFRA PROGRAMME,FACILITIES - FOOD,STAFF EXPENSES CONTROL,96721,7.25
DEPARTMENT OF ENERGY AND CLIMATE CHANGE,THE COAL AUTHORITY,10/12/2015,INCIDENTALS,ENVIRONMENT - ZERO COST PROG,VEHICLES-FLEET MANAGEMENT,STAFF EXPENSES CONTROL,96722,10.42
DEPARTMENT OF ENERGY AND CLIMATE CHANGE,THE COAL AUTHORITY,14/12/2015,INCIDENTALS,ENVIRONMENT - ZERO COST PROG,VEHICLES-FLEET MANAGEMENT,STAFF EXPENSES CONTROL,96817,2.00
DEPARTMENT OF ENERGY AND CLIMATE CHANGE,THE COAL AUTHORITY,27/11/2015,INNOVATION COSTS,ENVIRONMENT - ZERO COST PROG,PROF SER CNSLTNCY-STRATEGY,CARTER JONAS,96607,4500.00
DEPARTMENT OF ENERGY AND CLIMATE CHANGE,THE COAL AUTHORITY,08/12/2015,INNOVATION COSTS,ENVIRONMENT - ZERO COST PROG,FACILITIES-BUILDING MANAGEMENT,SWS ENVIRONMENTAL SERVICES,96775,450.00
DEPARTMENT OF ENERGY AND CLIMATE CHANGE,THE COAL AUTHORITY,08/12/2015,INNOVATION COSTS,ENVIRONMENT - ZERO COST PROG,CONSTRUCTION-CNSTRN SER PROVDR,SWS ENVIRONMENTAL SERVICES,96776,380.00
DEPARTMENT OF ENERGY AND CLIMATE CHANGE,THE COAL AUTHORITY,10/12/2015,MILEAGE PAYMENTS,ENVIRONMENT - ZERO COST PROG,FUELS/LUBRCNT/GAS-FUELS,STAFF EXPENSES CONTROL,96722,56.28
DEPARTMENT OF ENERGY AND CLIMATE CHANGE,THE COAL AUTHORITY,03/11/2015,SUBSISTENCE ALLOWANCES,ENVIRONMENT - ZERO COST PROG,FACILITIES - FOOD,RBS GPC October 2015,97160,8.45
DEPARTMENT OF ENERGY AND CLIMATE CHANGE,THE COAL AUTHORITY,10/12/2015,SUBSISTENCE ALLOWANCES,ENVIRONMENT - ZERO COST PROG,FACILITIES - FOOD,STAFF EXPENSES CONTROL,96722,4.42
DEPARTMENT OF ENERGY AND CLIMATE CHANGE,THE COAL AUTHORITY,03/07/2015,CONTRACT HIRE VEHICLES,FACILITIES MANAGEMENT,VEHICLES-VEHICLE MAINTENANCE,PENTAGON,96589,21.15
DEPARTMENT OF ENERGY AND CLIMATE CHANGE,THE COAL AUTHORITY,28/09/2015,CONTRACT HIRE VEHICLES,FACILITIES MANAGEMENT,VEHICLES-VEHICLE MAINTENANCE,PENTAGON,96576,-21.15
DEPARTMENT OF ENERGY AND CLIMATE CHANGE,THE COAL AUTHORITY,27/11/2015,CONTRACT HIRE VEHICLES,FACILITIES MANAGEMENT,VEHICLES-VEHICLE MAINTENANCE,PENTAGON,96345,21.15
DEPARTMENT OF ENERGY AND CLIMATE CHANGE,THE COAL AUTHORITY,27/11/2015,CONTRACT HIRE VEHICLES,FACILITIES MANAGEMENT,VEHICLES-VEHICLE MAINTENANCE,PENTAGON,96346,21.15
DEPARTMENT OF ENERGY AND CLIMATE CHANGE,THE COAL AUTHORITY,30/11/2015,CONTRACT HIRE VEHICLES,FACILITIES MANAGEMENT,VEHICLES-VEHICLE MAINTENANCE,PENTAGON,96344,21.15
DEPARTMENT OF ENERGY AND CLIMATE CHANGE,THE COAL AUTHORITY,30/11/2015,CONTRACT HIRE VEHICLES,FACILITIES MANAGEMENT,VEHICLES-VEHICLE MAINTENANCE,PENTAGON,96347,21.15
DEPARTMENT OF ENERGY AND CLIMATE CHANGE,THE COAL AUTHORITY,30/11/2015,CONTRACT HIRE VEHICLES,FACILITIES MANAGEMENT,VEHICLES-VEHICLE MAINTENANCE,AUTO SMART VALETING LTD,96884,378.00
DEPARTMENT OF ENERGY AND CLIMATE CHANGE,THE COAL AUTHORITY,01/12/2015,CONTRACT HIRE VEHICLES,FACILITIES MANAGEMENT,VEHICLES-FLEET MANAGEMENT,ALPHABET (UK) FLEET MAN LTD,96687,1923.23
DEPARTMENT OF ENERGY AND CLIMATE CHANGE,THE COAL AUTHORITY,01/12/2015,COURIER SERVICES,FACILITIES MANAGEMENT,FACILITIES - SECURITY,SECURITY PLUS LIMITED,96279,51.75
DEPARTMENT OF ENERGY AND CLIMATE CHANGE,THE COAL AUTHORITY,15/12/2015,ELECTRICITY,FACILITIES MANAGEMENT,ENERGY&UTILITIES-ELECTRICITY,EDF ENERGY,96941,12011.74
DEPARTMENT OF ENERGY AND CLIMATE CHANGE,THE COAL AUTHORITY,30/11/2015,FARES - RAIL,FACILITIES MANAGEMENT,TRAVEL&EVENTS-RAIL,REDFERN TRAVEL LTD,96660,61.82
DEPARTMENT OF ENERGY AND CLIMATE CHANGE,THE COAL AUTHORITY,02/12/2015,FUEL (VEHICLE),FACILITIES MANAGEMENT,FUELS/LUBRCNT/GAS-FUELS,ALLSTAR BUSINESS SOLUTIONS LTD,96478,23.57
DEPARTMENT OF ENERGY AND CLIMATE CHANGE,THE COAL AUTHORITY,02/12/2015,FUEL (VEHICLE),FACILITIES MANAGEMENT,FUELS/LUBRCNT/GAS-FUELS,ALLSTAR BUSINESS SOLUTIONS LTD,96479,30.82
DEPARTMENT OF ENERGY AND CLIMATE CHANGE,THE COAL AUTHORITY,02/12/2015,FUEL (VEHICLE),FACILITIES MANAGEMENT,FUELS/LUBRCNT/GAS-FUELS,ALLSTAR BUSINESS SOLUTIONS LTD,96480,41.64
DEPARTMENT OF ENERGY AND CLIMATE CHANGE,THE COAL AUTHORITY,02/12/2015,FUEL (VEHICLE),FACILITIES MANAGEMENT,FUELS/LUBRCNT/GAS-FUELS,ALLSTAR BUSINESS SOLUTIONS LTD,96482,22.58
DEPARTMENT OF ENERGY AND CLIMATE CHANGE,THE COAL AUTHORITY,02/12/2015,FUEL (VEHICLE),FACILITIES MANAGEMENT,FUELS/LUBRCNT/GAS-FUELS,ALLSTAR BUSINESS SOLUTIONS LTD,96483,68.30
DEPARTMENT OF ENERGY AND CLIMATE CHANGE,THE COAL AUTHORITY,02/12/2015,FUEL (VEHICLE),FACILITIES MANAGEMENT,FUELS/LUBRCNT/GAS-FUELS,ALLSTAR BUSINESS SOLUTIONS LTD,96484,52.64
DEPARTMENT OF ENERGY AND CLIMATE CHANGE,THE COAL AUTHORITY,02/12/2015,FUEL (VEHICLE),FACILITIES MANAGEMENT,FUELS/LUBRCNT/GAS-FUELS,ALLSTAR BUSINESS SOLUTIONS LTD,96485,16.73
DEPARTMENT OF ENERGY AND CLIMATE CHANGE,THE COAL AUTHORITY,02/12/2015,FUEL (VEHICLE),FACILITIES MANAGEMENT,FUELS/LUBRCNT/GAS-FUELS,ALLSTAR BUSINESS SOLUTIONS LTD,96488,14.40
DEPARTMENT OF ENERGY AND CLIMATE CHANGE,THE COAL AUTHORITY,09/12/2015,FUEL (VEHICLE),FACILITIES MANAGEMENT,FUELS/LUBRCNT/GAS-FUELS,ALLSTAR BUSINESS SOLUTIONS LTD,96740,66.90
DEPARTMENT OF ENERGY AND CLIMATE CHANGE,THE COAL AUTHORITY,09/12/2015,FUEL (VEHICLE),FACILITIES MANAGEMENT,FUELS/LUBRCNT/GAS-FUELS,ALLSTAR BUSINESS SOLUTIONS LTD,96741,61.12
DEPARTMENT OF ENERGY AND CLIMATE CHANGE,THE COAL AUTHORITY,09/12/2015,FUEL (VEHICLE),FACILITIES MANAGEMENT,FUELS/LUBRCNT/GAS-FUELS,ALLSTAR BUSINESS SOLUTIONS LTD,96742,74.49
DEPARTMENT OF ENERGY AND CLIMATE CHANGE,THE COAL AUTHORITY,09/12/2015,FUEL (VEHICLE),FACILITIES MANAGEMENT,FUELS/LUBRCNT/GAS-FUELS,ALLSTAR BUSINESS SOLUTIONS LTD,96743,41.59
DEPARTMENT OF ENERGY AND CLIMATE CHANGE,THE COAL AUTHORITY,09/12/2015,FUEL (VEHICLE),FACILITIES MANAGEMENT,FUELS/LUBRCNT/GAS-FUELS,ALLSTAR BUSINESS SOLUTIONS LTD,96744,92.06
DEPARTMENT OF ENERGY AND CLIMATE CHANGE,THE COAL AUTHORITY,09/12/2015,FUEL (VEHICLE),FACILITIES MANAGEMENT,FUELS/LUBRCNT/GAS-FUELS,ALLSTAR BUSINESS SOLUTIONS LTD,96745,40.23
DEPARTMENT OF ENERGY AND CLIMATE CHANGE,THE COAL AUTHORITY,09/12/2015,FUEL (VEHICLE),FACILITIES MANAGEMENT,FUELS/LUBRCNT/GAS-FUELS,ALLSTAR BUSINESS SOLUTIONS LTD,96746,33.55
DEPARTMENT OF ENERGY AND CLIMATE CHANGE,THE COAL AUTHORITY,09/12/2015,FUEL (VEHICLE),FACILITIES MANAGEMENT,FUELS/LUBRCNT/GAS-FUELS,ALLSTAR BUSINESS SOLUTIONS LTD,96749,71.92
DEPARTMENT OF ENERGY AND CLIMATE CHANGE,THE COAL AUTHORITY,16/12/2015,FUEL (VEHICLE),FACILITIES MANAGEMENT,FUELS/LUBRCNT/GAS-FUELS,ALLSTAR BUSINESS SOLUTIONS LTD,96969,61.07
DEPARTMENT OF ENERGY AND CLIMATE CHANGE,THE COAL AUTHORITY,16/12/2015,FUEL (VEHICLE),FACILITIES MANAGEMENT,FUELS/LUBRCNT/GAS-FUELS,ALLSTAR BUSINESS SOLUTIONS LTD,96967,69.08
DEPARTMENT OF ENERGY AND CLIMATE CHANGE,THE COAL AUTHORITY,16/12/2015,FUEL (VEHICLE),FACILITIES MANAGEMENT,FUELS/LUBRCNT/GAS-FUELS,ALLSTAR BUSINESS SOLUTIONS LTD,96968,43.98
DEPARTMENT OF ENERGY AND CLIMATE CHANGE,THE COAL AUTHORITY,16/12/2015,FUEL (VEHICLE),FACILITIES MANAGEMENT,FUELS/LUBRCNT/GAS-FUELS,ALLSTAR BUSINESS SOLUTIONS LTD,96970,104.65
DEPARTMENT OF ENERGY AND CLIMATE CHANGE,THE COAL AUTHORITY,16/12/2015,FUEL (VEHICLE),FACILITIES MANAGEMENT,FUELS/LUBRCNT/GAS-FUELS,ALLSTAR BUSINESS SOLUTIONS LTD,96972,35.48
DEPARTMENT OF ENERGY AND CLIMATE CHANGE,THE COAL AUTHORITY,16/12/2015,FUEL (VEHICLE),FACILITIES MANAGEMENT,FUELS/LUBRCNT/GAS-FUELS,ALLSTAR BUSINESS SOLUTIONS LTD,96973,36.71
DEPARTMENT OF ENERGY AND CLIMATE CHANGE,THE COAL AUTHORITY,16/12/2015,FUEL (VEHICLE),FACILITIES MANAGEMENT,FUELS/LUBRCNT/GAS-FUELS,ALLSTAR BUSINESS SOLUTIONS LTD,96974,58.87
DEPARTMENT OF ENERGY AND CLIMATE CHANGE,THE COAL AUTHORITY,16/12/2015,FUEL (VEHICLE),FACILITIES MANAGEMENT,FUELS/LUBRCNT/GAS-FUELS,ALLSTAR BUSINESS SOLUTIONS LTD,96975,59.06
DEPARTMENT OF ENERGY AND CLIMATE CHANGE,THE COAL AUTHORITY,19/11/2015,PLANT MAINTENANCE,FACILITIES MANAGEMENT,FACILITIES-BUILDING MANAGEMENT,NORLAND MANAGED SERVICES LTD,96601,582.77
DEPARTMENT OF ENERGY AND CLIMATE CHANGE,THE COAL AUTHORITY,03/11/2015,POOL VEHICLE USAGE,FACILITIES MANAGEMENT,VEHICLES-VEHICLE MAINTENANCE,RBS GPC October 2015,97160,7.00
DEPARTMENT OF ENERGY AND CLIMATE CHANGE,THE COAL AUTHORITY,03/11/2015,SITE MAINTENANCE,FACILITIES MANAGEMENT,FACILITIES - SECURITY,RBS GPC October 2015,97160,34.68
DEPARTMENT OF ENERGY AND CLIMATE CHANGE,THE COAL AUTHORITY,19/11/2015,SITE MAINTENANCE,FACILITIES MANAGEMENT,FACILITIES-BUILDING MANAGEMENT,NORLAND MANAGED SERVICES LTD,96599,1544.87
DEPARTMENT OF ENERGY AND CLIMATE CHANGE,THE COAL AUTHORITY,29/10/2015,SITE SERVICES,FACILITIES MANAGEMENT,FACILITIES-BUILDING MANAGEMENT,NORLAND MANAGED SERVICES LTD,96457,187.31
DEPARTMENT OF ENERGY AND CLIMATE CHANGE,THE COAL AUTHORITY,03/11/2015,SITE SERVICES,FACILITIES MANAGEMENT,FACILITIES-BUILDING MANAGEMENT,RBS GPC October 2015,97160,39.16
DEPARTMENT OF ENERGY AND CLIMATE CHANGE,THE COAL AUTHORITY,25/11/2015,SITE SERVICES,FACILITIES MANAGEMENT,WASTE MANAGEMENT-WSTE MNGT SER,BANNER BUSINESS SOLUTIONS,96566,21.60
DEPARTMENT OF ENERGY AND CLIMATE CHANGE,THE COAL AUTHORITY,25/11/2015,SITE SERVICES,FACILITIES MANAGEMENT,WASTE MANAGEMENT-WSTE MNGT SER,BANNER BUSINESS SOLUTIONS,96568,36.90
DEPARTMENT OF ENERGY AND CLIMATE CHANGE,THE COAL AUTHORITY,02/12/2015,SITE SERVICES,FACILITIES MANAGEMENT,WASTE MANAGEMENT-WSTE MNGT SER,BANNER BUSINESS SOLUTIONS,96571,24.30
DEPARTMENT OF ENERGY AND CLIMATE CHANGE,THE COAL AUTHORITY,25/11/2015,STATIONERY,FACILITIES MANAGEMENT,OFFICE SOLUTIONS-OFFCE SPPLIES,BANNER BUSINESS SOLUTIONS,96567,25.20
DEPARTMENT OF ENERGY AND CLIMATE CHANGE,THE COAL AUTHORITY,25/11/2015,STATIONERY,FACILITIES MANAGEMENT,OFFICE SOLUTIONS-OFFCE SPPLIES,BANNER BUSINESS SOLUTIONS,96574,275.36
DEPARTMENT OF ENERGY AND CLIMATE CHANGE,THE COAL AUTHORITY,02/12/2015,STATIONERY,FACILITIES MANAGEMENT,OFFICE SOLUTIONS-OFFCE SPPLIES,BANNER BUSINESS SOLUTIONS,96569,4.16
DEPARTMENT OF ENERGY AND CLIMATE CHANGE,THE COAL AUTHORITY,02/12/2015,STATIONERY,FACILITIES MANAGEMENT,OFFICE SOLUTIONS-OFFCE SPPLIES,BANNER BUSINESS SOLUTIONS,96570,7.53
DEPARTMENT OF ENERGY AND CLIMATE CHANGE,THE COAL AUTHORITY,30/11/2015,AUDIT FEES - INTERNAL,FINANCE,PROF SER FNCL-BUS PROC O/SRCE,GBS RE TREASURY VOTES CASH 1,96335,31906.43
DEPARTMENT OF ENERGY AND CLIMATE CHANGE,THE COAL AUTHORITY,30/11/2015,CHILDCARE VOUCHERS,FINANCE,PERSONNEL RLTD-STAFF CHILDCARE,FIDELITI LIMITED,96318,124.00
DEPARTMENT OF ENERGY AND CLIMATE CHANGE,THE COAL AUTHORITY,08/12/2015,FARES - PUBLIC TRANSPORT,FINANCE,TRAVEL&EVENTS-TAXI,STAFF EXPENSES CONTROL,96653,15.40
DEPARTMENT OF ENERGY AND CLIMATE CHANGE,THE COAL AUTHORITY,30/11/2015,FARES - RAIL,FINANCE,TRAVEL&EVENTS-RAIL,REDFERN TRAVEL LTD,96660,304.59
DEPARTMENT OF ENERGY AND CLIMATE CHANGE,THE COAL AUTHORITY,04/12/2015,FARES - RAIL,FINANCE,TRAVEL&EVENTS-RAIL,STAFF EXPENSES CONTROL,96554,6.40
DEPARTMENT OF ENERGY AND CLIMATE CHANGE,THE COAL AUTHORITY,30/11/2015,HOTEL ACCOMMODATION,FINANCE,TRAVEL&EVENTS-HOTELS,REDFERN TRAVEL LTD,96662,666.17
DEPARTMENT OF ENERGY AND CLIMATE CHANGE,THE COAL AUTHORITY,08/12/2015,HOTEL ACCOMMODATION,FINANCE,VEHICLES-FLEET MANAGEMENT,STAFF EXPENSES CONTROL,96653,11.66
DEPARTMENT OF ENERGY AND CLIMATE CHANGE,THE COAL AUTHORITY,30/11/2015,IT-APPLICATIONS MANAGEMENT,FINANCE,ICT-MAINTENANCE & SUPPORT,BOTTOMLINE TECHNOLOGIES,96604,50.73
DEPARTMENT OF ENERGY AND CLIMATE CHANGE,THE COAL AUTHORITY,27/11/2015,OTHER BANK CHARGES,FINANCE,PROF SER FNCL-BANKING&INVSTMNT,NATIONAL WESTMINSTER BANK PLC,96433,62.54
DEPARTMENT OF ENERGY AND CLIMATE CHANGE,THE COAL AUTHORITY,04/12/2015,OTHER BANK CHARGES,FINANCE,PROF SER FNCL-BANKING&INVSTMNT,NATIONAL WESTMINSTER BANK PLC,96771,1.75
DEPARTMENT OF ENERGY AND CLIMATE CHANGE,THE COAL AUTHORITY,03/11/2015,PROFESSIONAL SUBSCRIPTIONS,FINANCE,PERSONNEL RLTD-STAFF SUBSCRPTN,RBS GPC October 2015,97160,528.00
DEPARTMENT OF ENERGY AND CLIMATE CHANGE,THE COAL AUTHORITY,30/11/2015,SALARY PROCESSING FEES,FINANCE,PROF SER FNCL-BUS PROC O/SRCE,CGI IT UK LTD,96326,877.42
DEPARTMENT OF ENERGY AND CLIMATE CHANGE,THE COAL AUTHORITY,03/09/2015,STAFF EVENTS,FINANCE,FACILITIES - FOOD,RBS GPC August 2015,97120,239.83
DEPARTMENT OF ENERGY AND CLIMATE CHANGE,THE COAL AUTHORITY,08/12/2015,SUBSISTENCE ALLOWANCES,FINANCE,FACILITIES - FOOD,STAFF EXPENSES CONTROL,96653,79.76
DEPARTMENT OF ENERGY AND CLIMATE CHANGE,THE COAL AUTHORITY,03/10/2015,TRAINING AND EDUCATION,FINANCE,PROF SER LRNG&DEV-STAFF TRNING,RBS GPC September 2015,97159,26.00
DEPARTMENT OF ENERGY AND CLIMATE CHANGE,THE COAL AUTHORITY,30/11/2015,CONTRACTORS - CLOSURE,HATFIELD COLLIERY,PROF SER TECH-ENGINEERING SER,JMC ENGINEERING (UK) LTD,96338,-35.58
DEPARTMENT OF ENERGY AND CLIMATE CHANGE,THE COAL AUTHORITY,30/11/2015,CONTRACTORS - CLOSURE,HATFIELD COLLIERY,PROF SER TECH-ENGINEERING SER,JMC ENGINEERING (UK) LTD,96415,-276.00
DEPARTMENT OF ENERGY AND CLIMATE CHANGE,THE COAL AUTHORITY,30/11/2015,CONTRACTORS - CLOSURE,HATFIELD COLLIERY,PROF SER TECH-ENGINEERING SER,JMC ENGINEERING (UK) LTD,96339,6281.67
DEPARTMENT OF ENERGY AND CLIMATE CHANGE,THE COAL AUTHORITY,30/11/2015,CONTRACTORS - CLOSURE,HATFIELD COLLIERY,PROF SER TECH-ENGINEERING SER,JMC ENGINEERING (UK) LTD,96340,1691.50
DEPARTMENT OF ENERGY AND CLIMATE CHANGE,THE COAL AUTHORITY,30/11/2015,CONTRACTORS AND CLAIM COSTS,HATFIELD COLLIERY,"CONSTRUCTION-BLD,REPR&MAINTNCE",DANVM DRAINAGE COMMISSIONERS,96329,6303.60
DEPARTMENT OF ENERGY AND CLIMATE CHANGE,THE COAL AUTHORITY,30/11/2015,CONTRACTORS AND CLAIM COSTS,HATFIELD COLLIERY,"CONSTRUCTION-BLD,REPR&MAINTNCE",DANVM DRAINAGE COMMISSIONERS,96330,2656.00
DEPARTMENT OF ENERGY AND CLIMATE CHANGE,THE COAL AUTHORITY,30/11/2015,CONTRACTORS AND CLAIM COSTS,HATFIELD COLLIERY,"CONSTRUCTION-BLD,REPR&MAINTNCE",DANVM DRAINAGE COMMISSIONERS,96331,1058.40
DEPARTMENT OF ENERGY AND CLIMATE CHANGE,THE COAL AUTHORITY,30/11/2015,CONTRACTORS AND CLAIM COSTS,HATFIELD COLLIERY,"CONSTRUCTION-BLD,REPR&MAINTNCE",DANVM DRAINAGE COMMISSIONERS,96333,928.00
DEPARTMENT OF ENERGY AND CLIMATE CHANGE,THE COAL AUTHORITY,30/11/2015,CONTRACTORS AND CLAIM COSTS,HATFIELD COLLIERY,"CONSTRUCTION-BLD,REPR&MAINTNCE",DANVM DRAINAGE COMMISSIONERS,96334,733.40
DEPARTMENT OF ENERGY AND CLIMATE CHANGE,THE COAL AUTHORITY,11/12/2015,CONTRACTORS AND CLAIM COSTS,HATFIELD COLLIERY,ENERGY&UTILITIES-ELECTRICITY,DANVM DRAINAGE COMMISSIONERS,96846,34677.34
DEPARTMENT OF ENERGY AND CLIMATE CHANGE,THE COAL AUTHORITY,15/12/2015,CONTRACTORS AND CLAIM COSTS,HATFIELD COLLIERY,"CONSTRUCTION-BLD,REPR&MAINTNCE",MR S POLLARD,96863,5000.00
DEPARTMENT OF ENERGY AND CLIMATE CHANGE,THE COAL AUTHORITY,15/12/2015,CONTRACTORS AND CLAIM COSTS,HATFIELD COLLIERY,CONSTRUCTION-CNSTRN SER PROVDR,STEVE VINE LAND DRAINAGE SLTNS,96899,330.00
DEPARTMENT OF ENERGY AND CLIMATE CHANGE,THE COAL AUTHORITY,15/12/2015,CONTRACTORS AND CLAIM COSTS,HATFIELD COLLIERY,CONSTRUCTION-CNSTRN SER PROVDR,STEVE VINE LAND DRAINAGE SLTNS,96900,330.00
DEPARTMENT OF ENERGY AND CLIMATE CHANGE,THE COAL AUTHORITY,15/12/2015,CONTRACTORS AND CLAIM COSTS,HATFIELD COLLIERY,CONSTRUCTION-CNSTRN SER PROVDR,STEVE VINE LAND DRAINAGE SLTNS,96901,330.00
DEPARTMENT OF ENERGY AND CLIMATE CHANGE,THE COAL AUTHORITY,15/12/2015,CONTRACTORS AND CLAIM COSTS,HATFIELD COLLIERY,CONSTRUCTION-CNSTRN SER PROVDR,STEVE VINE LAND DRAINAGE SLTNS,96903,247.50
DEPARTMENT OF ENERGY AND CLIMATE CHANGE,THE COAL AUTHORITY,15/12/2015,CONTRACTORS AND CLAIM COSTS,HATFIELD COLLIERY,CONSTRUCTION-CNSTRN SER PROVDR,STEVE VINE LAND DRAINAGE SLTNS,96904,440.00
DEPARTMENT OF ENERGY AND CLIMATE CHANGE,THE COAL AUTHORITY,15/12/2015,CONTRACTORS AND CLAIM COSTS,HATFIELD COLLIERY,CONSTRUCTION-CNSTRN SER PROVDR,STEVE VINE LAND DRAINAGE SLTNS,96906,412.50
DEPARTMENT OF ENERGY AND CLIMATE CHANGE,THE COAL AUTHORITY,15/12/2015,CONTRACTORS AND CLAIM COSTS,HATFIELD COLLIERY,CONSTRUCTION-CNSTRN SER PROVDR,STEVE VINE LAND DRAINAGE SLTNS,96908,522.50
DEPARTMENT OF ENERGY AND CLIMATE CHANGE,THE COAL AUTHORITY,15/12/2015,CONTRACTORS AND CLAIM COSTS,HATFIELD COLLIERY,CONSTRUCTION-CNSTRN SER PROVDR,STEVE VINE LAND DRAINAGE SLTNS,96909,687.50
DEPARTMENT OF ENERGY AND CLIMATE CHANGE,THE COAL AUTHORITY,15/12/2015,CONTRACTORS AND CLAIM COSTS,HATFIELD COLLIERY,CONSTRUCTION-CNSTRN SER PROVDR,STEVE VINE LAND DRAINAGE SLTNS,96910,687.50
DEPARTMENT OF ENERGY AND CLIMATE CHANGE,THE COAL AUTHORITY,15/12/2015,CONTRACTORS AND CLAIM COSTS,HATFIELD COLLIERY,CONSTRUCTION-CNSTRN SER PROVDR,STEVE VINE LAND DRAINAGE SLTNS,96911,357.50
DEPARTMENT OF ENERGY AND CLIMATE CHANGE,THE COAL AUTHORITY,17/12/2015,CONTRACTORS AND CLAIM COSTS,HATFIELD COLLIERY,"CONSTRUCTION-BLD,REPR&MAINTNCE",C GOLDTHORPE & SONS,96962,786.00
DEPARTMENT OF ENERGY AND CLIMATE CHANGE,THE COAL AUTHORITY,30/11/2015,CURR YR ADD-INTNGBLE INFO TECH,HISTORIC LIABILITIES,ICT-SYSTEMS DELIVERY,SCISYS UK LTD,96505,20664.00
DEPARTMENT OF ENERGY AND CLIMATE CHANGE,THE COAL AUTHORITY,11/12/2015,CURR YR ADD-INTNGBLE INFO TECH,HISTORIC LIABILITIES,ICT-SYSTEMS DELIVERY,SCISYS UK LTD,96988,900.00
DEPARTMENT OF ENERGY AND CLIMATE CHANGE,THE COAL AUTHORITY,30/11/2015,FARES - RAIL,HISTORIC LIABILITIES,TRAVEL&EVENTS-RAIL,REDFERN TRAVEL LTD,96661,-230.33
DEPARTMENT OF ENERGY AND CLIMATE CHANGE,THE COAL AUTHORITY,09/12/2015,IT-APPLICATIONS MANAGEMENT,HISTORIC LIABILITIES,ICT-SYSTEMS DELIVERY,SCISYS UK LTD,96826,276.87
DEPARTMENT OF ENERGY AND CLIMATE CHANGE,THE COAL AUTHORITY,27/11/2015,LEGAL COSTS,HISTORIC LIABILITIES,PROF SER-LEGAL SERVICES,WALKER MORRIS,96724,332.50
DEPARTMENT OF ENERGY AND CLIMATE CHANGE,THE COAL AUTHORITY,04/12/2015,LEGAL COSTS,HISTORIC LIABILITIES,PROF SER-OPERATIONAL SERVICES,LAND REGISTRY,96534,24.00
DEPARTMENT OF ENERGY AND CLIMATE CHANGE,THE COAL AUTHORITY,11/12/2015,LEGAL COSTS,HISTORIC LIABILITIES,PROF SER-LEGAL SERVICES,VALUATION OFFICE AGENCY,96833,1502.10
DEPARTMENT OF ENERGY AND CLIMATE CHANGE,THE COAL AUTHORITY,16/12/2015,LEGAL COSTS,HISTORIC LIABILITIES,PROF SER-OPERATIONAL SERVICES,LAND REGISTRY,96877,48.00
DEPARTMENT OF ENERGY AND CLIMATE CHANGE,THE COAL AUTHORITY,03/12/2015,M/W RENTS PAYABLE,HISTORIC LIABILITIES,FACILITIES-BUILDING MANAGEMENT,COKE TURNER & CO,96533,86.66
DEPARTMENT OF ENERGY AND CLIMATE CHANGE,THE COAL AUTHORITY,11/12/2015,PROPERTY RATES PAYABLE,HISTORIC LIABILITIES,ENERGY&UTILITIES-ELECTRICITY,BRITISH GAS BUSINESS,96943,176.48
DEPARTMENT OF ENERGY AND CLIMATE CHANGE,THE COAL AUTHORITY,11/12/2015,PROPERTY RATES PAYABLE,HISTORIC LIABILITIES,ENERGY&UTILITIES-ELECTRICITY,BRITISH GAS BUSINESS,96943,126.63
DEPARTMENT OF ENERGY AND CLIMATE CHANGE,THE COAL AUTHORITY,24/12/2015,PROPERTY RENTS PAYABLE,HISTORIC LIABILITIES,FACILITIES-BUILDING MANAGEMENT,WELBECK ESTATES COMPANY LTD,96355,80.00
DEPARTMENT OF ENERGY AND CLIMATE CHANGE,THE COAL AUTHORITY,24/12/2015,PROPERTY RENTS PAYABLE,HISTORIC LIABILITIES,FACILITIES-BUILDING MANAGEMENT,WELBECK ESTATES COMPANY LTD,96356,110.93
DEPARTMENT OF ENERGY AND CLIMATE CHANGE,THE COAL AUTHORITY,03/11/2015,SUBSISTENCE ALLOWANCES,HISTORIC LIABILITIES,FACILITIES - FOOD,RBS GPC October 2015,97160,29.71
DEPARTMENT OF ENERGY AND CLIMATE CHANGE,THE COAL AUTHORITY,01/12/2015,SUBSISTENCE ALLOWANCES,HISTORIC LIABILITIES,FACILITIES - FOOD,STAFF EXPENSES CONTROL,96292,3.10
DEPARTMENT OF ENERGY AND CLIMATE CHANGE,THE COAL AUTHORITY,03/09/2015,ADVERTISING EXP - RECRUITMENT,HUMAN RESRCES&ORGNSTL DEVLPMNT,PERSONNEL RLTD-HR BUS PRCS O/S,RBS GPC August 2015,97120,708.00
DEPARTMENT OF ENERGY AND CLIMATE CHANGE,THE COAL AUTHORITY,11/11/2015,CENTRAL TRAINING BUDGET,HUMAN RESRCES&ORGNSTL DEVLPMNT,PROF SER LRNG&DEV-STAFF TRNING,EASTWOOD HALL,96436,2664.50
DEPARTMENT OF ENERGY AND CLIMATE CHANGE,THE COAL AUTHORITY,30/11/2015,CHILDCARE VCHRS-SERVICE CHARGE,HUMAN RESRCES&ORGNSTL DEVLPMNT,PERSONNEL RLTD-STAFF CHILDCARE,FIDELITI LIMITED,96318,8.53
DEPARTMENT OF ENERGY AND CLIMATE CHANGE,THE COAL AUTHORITY,30/11/2015,CHILDCARE VOUCHERS,HUMAN RESRCES&ORGNSTL DEVLPMNT,PERSONNEL RLTD-STAFF CHILDCARE,FIDELITI LIMITED,96318,120.00
DEPARTMENT OF ENERGY AND CLIMATE CHANGE,THE COAL AUTHORITY,30/11/2015,CHILDCARE VOUCHERS,HUMAN RESRCES&ORGNSTL DEVLPMNT,PERSONNEL RLTD-STAFF CHILDCARE,FIDELITI LIMITED,96318,243.00
DEPARTMENT OF ENERGY AND CLIMATE CHANGE,THE COAL AUTHORITY,07/12/2015,LEGAL COSTS,HUMAN RESRCES&ORGNSTL DEVLPMNT,PROF SER-LEGAL SERVICES,DLA PIPER UK LLP,96723,674.00
DEPARTMENT OF ENERGY AND CLIMATE CHANGE,THE COAL AUTHORITY,03/09/2015,MEETINGS,HUMAN RESRCES&ORGNSTL DEVLPMNT,TRAVEL&EVENTS-EVENT ORGNSTN,RBS GPC August 2015,97120,84.00
DEPARTMENT OF ENERGY AND CLIMATE CHANGE,THE COAL AUTHORITY,03/11/2015,MEETINGS,HUMAN RESRCES&ORGNSTL DEVLPMNT,TRAVEL&EVENTS-EVENT ORGNSTN,RBS GPC October 2015,97160,60.00
DEPARTMENT OF ENERGY AND CLIMATE CHANGE,THE COAL AUTHORITY,10/11/2015,OTHER RECRUITMENT EXPENSES,HUMAN RESRCES&ORGNSTL DEVLPMNT,PERSONNEL RLTD-HR BUS PRCS O/S,CHERRY PROFESSIONAL LTD,96916,5250.00
DEPARTMENT OF ENERGY AND CLIMATE CHANGE,THE COAL AUTHORITY,27/11/2015,OTHER RECRUITMENT EXPENSES,HUMAN RESRCES&ORGNSTL DEVLPMNT,PERSONNEL RLTD-HR BUS PRCS O/S,GATENBY SANDERSON LTD,96283,1363.80
DEPARTMENT OF ENERGY AND CLIMATE CHANGE,THE COAL AUTHORITY,27/11/2015,OTHER RECRUITMENT EXPENSES,HUMAN RESRCES&ORGNSTL DEVLPMNT,PERSONNEL RLTD-HR BUS PRCS O/S,GATENBY SANDERSON LTD,96284,2552.60
DEPARTMENT OF ENERGY AND CLIMATE CHANGE,THE COAL AUTHORITY,27/11/2015,OTHER RECRUITMENT EXPENSES,HUMAN RESRCES&ORGNSTL DEVLPMNT,PERSONNEL RLTD-HR BUS PRCS O/S,GATENBY SANDERSON LTD,96285,1958.20
DEPARTMENT OF ENERGY AND CLIMATE CHANGE,THE COAL AUTHORITY,10/12/2015,OTHER RECRUITMENT EXPENSES,HUMAN RESRCES&ORGNSTL DEVLPMNT,PERSONNEL RLTD-HR BUS PRCS O/S,GATENBY SANDERSON LTD,96839,3990.00
DEPARTMENT OF ENERGY AND CLIMATE CHANGE,THE COAL AUTHORITY,03/12/2015,PENSION PROCESSING FEES,HUMAN RESRCES&ORGNSTL DEVLPMNT,PERSONNEL RLTD-HR BUS PRCS O/S,CAPITA CONCESSIONARY FUEL,96504,1155.17
DEPARTMENT OF ENERGY AND CLIMATE CHANGE,THE COAL AUTHORITY,07/12/2015,PENSION PROCESSING FEES,HUMAN RESRCES&ORGNSTL DEVLPMNT,PROF SER FNCL-PENSION SERVICE,CO - MISC RECEIPTS,96840,2572.00
DEPARTMENT OF ENERGY AND CLIMATE CHANGE,THE COAL AUTHORITY,03/11/2015,PROFESSIONAL SUBSCRIPTIONS,HUMAN RESRCES&ORGNSTL DEVLPMNT,PERSONNEL RLTD-STAFF SUBSCRPTN,RBS GPC October 2015,97160,170.34
DEPARTMENT OF ENERGY AND CLIMATE CHANGE,THE COAL AUTHORITY,11/12/2015,STAFF MEDICALS,HUMAN RESRCES&ORGNSTL DEVLPMNT,PERSONNEL RLTD-STAFF MEDICAL,BUPA WELLNESS FINANCE,96957,553.00
DEPARTMENT OF ENERGY AND CLIMATE CHANGE,THE COAL AUTHORITY,03/10/2015,SUBSISTENCE ALLOWANCES,HUMAN RESRCES&ORGNSTL DEVLPMNT,FACILITIES - FOOD,RBS GPC September 2015,97159,7.60
DEPARTMENT OF ENERGY AND CLIMATE CHANGE,THE COAL AUTHORITY,03/10/2015,SUBSISTENCE ALLOWANCES,HUMAN RESRCES&ORGNSTL DEVLPMNT,FACILITIES - CATERING,RBS GPC September 2015,97159,12.48
DEPARTMENT OF ENERGY AND CLIMATE CHANGE,THE COAL AUTHORITY,03/11/2015,SUBSISTENCE ALLOWANCES,HUMAN RESRCES&ORGNSTL DEVLPMNT,FACILITIES - FOOD,RBS GPC October 2015,97160,63.47
DEPARTMENT OF ENERGY AND CLIMATE CHANGE,THE COAL AUTHORITY,03/11/2015,SUNDRY OFFICE EXPENSES,HUMAN RESRCES&ORGNSTL DEVLPMNT,,RBS GPC October 2015,97160,63.96
DEPARTMENT OF ENERGY AND CLIMATE CHANGE,THE COAL AUTHORITY,30/11/2015,CALL CHARGES,ICT -  SERVICE MANAGEMENT,ICT-TELECOMS,BRITISH TELECOMMUNICATIONS PLC,96921,230.06
DEPARTMENT OF ENERGY AND CLIMATE CHANGE,THE COAL AUTHORITY,01/12/2015,CALL CHARGES,ICT -  SERVICE MANAGEMENT,ICT-TELECOMS,DAISY COMMUNICATIONS LTD,96695,377.43
DEPARTMENT OF ENERGY AND CLIMATE CHANGE,THE COAL AUTHORITY,30/11/2015,CHILDCARE VOUCHERS,ICT -  SERVICE MANAGEMENT,PERSONNEL RLTD-STAFF CHILDCARE,FIDELITI LIMITED,96318,243.00
DEPARTMENT OF ENERGY AND CLIMATE CHANGE,THE COAL AUTHORITY,30/11/2015,FARES - RAIL,ICT -  SERVICE MANAGEMENT,TRAVEL&EVENTS-RAIL,REDFERN TRAVEL LTD,96660,199.61
DEPARTMENT OF ENERGY AND CLIMATE CHANGE,THE COAL AUTHORITY,30/11/2015,HOTEL ACCOMMODATION,ICT -  SERVICE MANAGEMENT,TRAVEL&EVENTS-HOTELS,REDFERN TRAVEL LTD,96662,250.39
DEPARTMENT OF ENERGY AND CLIMATE CHANGE,THE COAL AUTHORITY,03/11/2015,INCIDENTALS,ICT -  SERVICE MANAGEMENT,VEHICLES-FLEET MANAGEMENT,RBS GPC October 2015,97160,11.00
DEPARTMENT OF ENERGY AND CLIMATE CHANGE,THE COAL AUTHORITY,03/09/2015,IT-APPLICATIONS MANAGEMENT,ICT -  SERVICE MANAGEMENT,ICT-SOFTWARE,RBS GPC August 2015,97120,144.98
DEPARTMENT OF ENERGY AND CLIMATE CHANGE,THE COAL AUTHORITY,03/09/2015,IT-APPLICATIONS MANAGEMENT,ICT -  SERVICE MANAGEMENT,ICT-HARDWARE,RBS GPC August 2015,97120,109.11
DEPARTMENT OF ENERGY AND CLIMATE CHANGE,THE COAL AUTHORITY,03/09/2015,IT-INFRASTRUCTURE MANAGEMENT,ICT -  SERVICE MANAGEMENT,ICT-HARDWARE,RBS GPC August 2015,97120,324.55
DEPARTMENT OF ENERGY AND CLIMATE CHANGE,THE COAL AUTHORITY,03/10/2015,IT-INFRASTRUCTURE MANAGEMENT,ICT -  SERVICE MANAGEMENT,ICT-HARDWARE,RBS GPC September 2015,97159,447.93
DEPARTMENT OF ENERGY AND CLIMATE CHANGE,THE COAL AUTHORITY,03/11/2015,IT-INFRASTRUCTURE MANAGEMENT,ICT -  SERVICE MANAGEMENT,ICT-HARDWARE,RBS GPC October 2015,97160,367.60
DEPARTMENT OF ENERGY AND CLIMATE CHANGE,THE COAL AUTHORITY,16/11/2015,IT-INFRASTRUCTURE MANAGEMENT,ICT -  SERVICE MANAGEMENT,ICT-MAINTENANCE & SUPPORT,SOFTWARE BOX LIMITED,96357,-3381.18
DEPARTMENT OF ENERGY AND CLIMATE CHANGE,THE COAL AUTHORITY,05/01/2016,IT-INFRASTRUCTURE MANAGEMENT,ICT -  SERVICE MANAGEMENT,ICT-TELECOMS,96958 - British Telecom,97168,2086.53
DEPARTMENT OF ENERGY AND CLIMATE CHANGE,THE COAL AUTHORITY,03/11/2015,LINE RENTAL,ICT -  SERVICE MANAGEMENT,ICT-TELECOMS,RBS GPC October 2015,97160,20.87
DEPARTMENT OF ENERGY AND CLIMATE CHANGE,THE COAL AUTHORITY,01/12/2015,LINE RENTAL,ICT -  SERVICE MANAGEMENT,ICT-TELECOMS,DAISY COMMUNICATIONS LTD,96695,1084.40
DEPARTMENT OF ENERGY AND CLIMATE CHANGE,THE COAL AUTHORITY,08/12/2015,LINE RENTAL,ICT -  SERVICE MANAGEMENT,ICT-TELECOMS,COMPANY BARCLAYCARD,96867,152.39
DEPARTMENT OF ENERGY AND CLIMATE CHANGE,THE COAL AUTHORITY,10/12/2015,LINE RENTAL,ICT -  SERVICE MANAGEMENT,ICT-TELECOMS,BRITISH TELECOMMUNICATIONS PLC,96958,2076.53
DEPARTMENT OF ENERGY AND CLIMATE CHANGE,THE COAL AUTHORITY,05/01/2016,LINE RENTAL,ICT -  SERVICE MANAGEMENT,ICT-TELECOMS,96958 - British Telecom,97168,-2076.53
DEPARTMENT OF ENERGY AND CLIMATE CHANGE,THE COAL AUTHORITY,08/12/2015,MILEAGE PAYMENTS,ICT -  SERVICE MANAGEMENT,FUELS/LUBRCNT/GAS-FUELS,STAFF EXPENSES CONTROL,96650,12.15
DEPARTMENT OF ENERGY AND CLIMATE CHANGE,THE COAL AUTHORITY,03/11/2015,SUBSISTENCE ALLOWANCES,ICT -  SERVICE MANAGEMENT,FACILITIES - FOOD,RBS GPC October 2015,97160,5.42
DEPARTMENT OF ENERGY AND CLIMATE CHANGE,THE COAL AUTHORITY,08/12/2015,SUBSISTENCE ALLOWANCES,ICT -  SERVICE MANAGEMENT,FACILITIES - FOOD,STAFF EXPENSES CONTROL,96650,45.29
DEPARTMENT OF ENERGY AND CLIMATE CHANGE,THE COAL AUTHORITY,10/12/2015,SUBSISTENCE ALLOWANCES,ICT -  SERVICE MANAGEMENT,FACILITIES - FOOD,STAFF EXPENSES CONTROL,96719,3.42
DEPARTMENT OF ENERGY AND CLIMATE CHANGE,THE COAL AUTHORITY,10/12/2015,TELEPHONE - OTHER,ICT -  SERVICE MANAGEMENT,ICT-TELECOMS,BRITISH TELECOMMUNICATIONS PLC,96958,10.00
DEPARTMENT OF ENERGY AND CLIMATE CHANGE,THE COAL AUTHORITY,05/01/2016,TELEPHONE - OTHER,ICT -  SERVICE MANAGEMENT,ICT-TELECOMS,96958 - British Telecom,97168,-10.00
DEPARTMENT OF ENERGY AND CLIMATE CHANGE,THE COAL AUTHORITY,03/11/2015,TRAINING AND EDUCATION,ICT -  SERVICE MANAGEMENT,PROF SER LRNG&DEV-STAFF TRNING,RBS GPC October 2015,97160,743.00
DEPARTMENT OF ENERGY AND CLIMATE CHANGE,THE COAL AUTHORITY,30/11/2015,CHILDCARE VOUCHERS,ICT-BUSINESS ANALYSIS&DESIGN,PERSONNEL RLTD-STAFF CHILDCARE,FIDELITI LIMITED,96318,10.00
DEPARTMENT OF ENERGY AND CLIMATE CHANGE,THE COAL AUTHORITY,30/11/2015,CHILDCARE VOUCHERS,ICT-BUSINESS ANALYSIS&DESIGN,PERSONNEL RLTD-STAFF CHILDCARE,FIDELITI LIMITED,96318,243.00
DEPARTMENT OF ENERGY AND CLIMATE CHANGE,THE COAL AUTHORITY,30/11/2015,FARES - RAIL,ICT-BUSINESS ANALYSIS&DESIGN,TRAVEL&EVENTS-RAIL,REDFERN TRAVEL LTD,96660,208.92
DEPARTMENT OF ENERGY AND CLIMATE CHANGE,THE COAL AUTHORITY,30/11/2015,HOTEL ACCOMMODATION,ICT-BUSINESS ANALYSIS&DESIGN,TRAVEL&EVENTS-HOTELS,REDFERN TRAVEL LTD,96662,576.17
DEPARTMENT OF ENERGY AND CLIMATE CHANGE,THE COAL AUTHORITY,03/09/2015,IT-APPLICATIONS MANAGEMENT,ICT-BUSINESS ANALYSIS&DESIGN,ICT-MAINTENANCE & SUPPORT,RBS GPC August 2015,97120,375.81
DEPARTMENT OF ENERGY AND CLIMATE CHANGE,THE COAL AUTHORITY,03/10/2015,IT-APPLICATIONS MANAGEMENT,ICT-BUSINESS ANALYSIS&DESIGN,ICT-SOFTWARE,RBS GPC September 2015,97159,146.70
DEPARTMENT OF ENERGY AND CLIMATE CHANGE,THE COAL AUTHORITY,30/11/2015,PAYMENTS TO AGENCIES FOR TEMPS,ICT-BUSINESS ANALYSIS&DESIGN,PROF SER TMP STFF-SPCLST CNTRT,SPRING TECHNOLOGY,96351,1775.00
DEPARTMENT OF ENERGY AND CLIMATE CHANGE,THE COAL AUTHORITY,09/12/2015,PAYMENTS TO AGENCIES FOR TEMPS,ICT-BUSINESS ANALYSIS&DESIGN,PROF SER TMP STFF-SPCLST CNTRT,SPRING TECHNOLOGY,96731,1597.50
DEPARTMENT OF ENERGY AND CLIMATE CHANGE,THE COAL AUTHORITY,14/12/2015,PAYMENTS TO AGENCIES FOR TEMPS,ICT-BUSINESS ANALYSIS&DESIGN,PROF SER TMP STFF-SPCLST CNTRT,SPRING TECHNOLOGY,96865,1775.00
DEPARTMENT OF ENERGY AND CLIMATE CHANGE,THE COAL AUTHORITY,07/10/2015,TRAINING AND EDUCATION,ICT-BUSINESS ANALYSIS&DESIGN,PROF SER LRNG&DEV-STAFF TRNING,PCS LTD,96437,225.00
DEPARTMENT OF ENERGY AND CLIMATE CHANGE,THE COAL AUTHORITY,30/11/2015,CHILDCARE VOUCHERS,ICT-TECH SUPPORT&SYSTM DVLPMNT,PERSONNEL RLTD-STAFF CHILDCARE,FIDELITI LIMITED,96318,243.00
DEPARTMENT OF ENERGY AND CLIMATE CHANGE,THE COAL AUTHORITY,30/11/2015,CHILDCARE VOUCHERS,ICT-TECH SUPPORT&SYSTM DVLPMNT,PERSONNEL RLTD-STAFF CHILDCARE,FIDELITI LIMITED,96318,220.00
DEPARTMENT OF ENERGY AND CLIMATE CHANGE,THE COAL AUTHORITY,30/11/2015,FARES - RAIL,ICT-TECH SUPPORT&SYSTM DVLPMNT,TRAVEL&EVENTS-RAIL,REDFERN TRAVEL LTD,96660,590.88
DEPARTMENT OF ENERGY AND CLIMATE CHANGE,THE COAL AUTHORITY,30/11/2015,HOTEL ACCOMMODATION,ICT-TECH SUPPORT&SYSTM DVLPMNT,TRAVEL&EVENTS-HOTELS,REDFERN TRAVEL LTD,96662,116.17
DEPARTMENT OF ENERGY AND CLIMATE CHANGE,THE COAL AUTHORITY,04/12/2015,INCIDENTALS,ICT-TECH SUPPORT&SYSTM DVLPMNT,VEHICLES-FLEET MANAGEMENT,STAFF EXPENSES CONTROL,96548,27.08
DEPARTMENT OF ENERGY AND CLIMATE CHANGE,THE COAL AUTHORITY,03/09/2015,IT-APPLICATIONS MANAGEMENT,ICT-TECH SUPPORT&SYSTM DVLPMNT,ICT-HARDWARE,RBS GPC August 2015,97120,17.79
DEPARTMENT OF ENERGY AND CLIMATE CHANGE,THE COAL AUTHORITY,03/10/2015,IT-APPLICATIONS MANAGEMENT,ICT-TECH SUPPORT&SYSTM DVLPMNT,ICT-SOFTWARE,RBS GPC September 2015,97159,159.39
DEPARTMENT OF ENERGY AND CLIMATE CHANGE,THE COAL AUTHORITY,03/10/2015,IT-APPLICATIONS MANAGEMENT,ICT-TECH SUPPORT&SYSTM DVLPMNT,ICT-MAINTENANCE & SUPPORT,RBS GPC September 2015,97159,119.88
DEPARTMENT OF ENERGY AND CLIMATE CHANGE,THE COAL AUTHORITY,03/11/2015,IT-APPLICATIONS MANAGEMENT,ICT-TECH SUPPORT&SYSTM DVLPMNT,ICT-SYSTEMS DELIVERY,RBS GPC October 2015,97160,900.00
DEPARTMENT OF ENERGY AND CLIMATE CHANGE,THE COAL AUTHORITY,11/12/2015,IT-APPLICATIONS MANAGEMENT,ICT-TECH SUPPORT&SYSTM DVLPMNT,ICT-SYSTEMS DELIVERY,SCISYS UK LTD,96989,916.50
DEPARTMENT OF ENERGY AND CLIMATE CHANGE,THE COAL AUTHORITY,14/12/2015,IT-APPLICATIONS MANAGEMENT,ICT-TECH SUPPORT&SYSTM DVLPMNT,ICT-SYSTEMS DELIVERY,SCISYS UK LTD,96990,584.10
DEPARTMENT OF ENERGY AND CLIMATE CHANGE,THE COAL AUTHORITY,03/09/2015,IT-INFRASTRUCTURE MANAGEMENT,ICT-TECH SUPPORT&SYSTM DVLPMNT,ICT-HARDWARE,RBS GPC August 2015,97120,213.80
DEPARTMENT OF ENERGY AND CLIMATE CHANGE,THE COAL AUTHORITY,03/10/2015,IT-INFRASTRUCTURE MANAGEMENT,ICT-TECH SUPPORT&SYSTM DVLPMNT,ICT-MAINTENANCE & SUPPORT,RBS GPC September 2015,97159,99.33
DEPARTMENT OF ENERGY AND CLIMATE CHANGE,THE COAL AUTHORITY,03/10/2015,IT-INFRASTRUCTURE MANAGEMENT,ICT-TECH SUPPORT&SYSTM DVLPMNT,ICT-HARDWARE,RBS GPC September 2015,97159,479.30
DEPARTMENT OF ENERGY AND CLIMATE CHANGE,THE COAL AUTHORITY,03/11/2015,IT-INFRASTRUCTURE MANAGEMENT,ICT-TECH SUPPORT&SYSTM DVLPMNT,ICT-MAINTENANCE & SUPPORT,RBS GPC October 2015,97160,39.96
DEPARTMENT OF ENERGY AND CLIMATE CHANGE,THE COAL AUTHORITY,03/11/2015,IT-INFRASTRUCTURE MANAGEMENT,ICT-TECH SUPPORT&SYSTM DVLPMNT,ICT-HARDWARE,RBS GPC October 2015,97160,1577.25
DEPARTMENT OF ENERGY AND CLIMATE CHANGE,THE COAL AUTHORITY,30/11/2015,IT-INFRASTRUCTURE MANAGEMENT,ICT-TECH SUPPORT&SYSTM DVLPMNT,ICT-MANAGED O/SRCE SERVICES,NOWCOMM,96549,3400.00
DEPARTMENT OF ENERGY AND CLIMATE CHANGE,THE COAL AUTHORITY,04/12/2015,MILEAGE PAYMENTS,ICT-TECH SUPPORT&SYSTM DVLPMNT,FUELS/LUBRCNT/GAS-FUELS,STAFF EXPENSES CONTROL,96548,46.17
DEPARTMENT OF ENERGY AND CLIMATE CHANGE,THE COAL AUTHORITY,01/12/2015,PAYMENTS TO AGENCIES FOR TEMPS,ICT-TECH SUPPORT&SYSTM DVLPMNT,PROF SER TMP STFF-SPCLST CNTRT,PLAYCOOL LIMITED,96350,5250.00
DEPARTMENT OF ENERGY AND CLIMATE CHANGE,THE COAL AUTHORITY,04/12/2015,SUBSISTENCE ALLOWANCES,ICT-TECH SUPPORT&SYSTM DVLPMNT,FACILITIES - FOOD,STAFF EXPENSES CONTROL,96548,24.75
DEPARTMENT OF ENERGY AND CLIMATE CHANGE,THE COAL AUTHORITY,03/11/2015,TRAINING AND EDUCATION,ICT-TECH SUPPORT&SYSTM DVLPMNT,PROF SER LRNG&DEV-STAFF TRNING,RBS GPC October 2015,97160,99.00
DEPARTMENT OF ENERGY AND CLIMATE CHANGE,THE COAL AUTHORITY,07/11/2015,CAR HIRE,ICU (INDPNDNT COMPLIANCE UNIT),TRAVEL&EVENTS-VEHICLE HIRE,ENTERPRISE RENT A CAR,96309,53.50
DEPARTMENT OF ENERGY AND CLIMATE CHANGE,THE COAL AUTHORITY,03/11/2015,FARES - PUBLIC TRANSPORT,ICU (INDPNDNT COMPLIANCE UNIT),TRAVEL&EVENTS-TAXI,RBS GPC October 2015,97160,23.05
DEPARTMENT OF ENERGY AND CLIMATE CHANGE,THE COAL AUTHORITY,03/11/2015,INCIDENTALS,ICU (INDPNDNT COMPLIANCE UNIT),VEHICLES-FLEET MANAGEMENT,RBS GPC October 2015,97160,25.50
DEPARTMENT OF ENERGY AND CLIMATE CHANGE,THE COAL AUTHORITY,30/11/2015,LEGAL COSTS,ICU (INDPNDNT COMPLIANCE UNIT),PROF SER TECH-ENGINEERING SER,JMC ENGINEERING (UK) LTD,96412,310.80
DEPARTMENT OF ENERGY AND CLIMATE CHANGE,THE COAL AUTHORITY,03/11/2015,SUBSISTENCE ALLOWANCES,ICU (INDPNDNT COMPLIANCE UNIT),FACILITIES - FOOD,RBS GPC October 2015,97160,55.00
DEPARTMENT OF ENERGY AND CLIMATE CHANGE,THE COAL AUTHORITY,01/12/2015,SUBSISTENCE ALLOWANCES,ICU (INDPNDNT COMPLIANCE UNIT),FACILITIES - FOOD,STAFF EXPENSES CONTROL,96292,3.10
DEPARTMENT OF ENERGY AND CLIMATE CHANGE,THE COAL AUTHORITY,30/11/2015,FARES - RAIL,LEGAL,TRAVEL&EVENTS-RAIL,REDFERN TRAVEL LTD,96661,-173.40
DEPARTMENT OF ENERGY AND CLIMATE CHANGE,THE COAL AUTHORITY,02/12/2015,LEGAL COSTS,LEGAL,PROF SER-OPERATIONAL SERVICES,MDA SEARCHFLOW LTD,96435,169.73
DEPARTMENT OF ENERGY AND CLIMATE CHANGE,THE COAL AUTHORITY,04/12/2015,LEGAL COSTS,LEGAL,PROF SER-OPERATIONAL SERVICES,LAND REGISTRY,96534,9.00
DEPARTMENT OF ENERGY AND CLIMATE CHANGE,THE COAL AUTHORITY,09/12/2015,LEGAL COSTS,LEGAL,PROF SER-OPERATIONAL SERVICES,MDA SEARCHFLOW LTD,96733,127.73
DEPARTMENT OF ENERGY AND CLIMATE CHANGE,THE COAL AUTHORITY,09/12/2015,LEGAL COSTS,LEGAL,PROF SER-OPERATIONAL SERVICES,MDA SEARCHFLOW LTD,96734,-169.73
DEPARTMENT OF ENERGY AND CLIMATE CHANGE,THE COAL AUTHORITY,11/12/2015,LEGAL COSTS,LEGAL,PROF SER-OPERATIONAL SERVICES,LAND REGISTRY,96842,6.00
DEPARTMENT OF ENERGY AND CLIMATE CHANGE,THE COAL AUTHORITY,16/12/2015,LEGAL COSTS,LEGAL,PROF SER-OPERATIONAL SERVICES,LAND REGISTRY,96877,3.00
DEPARTMENT OF ENERGY AND CLIMATE CHANGE,THE COAL AUTHORITY,06/11/2015,CAR HIRE,LICENSING,TRAVEL&EVENTS-VEHICLE HIRE,ENTERPRISE RENT A CAR,96313,65.72
DEPARTMENT OF ENERGY AND CLIMATE CHANGE,THE COAL AUTHORITY,16/12/2015,LEGAL COSTS,LICENSING,PROF SER-LEGAL SERVICES,ANDERSON STRATHERN,97004,559.00
DEPARTMENT OF ENERGY AND CLIMATE CHANGE,THE COAL AUTHORITY,03/11/2015,SUBSISTENCE ALLOWANCES,LICENSING,FACILITIES - FOOD,RBS GPC October 2015,97160,17.67
DEPARTMENT OF ENERGY AND CLIMATE CHANGE,THE COAL AUTHORITY,16/12/2015,CONTRACTORS AND CLAIM COSTS,MINE ENTRY INSPECTIONS,CONSTRUCTION-CNSTRN SER PROVDR,CORNERSTONE  PROJECTS LTD,96928,78.00
DEPARTMENT OF ENERGY AND CLIMATE CHANGE,THE COAL AUTHORITY,16/12/2015,CONTRACTORS AND CLAIM COSTS,MINE ENTRY INSPECTIONS,CONSTRUCTION-CNSTRN SER PROVDR,CORNERSTONE  PROJECTS LTD,96930,58.00
DEPARTMENT OF ENERGY AND CLIMATE CHANGE,THE COAL AUTHORITY,16/12/2015,CONTRACTORS AND CLAIM COSTS,MINE ENTRY INSPECTIONS,CONSTRUCTION-CNSTRN SER PROVDR,CORNERSTONE  PROJECTS LTD,96936,153.00
DEPARTMENT OF ENERGY AND CLIMATE CHANGE,THE COAL AUTHORITY,30/11/2015,CURR YR ADD-INTNGBLE INFO TECH,MINE ENTRY INSPECTIONS,ICT-SYSTEMS DELIVERY,SCISYS UK LTD,96505,20664.00
DEPARTMENT OF ENERGY AND CLIMATE CHANGE,THE COAL AUTHORITY,11/12/2015,CURR YR ADD-INTNGBLE INFO TECH,MINE ENTRY INSPECTIONS,ICT-SYSTEMS DELIVERY,SCISYS UK LTD,96988,1800.00
DEPARTMENT OF ENERGY AND CLIMATE CHANGE,THE COAL AUTHORITY,09/12/2015,IT-APPLICATIONS MANAGEMENT,MINE ENTRY INSPECTIONS,ICT-SYSTEMS DELIVERY,SCISYS UK LTD,96826,553.75
DEPARTMENT OF ENERGY AND CLIMATE CHANGE,THE COAL AUTHORITY,09/12/2015,LEGAL COSTS,MINE ENTRY INSPECTIONS,PROF SER-OPERATIONAL SERVICES,REGISTERS OF SCOTLAND,96693,20.00
DEPARTMENT OF ENERGY AND CLIMATE CHANGE,THE COAL AUTHORITY,31/10/2015,OUTSOURCED MANAGEMENT-PS&S,MINE ENTRY INSPECTIONS,SOCIAL CARE-EMERGENCY SERVICES,INTERLOCK SURVEYS,96429,14527.50
DEPARTMENT OF ENERGY AND CLIMATE CHANGE,THE COAL AUTHORITY,31/10/2015,OUTSOURCED MANAGEMENT-PS&S,MINE ENTRY INSPECTIONS,SOCIAL CARE-EMERGENCY SERVICES,INTERLOCK SURVEYS,96430,6128.00
DEPARTMENT OF ENERGY AND CLIMATE CHANGE,THE COAL AUTHORITY,30/11/2015,OUTSOURCED MANAGEMENT-PS&S,MINE ENTRY INSPECTIONS,SOCIAL CARE-EMERGENCY SERVICES,INTERLOCK SURVEYS,96540,1600.00
DEPARTMENT OF ENERGY AND CLIMATE CHANGE,THE COAL AUTHORITY,30/11/2015,OUTSOURCED MANAGEMENT-PS&S,MINE ENTRY INSPECTIONS,SOCIAL CARE-EMERGENCY SERVICES,INTERLOCK SURVEYS,96541,13970.25
DEPARTMENT OF ENERGY AND CLIMATE CHANGE,THE COAL AUTHORITY,08/12/2015,OUTSOURCED MANAGEMENT-PS&S,MINE ENTRY INSPECTIONS,SOCIAL CARE-EMERGENCY SERVICES,MINES RESCUE SERVICE LIMITED,96669,27867.00
DEPARTMENT OF ENERGY AND CLIMATE CHANGE,THE COAL AUTHORITY,12/11/2015,CAR HIRE,MINE WATER TREATMENT SCHEMES,TRAVEL&EVENTS-VEHICLE HIRE,ENTERPRISE RENT A CAR,96312,75.72
DEPARTMENT OF ENERGY AND CLIMATE CHANGE,THE COAL AUTHORITY,21/11/2015,CAR HIRE,MINE WATER TREATMENT SCHEMES,TRAVEL&EVENTS-VEHICLE HIRE,ENTERPRISE RENT A CAR,96310,53.63
DEPARTMENT OF ENERGY AND CLIMATE CHANGE,THE COAL AUTHORITY,28/11/2015,CAR HIRE,MINE WATER TREATMENT SCHEMES,TRAVEL&EVENTS-VEHICLE HIRE,ENTERPRISE RENT A CAR,96307,31.75
DEPARTMENT OF ENERGY AND CLIMATE CHANGE,THE COAL AUTHORITY,30/11/2015,CHILDCARE VOUCHERS,MINE WATER TREATMENT SCHEMES,PERSONNEL RLTD-STAFF CHILDCARE,FIDELITI LIMITED,96318,60.00
DEPARTMENT OF ENERGY AND CLIMATE CHANGE,THE COAL AUTHORITY,30/11/2015,CHILDCARE VOUCHERS,MINE WATER TREATMENT SCHEMES,PERSONNEL RLTD-STAFF CHILDCARE,FIDELITI LIMITED,96318,10.00
DEPARTMENT OF ENERGY AND CLIMATE CHANGE,THE COAL AUTHORITY,30/11/2015,CONSULTANTS-INVESTIGATIONS,MINE WATER TREATMENT SCHEMES,PROF SER TECH-ENGINEERING SER,MOUCHEL LTD,96324,1298.93
DEPARTMENT OF ENERGY AND CLIMATE CHANGE,THE COAL AUTHORITY,15/12/2015,CONSULTANTS-INVESTIGATIONS,MINE WATER TREATMENT SCHEMES,PROF SER TECH-ENGINEERING SER,MOTT MACDONALD LTD,96886,1079.20
DEPARTMENT OF ENERGY AND CLIMATE CHANGE,THE COAL AUTHORITY,02/12/2015,CURR YR ADDNS MINEWATER SCHEME,MINE WATER TREATMENT SCHEMES,CONSTRUCTION-MAIN CONTRACTORS,DRILCORP LIMITED,96455,39748.58
DEPARTMENT OF ENERGY AND CLIMATE CHANGE,THE COAL AUTHORITY,04/12/2015,CURR YR ADDNS MINEWATER SCHEME,MINE WATER TREATMENT SCHEMES,CONSTRUCTION-MAIN CONTRACTORS,J N BENTLEY LIMITED,96796,176.13
DEPARTMENT OF ENERGY AND CLIMATE CHANGE,THE COAL AUTHORITY,04/12/2015,CURR YR ADDNS MINEWATER SCHEME,MINE WATER TREATMENT SCHEMES,CONSTRUCTION-MAIN CONTRACTORS,J N BENTLEY LIMITED,96798,27504.75
DEPARTMENT OF ENERGY AND CLIMATE CHANGE,THE COAL AUTHORITY,04/12/2015,CURR YR ADDNS MINEWATER SCHEME,MINE WATER TREATMENT SCHEMES,CONSTRUCTION-MAIN CONTRACTORS,J N BENTLEY LIMITED,96799,482.81
DEPARTMENT OF ENERGY AND CLIMATE CHANGE,THE COAL AUTHORITY,16/12/2015,CURR YR ADDNS MINEWATER SCHEME,MINE WATER TREATMENT SCHEMES,CONSTRUCTION-CNSTRN SER PROVDR,CORNERSTONE  PROJECTS LTD,96932,58.00
DEPARTMENT OF ENERGY AND CLIMATE CHANGE,THE COAL AUTHORITY,30/11/2015,FARES - AIR,MINE WATER TREATMENT SCHEMES,TRAVEL&EVENTS-AIR,REDFERN TRAVEL LTD,96660,1025.17
DEPARTMENT OF ENERGY AND CLIMATE CHANGE,THE COAL AUTHORITY,08/12/2015,FARES - PUBLIC TRANSPORT,MINE WATER TREATMENT SCHEMES,TRAVEL&EVENTS-TAXI,STAFF EXPENSES CONTROL,96657,21.90
DEPARTMENT OF ENERGY AND CLIMATE CHANGE,THE COAL AUTHORITY,10/12/2015,FARES - PUBLIC TRANSPORT,MINE WATER TREATMENT SCHEMES,TRAVEL&EVENTS-TAXI,STAFF EXPENSES CONTROL,96721,6.10
DEPARTMENT OF ENERGY AND CLIMATE CHANGE,THE COAL AUTHORITY,03/10/2015,FARES - RAIL,MINE WATER TREATMENT SCHEMES,TRAVEL&EVENTS-RAIL,RBS GPC September 2015,97159,19.20
DEPARTMENT OF ENERGY AND CLIMATE CHANGE,THE COAL AUTHORITY,03/11/2015,FARES - RAIL,MINE WATER TREATMENT SCHEMES,TRAVEL&EVENTS-RAIL,RBS GPC October 2015,97160,172.42
DEPARTMENT OF ENERGY AND CLIMATE CHANGE,THE COAL AUTHORITY,30/11/2015,FARES - RAIL,MINE WATER TREATMENT SCHEMES,TRAVEL&EVENTS-RAIL,REDFERN TRAVEL LTD,96660,1639.85
DEPARTMENT OF ENERGY AND CLIMATE CHANGE,THE COAL AUTHORITY,01/12/2015,FARES - RAIL,MINE WATER TREATMENT SCHEMES,TRAVEL&EVENTS-RAIL,STAFF EXPENSES CONTROL,96294,9.60
DEPARTMENT OF ENERGY AND CLIMATE CHANGE,THE COAL AUTHORITY,03/11/2015,FUEL (VEHICLE),MINE WATER TREATMENT SCHEMES,FUELS/LUBRCNT/GAS-FUELS,RBS GPC October 2015,97160,29.14
DEPARTMENT OF ENERGY AND CLIMATE CHANGE,THE COAL AUTHORITY,03/11/2015,FUEL (VEHICLE),MINE WATER TREATMENT SCHEMES,FUELS/LUBRCNT/GAS-FUELS,RBS GPC October 2015,97160,28.43
DEPARTMENT OF ENERGY AND CLIMATE CHANGE,THE COAL AUTHORITY,02/12/2015,FUEL (VEHICLE),MINE WATER TREATMENT SCHEMES,FUELS/LUBRCNT/GAS-FUELS,ALLSTAR BUSINESS SOLUTIONS LTD,96495,64.56
DEPARTMENT OF ENERGY AND CLIMATE CHANGE,THE COAL AUTHORITY,09/12/2015,FUEL (VEHICLE),MINE WATER TREATMENT SCHEMES,FUELS/LUBRCNT/GAS-FUELS,96751-ALLSTAR BUS SLTN,97033,0.10
DEPARTMENT OF ENERGY AND CLIMATE CHANGE,THE COAL AUTHORITY,09/12/2015,FUEL (VEHICLE),MINE WATER TREATMENT SCHEMES,FUELS/LUBRCNT/GAS-FUELS,ALLSTAR BUSINESS SOLUTIONS LTD,96751,74.55
DEPARTMENT OF ENERGY AND CLIMATE CHANGE,THE COAL AUTHORITY,30/11/2015,HOTEL ACCOMMODATION,MINE WATER TREATMENT SCHEMES,TRAVEL&EVENTS-HOTELS,REDFERN TRAVEL LTD,96662,3399.21
DEPARTMENT OF ENERGY AND CLIMATE CHANGE,THE COAL AUTHORITY,03/11/2015,INCIDENTALS,MINE WATER TREATMENT SCHEMES,VEHICLES-FLEET MANAGEMENT,RBS GPC October 2015,97160,60.33
DEPARTMENT OF ENERGY AND CLIMATE CHANGE,THE COAL AUTHORITY,08/12/2015,INCIDENTALS,MINE WATER TREATMENT SCHEMES,VEHICLES-FLEET MANAGEMENT,STAFF EXPENSES CONTROL,96652,8.75
DEPARTMENT OF ENERGY AND CLIMATE CHANGE,THE COAL AUTHORITY,27/11/2015,LEGAL COSTS,MINE WATER TREATMENT SCHEMES,PROF SER-LEGAL SERVICES,WALKER MORRIS,96724,858.00
DEPARTMENT OF ENERGY AND CLIMATE CHANGE,THE COAL AUTHORITY,07/12/2015,LEGAL COSTS,MINE WATER TREATMENT SCHEMES,PROF SER-LEGAL SERVICES,DLA PIPER UK LLP,96723,1206.00
DEPARTMENT OF ENERGY AND CLIMATE CHANGE,THE COAL AUTHORITY,16/12/2015,LEGAL COSTS,MINE WATER TREATMENT SCHEMES,PROF SER-LEGAL SERVICES,ANDERSON STRATHERN,97004,26.00
DEPARTMENT OF ENERGY AND CLIMATE CHANGE,THE COAL AUTHORITY,30/11/2015,M/W CONTRCTR OPRNTL MTHLY MAIN,MINE WATER TREATMENT SCHEMES,CONSTRUCTION-MAIN CONTRACTORS,NATIONAL COAL MINING MUSEUM,96686,3420.00
DEPARTMENT OF ENERGY AND CLIMATE CHANGE,THE COAL AUTHORITY,03/09/2015,M/W DISCHARGE CONSENTS,MINE WATER TREATMENT SCHEMES,ENERGY&UTILITIES-WATER,RBS GPC August 2015,97120,1275.00
DEPARTMENT OF ENERGY AND CLIMATE CHANGE,THE COAL AUTHORITY,03/09/2015,M/W DISCHARGE CONSENTS,MINE WATER TREATMENT SCHEMES,ENERGY&UTILITIES-WATER,RBS GPC August 2015,97120,650.00
DEPARTMENT OF ENERGY AND CLIMATE CHANGE,THE COAL AUTHORITY,03/10/2015,M/W DISCHARGE CONSENTS,MINE WATER TREATMENT SCHEMES,ENERGY&UTILITIES-WATER,RBS GPC September 2015,97159,885.00
DEPARTMENT OF ENERGY AND CLIMATE CHANGE,THE COAL AUTHORITY,03/11/2015,M/W DISCHARGE CONSENTS,MINE WATER TREATMENT SCHEMES,ENERGY&UTILITIES-WATER,RBS GPC October 2015,97160,450.00
DEPARTMENT OF ENERGY AND CLIMATE CHANGE,THE COAL AUTHORITY,03/11/2015,M/W DISCHARGE CONSENTS,MINE WATER TREATMENT SCHEMES,ENERGY&UTILITIES-WATER,RBS GPC October 2015,97160,885.00
DEPARTMENT OF ENERGY AND CLIMATE CHANGE,THE COAL AUTHORITY,03/11/2015,M/W DISCHARGE CONSENTS,MINE WATER TREATMENT SCHEMES,PROF SER-OPERATIONAL SERVICES,RBS GPC October 2015,97160,51.10
DEPARTMENT OF ENERGY AND CLIMATE CHANGE,THE COAL AUTHORITY,04/12/2015,M/W DISCHARGE CONSENTS,MINE WATER TREATMENT SCHEMES,ENERGY&UTILITIES-WATER,ENVIRONMENT AGENCY,96736,897.05
DEPARTMENT OF ENERGY AND CLIMATE CHANGE,THE COAL AUTHORITY,30/11/2015,M/W LAND AGENTS (AQUISITIONS),MINE WATER TREATMENT SCHEMES,PROF SER TECH-ENGINEERING SER,MARK N CAREY LIMITED,96767,97.50
DEPARTMENT OF ENERGY AND CLIMATE CHANGE,THE COAL AUTHORITY,30/11/2015,M/W LAND AGENTS (AQUISITIONS),MINE WATER TREATMENT SCHEMES,PROF SER TECH-ENGINEERING SER,JMC ENGINEERING (UK) LTD,96411,947.20
DEPARTMENT OF ENERGY AND CLIMATE CHANGE,THE COAL AUTHORITY,30/11/2015,M/W LANDSCAPING SUPERVISION,MINE WATER TREATMENT SCHEMES,PROF SER TECH-ENGINEERING SER,MARK N CAREY LIMITED,96768,585.00
DEPARTMENT OF ENERGY AND CLIMATE CHANGE,THE COAL AUTHORITY,01/11/2015,M/W NEW SCHEME - CONSULTANCY,MINE WATER TREATMENT SCHEMES,CONSTRUCTION-CNSTRN SER PROVDR,J N BENTLEY LIMITED,96353,-1278.79
DEPARTMENT OF ENERGY AND CLIMATE CHANGE,THE COAL AUTHORITY,01/11/2015,M/W NEW SCHEME - CONSULTANCY,MINE WATER TREATMENT SCHEMES,CONSTRUCTION-CNSTRN SER PROVDR,J N BENTLEY LIMITED,96354,-2514.87
DEPARTMENT OF ENERGY AND CLIMATE CHANGE,THE COAL AUTHORITY,04/12/2015,M/W NEW SCHEME - CONSULTANCY,MINE WATER TREATMENT SCHEMES,CONSTRUCTION-CNSTRN SER PROVDR,J N BENTLEY LIMITED,96797,1859.57
DEPARTMENT OF ENERGY AND CLIMATE CHANGE,THE COAL AUTHORITY,11/12/2015,M/W NEW SCHEME - CONSULTANCY,MINE WATER TREATMENT SCHEMES,ENERGY&UTILITIES-ELECTRICITY,BRITISH GAS BUSINESS,96943,923.79
DEPARTMENT OF ENERGY AND CLIMATE CHANGE,THE COAL AUTHORITY,15/12/2015,M/W NEW SCHEME - CONTRACTORS,MINE WATER TREATMENT SCHEMES,ENERGY&UTILITIES-ELECTRICITY,EDF ENERGY,96941,14311.06
DEPARTMENT OF ENERGY AND CLIMATE CHANGE,THE COAL AUTHORITY,03/09/2014,M/W POWER COSTS,MINE WATER TREATMENT SCHEMES,ENERGY&UTILITIES-ELECTRICITY,BRITISH GAS BUSINESS,96286,380.75
DEPARTMENT OF ENERGY AND CLIMATE CHANGE,THE COAL AUTHORITY,30/11/2015,M/W POWER COSTS,MINE WATER TREATMENT SCHEMES,ENERGY&UTILITIES-ELECTRICITY,BRITISH GAS BUSINESS,96641,-636.51
DEPARTMENT OF ENERGY AND CLIMATE CHANGE,THE COAL AUTHORITY,30/11/2015,M/W POWER COSTS,MINE WATER TREATMENT SCHEMES,ENERGY&UTILITIES-ELECTRICITY,BRITISH GAS BUSINESS,96641,-63.53
DEPARTMENT OF ENERGY AND CLIMATE CHANGE,THE COAL AUTHORITY,30/11/2015,M/W POWER COSTS,MINE WATER TREATMENT SCHEMES,ENERGY&UTILITIES-ELECTRICITY,BRITISH GAS BUSINESS,96642,-52.88
DEPARTMENT OF ENERGY AND CLIMATE CHANGE,THE COAL AUTHORITY,30/11/2015,M/W POWER COSTS,MINE WATER TREATMENT SCHEMES,ENERGY&UTILITIES-ELECTRICITY,BRITISH GAS BUSINESS,96643,-575.29
DEPARTMENT OF ENERGY AND CLIMATE CHANGE,THE COAL AUTHORITY,30/11/2015,M/W POWER COSTS,MINE WATER TREATMENT SCHEMES,ENERGY&UTILITIES-ELECTRICITY,BRITISH GAS BUSINESS,96643,-61.96
DEPARTMENT OF ENERGY AND CLIMATE CHANGE,THE COAL AUTHORITY,01/12/2015,M/W POWER COSTS,MINE WATER TREATMENT SCHEMES,ENERGY&UTILITIES-ELECTRICITY,EDF ENERGY CUSTOMERS PLC,96618,6885.63
DEPARTMENT OF ENERGY AND CLIMATE CHANGE,THE COAL AUTHORITY,01/12/2015,M/W POWER COSTS,MINE WATER TREATMENT SCHEMES,ENERGY&UTILITIES-ELECTRICITY,EDF ENERGY CUSTOMERS PLC,96614,11226.37
DEPARTMENT OF ENERGY AND CLIMATE CHANGE,THE COAL AUTHORITY,02/12/2015,M/W POWER COSTS,MINE WATER TREATMENT SCHEMES,ENERGY&UTILITIES-ELECTRICITY,NPOWER,96537,260.00
DEPARTMENT OF ENERGY AND CLIMATE CHANGE,THE COAL AUTHORITY,02/12/2015,M/W POWER COSTS,MINE WATER TREATMENT SCHEMES,ENERGY&UTILITIES-ELECTRICITY,BRITISH GAS BUSINESS,96612,529.87
DEPARTMENT OF ENERGY AND CLIMATE CHANGE,THE COAL AUTHORITY,02/12/2015,M/W POWER COSTS,MINE WATER TREATMENT SCHEMES,ENERGY&UTILITIES-ELECTRICITY,BRITISH GAS BUSINESS,96613,911.37
DEPARTMENT OF ENERGY AND CLIMATE CHANGE,THE COAL AUTHORITY,03/12/2015,M/W POWER COSTS,MINE WATER TREATMENT SCHEMES,ENERGY&UTILITIES-ELECTRICITY,BRITISH GAS BUSINESS,96645,575.29
DEPARTMENT OF ENERGY AND CLIMATE CHANGE,THE COAL AUTHORITY,03/12/2015,M/W POWER COSTS,MINE WATER TREATMENT SCHEMES,ENERGY&UTILITIES-ELECTRICITY,BRITISH GAS BUSINESS,96645,626.84
DEPARTMENT OF ENERGY AND CLIMATE CHANGE,THE COAL AUTHORITY,03/12/2015,M/W POWER COSTS,MINE WATER TREATMENT SCHEMES,ENERGY&UTILITIES-ELECTRICITY,BRITISH GAS BUSINESS,96645,636.51
DEPARTMENT OF ENERGY AND CLIMATE CHANGE,THE COAL AUTHORITY,03/12/2015,M/W POWER COSTS,MINE WATER TREATMENT SCHEMES,ENERGY&UTILITIES-ELECTRICITY,BRITISH GAS BUSINESS,96645,61.96
DEPARTMENT OF ENERGY AND CLIMATE CHANGE,THE COAL AUTHORITY,03/12/2015,M/W POWER COSTS,MINE WATER TREATMENT SCHEMES,ENERGY&UTILITIES-ELECTRICITY,BRITISH GAS BUSINESS,96645,52.88
DEPARTMENT OF ENERGY AND CLIMATE CHANGE,THE COAL AUTHORITY,03/12/2015,M/W POWER COSTS,MINE WATER TREATMENT SCHEMES,ENERGY&UTILITIES-ELECTRICITY,BRITISH GAS BUSINESS,96645,63.53
DEPARTMENT OF ENERGY AND CLIMATE CHANGE,THE COAL AUTHORITY,04/12/2015,M/W POWER COSTS,MINE WATER TREATMENT SCHEMES,ENERGY&UTILITIES-ELECTRICITY,BRITISH GAS BUSINESS,96688,679.62
DEPARTMENT OF ENERGY AND CLIMATE CHANGE,THE COAL AUTHORITY,11/12/2015,M/W POWER COSTS,MINE WATER TREATMENT SCHEMES,ENERGY&UTILITIES-ELECTRICITY,BRITISH GAS BUSINESS,96944,-382.62
DEPARTMENT OF ENERGY AND CLIMATE CHANGE,THE COAL AUTHORITY,11/12/2015,M/W POWER COSTS,MINE WATER TREATMENT SCHEMES,ENERGY&UTILITIES-ELECTRICITY,BRITISH GAS BUSINESS,96943,778.52
DEPARTMENT OF ENERGY AND CLIMATE CHANGE,THE COAL AUTHORITY,11/12/2015,M/W POWER COSTS,MINE WATER TREATMENT SCHEMES,ENERGY&UTILITIES-ELECTRICITY,BRITISH GAS BUSINESS,96943,1882.06
DEPARTMENT OF ENERGY AND CLIMATE CHANGE,THE COAL AUTHORITY,11/12/2015,M/W POWER COSTS,MINE WATER TREATMENT SCHEMES,ENERGY&UTILITIES-ELECTRICITY,BRITISH GAS BUSINESS,96943,607.00
DEPARTMENT OF ENERGY AND CLIMATE CHANGE,THE COAL AUTHORITY,11/12/2015,M/W POWER COSTS,MINE WATER TREATMENT SCHEMES,ENERGY&UTILITIES-ELECTRICITY,BRITISH GAS BUSINESS,96943,203.30
DEPARTMENT OF ENERGY AND CLIMATE CHANGE,THE COAL AUTHORITY,11/12/2015,M/W POWER COSTS,MINE WATER TREATMENT SCHEMES,ENERGY&UTILITIES-ELECTRICITY,BRITISH GAS BUSINESS,96943,1534.95
DEPARTMENT OF ENERGY AND CLIMATE CHANGE,THE COAL AUTHORITY,11/12/2015,M/W POWER COSTS,MINE WATER TREATMENT SCHEMES,ENERGY&UTILITIES-ELECTRICITY,BRITISH GAS BUSINESS,96943,827.10
DEPARTMENT OF ENERGY AND CLIMATE CHANGE,THE COAL AUTHORITY,11/12/2015,M/W POWER COSTS,MINE WATER TREATMENT SCHEMES,ENERGY&UTILITIES-ELECTRICITY,BRITISH GAS BUSINESS,96943,2990.14
DEPARTMENT OF ENERGY AND CLIMATE CHANGE,THE COAL AUTHORITY,11/12/2015,M/W POWER COSTS,MINE WATER TREATMENT SCHEMES,ENERGY&UTILITIES-ELECTRICITY,BRITISH GAS BUSINESS,96943,2806.14
DEPARTMENT OF ENERGY AND CLIMATE CHANGE,THE COAL AUTHORITY,11/12/2015,M/W POWER COSTS,MINE WATER TREATMENT SCHEMES,ENERGY&UTILITIES-ELECTRICITY,BRITISH GAS BUSINESS,96943,3268.56
DEPARTMENT OF ENERGY AND CLIMATE CHANGE,THE COAL AUTHORITY,11/12/2015,M/W POWER COSTS,MINE WATER TREATMENT SCHEMES,ENERGY&UTILITIES-ELECTRICITY,BRITISH GAS BUSINESS,96943,324.83
DEPARTMENT OF ENERGY AND CLIMATE CHANGE,THE COAL AUTHORITY,11/12/2015,M/W POWER COSTS,MINE WATER TREATMENT SCHEMES,ENERGY&UTILITIES-ELECTRICITY,BRITISH GAS BUSINESS,96943,850.50
DEPARTMENT OF ENERGY AND CLIMATE CHANGE,THE COAL AUTHORITY,11/12/2015,M/W POWER COSTS,MINE WATER TREATMENT SCHEMES,ENERGY&UTILITIES-ELECTRICITY,BRITISH GAS BUSINESS,96943,393.58
DEPARTMENT OF ENERGY AND CLIMATE CHANGE,THE COAL AUTHORITY,11/12/2015,M/W POWER COSTS,MINE WATER TREATMENT SCHEMES,ENERGY&UTILITIES-ELECTRICITY,BRITISH GAS BUSINESS,96943,7.95
DEPARTMENT OF ENERGY AND CLIMATE CHANGE,THE COAL AUTHORITY,11/12/2015,M/W POWER COSTS,MINE WATER TREATMENT SCHEMES,ENERGY&UTILITIES-ELECTRICITY,BRITISH GAS BUSINESS,96943,7506.99
DEPARTMENT OF ENERGY AND CLIMATE CHANGE,THE COAL AUTHORITY,11/12/2015,M/W POWER COSTS,MINE WATER TREATMENT SCHEMES,ENERGY&UTILITIES-ELECTRICITY,BRITISH GAS BUSINESS,96943,647.97
DEPARTMENT OF ENERGY AND CLIMATE CHANGE,THE COAL AUTHORITY,11/12/2015,M/W POWER COSTS,MINE WATER TREATMENT SCHEMES,ENERGY&UTILITIES-ELECTRICITY,BRITISH GAS BUSINESS,96943,2567.39
DEPARTMENT OF ENERGY AND CLIMATE CHANGE,THE COAL AUTHORITY,11/12/2015,M/W POWER COSTS,MINE WATER TREATMENT SCHEMES,ENERGY&UTILITIES-ELECTRICITY,BRITISH GAS BUSINESS,96943,686.18
DEPARTMENT OF ENERGY AND CLIMATE CHANGE,THE COAL AUTHORITY,11/12/2015,M/W POWER COSTS,MINE WATER TREATMENT SCHEMES,ENERGY&UTILITIES-ELECTRICITY,BRITISH GAS BUSINESS,96943,1671.59
DEPARTMENT OF ENERGY AND CLIMATE CHANGE,THE COAL AUTHORITY,11/12/2015,M/W POWER COSTS,MINE WATER TREATMENT SCHEMES,ENERGY&UTILITIES-ELECTRICITY,BRITISH GAS BUSINESS,96943,88.08
DEPARTMENT OF ENERGY AND CLIMATE CHANGE,THE COAL AUTHORITY,11/12/2015,M/W POWER COSTS,MINE WATER TREATMENT SCHEMES,ENERGY&UTILITIES-ELECTRICITY,BRITISH GAS BUSINESS,96943,507.47
DEPARTMENT OF ENERGY AND CLIMATE CHANGE,THE COAL AUTHORITY,11/12/2015,M/W POWER COSTS,MINE WATER TREATMENT SCHEMES,ENERGY&UTILITIES-ELECTRICITY,BRITISH GAS BUSINESS,96943,905.96
DEPARTMENT OF ENERGY AND CLIMATE CHANGE,THE COAL AUTHORITY,11/12/2015,M/W POWER COSTS,MINE WATER TREATMENT SCHEMES,ENERGY&UTILITIES-ELECTRICITY,BRITISH GAS BUSINESS,96943,773.52
DEPARTMENT OF ENERGY AND CLIMATE CHANGE,THE COAL AUTHORITY,11/12/2015,M/W POWER COSTS,MINE WATER TREATMENT SCHEMES,ENERGY&UTILITIES-ELECTRICITY,BRITISH GAS BUSINESS,96946,69.18
DEPARTMENT OF ENERGY AND CLIMATE CHANGE,THE COAL AUTHORITY,15/12/2015,M/W POWER COSTS,MINE WATER TREATMENT SCHEMES,ENERGY&UTILITIES-ELECTRICITY,EDF ENERGY,96941,1069.72
DEPARTMENT OF ENERGY AND CLIMATE CHANGE,THE COAL AUTHORITY,15/12/2015,M/W POWER COSTS,MINE WATER TREATMENT SCHEMES,ENERGY&UTILITIES-ELECTRICITY,EDF ENERGY,96941,3983.29
DEPARTMENT OF ENERGY AND CLIMATE CHANGE,THE COAL AUTHORITY,15/12/2015,M/W POWER COSTS,MINE WATER TREATMENT SCHEMES,ENERGY&UTILITIES-ELECTRICITY,EDF ENERGY,96941,5420.19
DEPARTMENT OF ENERGY AND CLIMATE CHANGE,THE COAL AUTHORITY,15/12/2015,M/W POWER COSTS,MINE WATER TREATMENT SCHEMES,ENERGY&UTILITIES-ELECTRICITY,EDF ENERGY,96941,9760.29
DEPARTMENT OF ENERGY AND CLIMATE CHANGE,THE COAL AUTHORITY,15/12/2015,M/W POWER COSTS,MINE WATER TREATMENT SCHEMES,ENERGY&UTILITIES-ELECTRICITY,EDF ENERGY,96941,3389.97
DEPARTMENT OF ENERGY AND CLIMATE CHANGE,THE COAL AUTHORITY,15/12/2015,M/W POWER COSTS,MINE WATER TREATMENT SCHEMES,ENERGY&UTILITIES-ELECTRICITY,EDF ENERGY,96941,14710.58
DEPARTMENT OF ENERGY AND CLIMATE CHANGE,THE COAL AUTHORITY,15/12/2015,M/W POWER COSTS,MINE WATER TREATMENT SCHEMES,ENERGY&UTILITIES-ELECTRICITY,EDF ENERGY,96941,6150.17
DEPARTMENT OF ENERGY AND CLIMATE CHANGE,THE COAL AUTHORITY,15/12/2015,M/W POWER COSTS,MINE WATER TREATMENT SCHEMES,ENERGY&UTILITIES-ELECTRICITY,EDF ENERGY,96941,4342.38
DEPARTMENT OF ENERGY AND CLIMATE CHANGE,THE COAL AUTHORITY,15/12/2015,M/W POWER COSTS,MINE WATER TREATMENT SCHEMES,ENERGY&UTILITIES-ELECTRICITY,EDF ENERGY,96941,7238.42
DEPARTMENT OF ENERGY AND CLIMATE CHANGE,THE COAL AUTHORITY,15/12/2015,M/W POWER COSTS,MINE WATER TREATMENT SCHEMES,ENERGY&UTILITIES-ELECTRICITY,EDF ENERGY,96941,12573.88
DEPARTMENT OF ENERGY AND CLIMATE CHANGE,THE COAL AUTHORITY,15/12/2015,M/W POWER COSTS,MINE WATER TREATMENT SCHEMES,ENERGY&UTILITIES-ELECTRICITY,EDF ENERGY,96941,10125.41
DEPARTMENT OF ENERGY AND CLIMATE CHANGE,THE COAL AUTHORITY,15/12/2015,M/W POWER COSTS,MINE WATER TREATMENT SCHEMES,ENERGY&UTILITIES-ELECTRICITY,EDF ENERGY,96941,4277.01
DEPARTMENT OF ENERGY AND CLIMATE CHANGE,THE COAL AUTHORITY,15/12/2015,M/W POWER COSTS,MINE WATER TREATMENT SCHEMES,ENERGY&UTILITIES-ELECTRICITY,EDF ENERGY,96941,11625.63
DEPARTMENT OF ENERGY AND CLIMATE CHANGE,THE COAL AUTHORITY,15/12/2015,M/W POWER COSTS,MINE WATER TREATMENT SCHEMES,ENERGY&UTILITIES-ELECTRICITY,EDF ENERGY,96941,21953.26
DEPARTMENT OF ENERGY AND CLIMATE CHANGE,THE COAL AUTHORITY,15/12/2015,M/W POWER COSTS,MINE WATER TREATMENT SCHEMES,ENERGY&UTILITIES-ELECTRICITY,EDF ENERGY,96942,-349.03
DEPARTMENT OF ENERGY AND CLIMATE CHANGE,THE COAL AUTHORITY,07/12/2015,M/W RENTS PAYABLE,MINE WATER TREATMENT SCHEMES,FACILITIES-BUILDING MANAGEMENT,NETWORK RAIL,96834,1799.61
DEPARTMENT OF ENERGY AND CLIMATE CHANGE,THE COAL AUTHORITY,11/12/2015,M/W RESEARCH AND DEVELOPMENT,MINE WATER TREATMENT SCHEMES,ENERGY&UTILITIES-ELECTRICITY,BRITISH GAS BUSINESS,96943,317.17
DEPARTMENT OF ENERGY AND CLIMATE CHANGE,THE COAL AUTHORITY,11/12/2015,M/W RESEARCH AND DEVELOPMENT,MINE WATER TREATMENT SCHEMES,ENERGY&UTILITIES-ELECTRICITY,BRITISH GAS BUSINESS,96943,263.23
DEPARTMENT OF ENERGY AND CLIMATE CHANGE,THE COAL AUTHORITY,30/11/2015,M/W SCOPING/FEASIBILITY/CONCEP,MINE WATER TREATMENT SCHEMES,PROF SER TECH-ENGINEERING SER,MOTT MACDONALD LTD,96639,2844.10
DEPARTMENT OF ENERGY AND CLIMATE CHANGE,THE COAL AUTHORITY,02/12/2015,M/W SITE SURVEY WORK,MINE WATER TREATMENT SCHEMES,CONSTRUCTION-CNSTRN SER PROVDR,MASON LAND SURVEYS LTD,96593,4487.60
DEPARTMENT OF ENERGY AND CLIMATE CHANGE,THE COAL AUTHORITY,02/12/2015,M/W TELECOMS & TELEMETRY,MINE WATER TREATMENT SCHEMES,ICT-TELECOMS,O2 (UK) LIMITED,96572,12.50
DEPARTMENT OF ENERGY AND CLIMATE CHANGE,THE COAL AUTHORITY,02/12/2015,M/W TELECOMS & TELEMETRY,MINE WATER TREATMENT SCHEMES,ICT-TELECOMS,O2 (UK) LIMITED,96573,12.50
DEPARTMENT OF ENERGY AND CLIMATE CHANGE,THE COAL AUTHORITY,02/12/2015,M/W TELECOMS & TELEMETRY,MINE WATER TREATMENT SCHEMES,ICT-TELECOMS,O2 (UK) LIMITED,96575,12.50
DEPARTMENT OF ENERGY AND CLIMATE CHANGE,THE COAL AUTHORITY,17/12/2015,M/W TELECOMS & TELEMETRY,MINE WATER TREATMENT SCHEMES,ICT-TELECOMS,WYLESS PLC,96965,50.00
DEPARTMENT OF ENERGY AND CLIMATE CHANGE,THE COAL AUTHORITY,02/12/2015,M/W WATER CHARGES,MINE WATER TREATMENT SCHEMES,ENERGY&UTILITIES-WATER,NORTHUMBRIAN WATER LIMITED,96587,62.05
DEPARTMENT OF ENERGY AND CLIMATE CHANGE,THE COAL AUTHORITY,03/12/2015,M/W WATER CHARGES,MINE WATER TREATMENT SCHEMES,ENERGY&UTILITIES-WATER,NORTHUMBRIAN WATER LIMITED,96684,542.57
DEPARTMENT OF ENERGY AND CLIMATE CHANGE,THE COAL AUTHORITY,08/12/2015,M/W WATER CHARGES,MINE WATER TREATMENT SCHEMES,ENERGY&UTILITIES-WATER,DWR CYMRU WELSH WATER,96735,53.71
DEPARTMENT OF ENERGY AND CLIMATE CHANGE,THE COAL AUTHORITY,15/12/2015,M/W WATER CHARGES,MINE WATER TREATMENT SCHEMES,ENERGY&UTILITIES-WATER,BUSINESS STREAM,97006,4344.37
DEPARTMENT OF ENERGY AND CLIMATE CHANGE,THE COAL AUTHORITY,03/10/2015,MEETINGS,MINE WATER TREATMENT SCHEMES,TRAVEL&EVENTS-EVENT ORGNSTN,RBS GPC September 2015,97159,100.00
DEPARTMENT OF ENERGY AND CLIMATE CHANGE,THE COAL AUTHORITY,27/11/2015,MEMBERSHIP SUBSCRIPTIONS,MINE WATER TREATMENT SCHEMES,PERSONNEL RLTD-STAFF SUBSCRPTN,CONSTRUCTED WETLAND ASSOCIATIO,96288,600.00
DEPARTMENT OF ENERGY AND CLIMATE CHANGE,THE COAL AUTHORITY,01/12/2015,MILEAGE PAYMENTS,MINE WATER TREATMENT SCHEMES,FUELS/LUBRCNT/GAS-FUELS,STAFF EXPENSES CONTROL,96294,26.05
DEPARTMENT OF ENERGY AND CLIMATE CHANGE,THE COAL AUTHORITY,08/12/2015,MILEAGE PAYMENTS,MINE WATER TREATMENT SCHEMES,FUELS/LUBRCNT/GAS-FUELS,STAFF EXPENSES CONTROL,96652,29.70
DEPARTMENT OF ENERGY AND CLIMATE CHANGE,THE COAL AUTHORITY,08/12/2015,MILEAGE PAYMENTS,MINE WATER TREATMENT SCHEMES,FUELS/LUBRCNT/GAS-FUELS,STAFF EXPENSES CONTROL,96652,3.50
DEPARTMENT OF ENERGY AND CLIMATE CHANGE,THE COAL AUTHORITY,14/12/2015,MILEAGE PAYMENTS,MINE WATER TREATMENT SCHEMES,FUELS/LUBRCNT/GAS-FUELS,STAFF EXPENSES CONTROL,96819,107.10
DEPARTMENT OF ENERGY AND CLIMATE CHANGE,THE COAL AUTHORITY,04/12/2015,MONITORING & FLOW MEASUREMENT,MINE WATER TREATMENT SCHEMES,PROF SER-ENVIRONMENTAL SRVICES,VALEPORT,96883,1968.00
DEPARTMENT OF ENERGY AND CLIMATE CHANGE,THE COAL AUTHORITY,08/12/2015,MONITORING & FLOW MEASUREMENT,MINE WATER TREATMENT SCHEMES,PROF SER-ENVIRONMENTAL SRVICES,CAMLAB LIMITED,96802,9892.75
DEPARTMENT OF ENERGY AND CLIMATE CHANGE,THE COAL AUTHORITY,03/09/2015,OFFICE FURNITURE,MINE WATER TREATMENT SCHEMES,OFFICE SOLUTIONS-OFFCE SPPLIES,RBS GPC August 2015,97120,4.15
DEPARTMENT OF ENERGY AND CLIMATE CHANGE,THE COAL AUTHORITY,03/11/2015,OFFICE MACHINERY PURCHASED,MINE WATER TREATMENT SCHEMES,ENGINEERING GOODS-TOOLS,RBS GPC October 2015,97160,7.83
DEPARTMENT OF ENERGY AND CLIMATE CHANGE,THE COAL AUTHORITY,03/09/2015,PROFESSIONAL SUBSCRIPTIONS,MINE WATER TREATMENT SCHEMES,PERSONNEL RLTD-STAFF SUBSCRPTN,RBS GPC August 2015,97120,218.00
DEPARTMENT OF ENERGY AND CLIMATE CHANGE,THE COAL AUTHORITY,30/11/2015,PROJECT MANAGEMENT-BOREHOLES,MINE WATER TREATMENT SCHEMES,PROF SER TECH-ENGINEERING SER,JMC ENGINEERING (UK) LTD,96414,148.00
DEPARTMENT OF ENERGY AND CLIMATE CHANGE,THE COAL AUTHORITY,30/11/2015,PROJECT MANAGEMENT-BOREHOLES,MINE WATER TREATMENT SCHEMES,PROF SER TECH-ENGINEERING SER,JMC ENGINEERING (UK) LTD,96413,917.60
DEPARTMENT OF ENERGY AND CLIMATE CHANGE,THE COAL AUTHORITY,30/11/2015,PROJECT MANAGEMENT-BOREHOLES,MINE WATER TREATMENT SCHEMES,PROF SER CNSLTNCY-TCHNL CNSLTY,JMC ENGINEERING (UK) LTD,96407,14860.80
DEPARTMENT OF ENERGY AND CLIMATE CHANGE,THE COAL AUTHORITY,02/12/2015,PROPERTY RATES PAYABLE,MINE WATER TREATMENT SCHEMES,ENERGY&UTILITIES-ELECTRICITY,BRITISH GAS BUSINESS,96611,34.51
DEPARTMENT OF ENERGY AND CLIMATE CHANGE,THE COAL AUTHORITY,11/12/2015,R&D-EXTERNAL COSTS,MINE WATER TREATMENT SCHEMES,PROF SER TECH-FORENSIC/LAB SER,ENVIRONMENTAL SCIENTIFICS GRP,96835,1089.88
DEPARTMENT OF ENERGY AND CLIMATE CHANGE,THE COAL AUTHORITY,03/09/2015,STATIONERY,MINE WATER TREATMENT SCHEMES,OFFICE SOLUTIONS-OFFCE SPPLIES,RBS GPC August 2015,97120,53.75
DEPARTMENT OF ENERGY AND CLIMATE CHANGE,THE COAL AUTHORITY,30/11/2015,SUB PUMP STTN MAINTENANCE-PWER,MINE WATER TREATMENT SCHEMES,ENERGY&UTILITIES-ELECTRICITY,BRITISH GAS BUSINESS,96643,-31.84
DEPARTMENT OF ENERGY AND CLIMATE CHANGE,THE COAL AUTHORITY,03/10/2015,SUBSISTENCE ALLOWANCES,MINE WATER TREATMENT SCHEMES,FACILITIES - FOOD,RBS GPC September 2015,97159,136.92
DEPARTMENT OF ENERGY AND CLIMATE CHANGE,THE COAL AUTHORITY,03/11/2015,SUBSISTENCE ALLOWANCES,MINE WATER TREATMENT SCHEMES,FACILITIES - FOOD,RBS GPC October 2015,97160,583.49
DEPARTMENT OF ENERGY AND CLIMATE CHANGE,THE COAL AUTHORITY,03/11/2015,SUBSISTENCE ALLOWANCES,MINE WATER TREATMENT SCHEMES,TRAVEL&EVENTS-OTHER,RBS GPC October 2015,97160,7.44
DEPARTMENT OF ENERGY AND CLIMATE CHANGE,THE COAL AUTHORITY,03/11/2015,SUBSISTENCE ALLOWANCES,MINE WATER TREATMENT SCHEMES,FACILITIES - FOOD,RBS GPC October 2015,97160,41.73
DEPARTMENT OF ENERGY AND CLIMATE CHANGE,THE COAL AUTHORITY,03/11/2015,SUBSISTENCE ALLOWANCES,MINE WATER TREATMENT SCHEMES,FACILITIES - FOOD,RBS GPC October 2015,97160,8.25
DEPARTMENT OF ENERGY AND CLIMATE CHANGE,THE COAL AUTHORITY,01/12/2015,SUBSISTENCE ALLOWANCES,MINE WATER TREATMENT SCHEMES,FACILITIES - FOOD,STAFF EXPENSES CONTROL,96292,3.10
DEPARTMENT OF ENERGY AND CLIMATE CHANGE,THE COAL AUTHORITY,08/12/2015,SUBSISTENCE ALLOWANCES,MINE WATER TREATMENT SCHEMES,FACILITIES - FOOD,STAFF EXPENSES CONTROL,96652,1.96
DEPARTMENT OF ENERGY AND CLIMATE CHANGE,THE COAL AUTHORITY,09/12/2015,SUBSISTENCE ALLOWANCES,MINE WATER TREATMENT SCHEMES,FACILITIES - FOOD,STAFF EXPENSES CONTROL,96691,2.85
DEPARTMENT OF ENERGY AND CLIMATE CHANGE,THE COAL AUTHORITY,14/12/2015,SUBSISTENCE ALLOWANCES,MINE WATER TREATMENT SCHEMES,FACILITIES - FOOD,STAFF EXPENSES CONTROL,96819,35.45
DEPARTMENT OF ENERGY AND CLIMATE CHANGE,THE COAL AUTHORITY,03/09/2015,TRAINING AND EDUCATION,MINE WATER TREATMENT SCHEMES,PROF SER LRNG&DEV-STAFF TRNING,RBS GPC August 2015,97120,195.00
DEPARTMENT OF ENERGY AND CLIMATE CHANGE,THE COAL AUTHORITY,03/10/2015,TRAINING AND EDUCATION,MINE WATER TREATMENT SCHEMES,PROF SER LRNG&DEV-STAFF TRNING,RBS GPC September 2015,97159,435.00
DEPARTMENT OF ENERGY AND CLIMATE CHANGE,THE COAL AUTHORITY,03/11/2015,TRAINING AND EDUCATION,MINE WATER TREATMENT SCHEMES,PROF SER LRNG&DEV-STAFF TRNING,RBS GPC October 2015,97160,195.00
DEPARTMENT OF ENERGY AND CLIMATE CHANGE,THE COAL AUTHORITY,01/12/2015,COMMISSION CHARGES-E-COMMERCE,MINING INFORMATION COMMERCIAL,PROF SER FNCL-BANKING&INVSTMNT,WORLDPAY,96648,1425.77
DEPARTMENT OF ENERGY AND CLIMATE CHANGE,THE COAL AUTHORITY,03/12/2015,COMMISSION CHARGES-E-COMMERCE,MINING INFORMATION COMMERCIAL,PROF SER FNCL-BANKING&INVSTMNT,WORLDPAY LIMITED,96531,955.49
DEPARTMENT OF ENERGY AND CLIMATE CHANGE,THE COAL AUTHORITY,01/12/2015,COURIER SERVICES,MINING INFORMATION COMMERCIAL,FACILITIES - SECURITY,SECURITY PLUS LIMITED,96279,51.75
DEPARTMENT OF ENERGY AND CLIMATE CHANGE,THE COAL AUTHORITY,30/11/2015,CURR YR ADD-INTNGBLE INFO TECH,MINING INFORMATION COMMERCIAL,ICT-SYSTEMS DELIVERY,SCISYS UK LTD,96505,20664.00
DEPARTMENT OF ENERGY AND CLIMATE CHANGE,THE COAL AUTHORITY,30/11/2015,HOTEL ACCOMMODATION,MINING INFORMATION COMMERCIAL,TRAVEL&EVENTS-HOTELS,REDFERN TRAVEL LTD,96662,250.39
DEPARTMENT OF ENERGY AND CLIMATE CHANGE,THE COAL AUTHORITY,03/10/2015,IT-APPLICATIONS MANAGEMENT,MINING INFORMATION COMMERCIAL,ICT-SOFTWARE,RBS GPC September 2015,97159,164.76
DEPARTMENT OF ENERGY AND CLIMATE CHANGE,THE COAL AUTHORITY,09/12/2015,IT-APPLICATIONS MANAGEMENT,MINING INFORMATION COMMERCIAL,ICT-SYSTEMS DELIVERY,SCISYS UK LTD,96826,1384.37
DEPARTMENT OF ENERGY AND CLIMATE CHANGE,THE COAL AUTHORITY,09/12/2015,IT-APPLICATIONS MANAGEMENT,MINING INFORMATION COMMERCIAL,ICT-SYSTEMS DELIVERY,SCISYS UK LTD,96827,6280.00
DEPARTMENT OF ENERGY AND CLIMATE CHANGE,THE COAL AUTHORITY,09/12/2015,IT-APPLICATIONS MANAGEMENT,MINING INFORMATION COMMERCIAL,ICT-SYSTEMS DELIVERY,SCISYS UK LTD,96828,6280.00
DEPARTMENT OF ENERGY AND CLIMATE CHANGE,THE COAL AUTHORITY,10/12/2015,IT-APPLICATIONS MANAGEMENT,MINING INFORMATION COMMERCIAL,ICT-SYSTEMS DELIVERY,SCISYS UK LTD,96825,474.60
DEPARTMENT OF ENERGY AND CLIMATE CHANGE,THE COAL AUTHORITY,03/09/2015,MEETINGS,MINING INFORMATION COMMERCIAL,TRAVEL&EVENTS-EVENT ORGNSTN,RBS GPC August 2015,97120,375.00
DEPARTMENT OF ENERGY AND CLIMATE CHANGE,THE COAL AUTHORITY,27/11/2015,PAYMENTS TO AGENCIES FOR TEMPS,MINING INFORMATION COMMERCIAL,PROF SER TMP STFF-TEMP WRKERS,KEY PERSONNEL SOLUTIONS LTD,96328,504.47
DEPARTMENT OF ENERGY AND CLIMATE CHANGE,THE COAL AUTHORITY,27/11/2015,PAYMENTS TO AGENCIES FOR TEMPS,MINING INFORMATION COMMERCIAL,PROF SER TMP STFF-TEMP WRKERS,KEY PERSONNEL SOLUTIONS LTD,96328,517.70
DEPARTMENT OF ENERGY AND CLIMATE CHANGE,THE COAL AUTHORITY,27/11/2015,PAYMENTS TO AGENCIES FOR TEMPS,MINING INFORMATION COMMERCIAL,PROF SER TMP STFF-TEMP WRKERS,KEY PERSONNEL SOLUTIONS LTD,96328,18.09
DEPARTMENT OF ENERGY AND CLIMATE CHANGE,THE COAL AUTHORITY,27/11/2015,PAYMENTS TO AGENCIES FOR TEMPS,MINING INFORMATION COMMERCIAL,PROF SER TMP STFF-TEMP WRKERS,KEY PERSONNEL SOLUTIONS LTD,96328,13.08
DEPARTMENT OF ENERGY AND CLIMATE CHANGE,THE COAL AUTHORITY,04/12/2015,PAYMENTS TO AGENCIES FOR TEMPS,MINING INFORMATION COMMERCIAL,PROF SER TMP STFF-TEMP WRKERS,KEY PERSONNEL SOLUTIONS LTD,96602,420.84
DEPARTMENT OF ENERGY AND CLIMATE CHANGE,THE COAL AUTHORITY,04/12/2015,PAYMENTS TO AGENCIES FOR TEMPS,MINING INFORMATION COMMERCIAL,PROF SER TMP STFF-TEMP WRKERS,KEY PERSONNEL SOLUTIONS LTD,96602,492.32
DEPARTMENT OF ENERGY AND CLIMATE CHANGE,THE COAL AUTHORITY,11/12/2015,PAYMENTS TO AGENCIES FOR TEMPS,MINING INFORMATION COMMERCIAL,PROF SER TMP STFF-TEMP WRKERS,KEY PERSONNEL SOLUTIONS LTD,96864,457.58
DEPARTMENT OF ENERGY AND CLIMATE CHANGE,THE COAL AUTHORITY,11/12/2015,PAYMENTS TO AGENCIES FOR TEMPS,MINING INFORMATION COMMERCIAL,PROF SER TMP STFF-TEMP WRKERS,KEY PERSONNEL SOLUTIONS LTD,96864,401.87
DEPARTMENT OF ENERGY AND CLIMATE CHANGE,THE COAL AUTHORITY,03/11/2015,TRAINING AND EDUCATION,MINING INFORMATION COMMERCIAL,PROF SER LRNG&DEV-STAFF TRNING,RBS GPC October 2015,97160,430.00
DEPARTMENT OF ENERGY AND CLIMATE CHANGE,THE COAL AUTHORITY,31/10/2015,CAR HIRE,MINING INFORMATION WHOLESALE,TRAVEL&EVENTS-VEHICLE HIRE,ENTERPRISE RENT A CAR,96306,46.70
DEPARTMENT OF ENERGY AND CLIMATE CHANGE,THE COAL AUTHORITY,05/11/2015,CAR HIRE,MINING INFORMATION WHOLESALE,TRAVEL&EVENTS-VEHICLE HIRE,ENTERPRISE RENT A CAR,96316,24.60
DEPARTMENT OF ENERGY AND CLIMATE CHANGE,THE COAL AUTHORITY,30/11/2015,CHILDCARE VOUCHERS,MINING INFORMATION WHOLESALE,PERSONNEL RLTD-STAFF CHILDCARE,FIDELITI LIMITED,96318,200.00
DEPARTMENT OF ENERGY AND CLIMATE CHANGE,THE COAL AUTHORITY,30/11/2015,CURR YR ADD-INTNGBLE INFO TECH,MINING INFORMATION WHOLESALE,ICT-SYSTEMS DELIVERY,SCISYS UK LTD,96505,20664.00
DEPARTMENT OF ENERGY AND CLIMATE CHANGE,THE COAL AUTHORITY,30/11/2015,FARES - RAIL,MINING INFORMATION WHOLESALE,TRAVEL&EVENTS-RAIL,REDFERN TRAVEL LTD,96660,141.10
DEPARTMENT OF ENERGY AND CLIMATE CHANGE,THE COAL AUTHORITY,09/12/2015,IT-APPLICATIONS MANAGEMENT,MINING INFORMATION WHOLESALE,ICT-SYSTEMS DELIVERY,SCISYS UK LTD,96826,1384.37
DEPARTMENT OF ENERGY AND CLIMATE CHANGE,THE COAL AUTHORITY,07/12/2015,LEGAL COSTS,MINING INFORMATION WHOLESALE,PROF SER-LEGAL SERVICES,DLA PIPER UK LLP,96723,286.00
DEPARTMENT OF ENERGY AND CLIMATE CHANGE,THE COAL AUTHORITY,01/12/2015,MILEAGE PAYMENTS,MINING INFORMATION WHOLESALE,FUELS/LUBRCNT/GAS-FUELS,STAFF EXPENSES CONTROL,96293,12.60
DEPARTMENT OF ENERGY AND CLIMATE CHANGE,THE COAL AUTHORITY,16/12/2015,PROFESSIONAL SUBSCRIPTIONS,MINING INFORMATION WHOLESALE,PERSONNEL RLTD-STAFF SUBSCRPTN,RICS,96889,172.00
DEPARTMENT OF ENERGY AND CLIMATE CHANGE,THE COAL AUTHORITY,16/12/2015,PROFESSIONAL SUBSCRIPTIONS,MINING INFORMATION WHOLESALE,PERSONNEL RLTD-STAFF SUBSCRPTN,RICS,96888,1169.00
DEPARTMENT OF ENERGY AND CLIMATE CHANGE,THE COAL AUTHORITY,03/11/2015,SUBSISTENCE ALLOWANCES,MINING INFORMATION WHOLESALE,FACILITIES - FOOD,RBS GPC October 2015,97160,85.20
DEPARTMENT OF ENERGY AND CLIMATE CHANGE,THE COAL AUTHORITY,03/09/2015,TRAINING AND EDUCATION,MINING INFORMATION WHOLESALE,PROF SER LRNG&DEV-STAFF TRNING,RBS GPC August 2015,97120,415.29
DEPARTMENT OF ENERGY AND CLIMATE CHANGE,THE COAL AUTHORITY,03/11/2015,TRAINING AND EDUCATION,MINING INFORMATION WHOLESALE,PROF SER LRNG&DEV-STAFF TRNING,RBS GPC October 2015,97160,430.00
DEPARTMENT OF ENERGY AND CLIMATE CHANGE,THE COAL AUTHORITY,30/11/2015,CHILDCARE VOUCHERS,PERMISSIONS,PERSONNEL RLTD-STAFF CHILDCARE,FIDELITI LIMITED,96318,243.00
DEPARTMENT OF ENERGY AND CLIMATE CHANGE,THE COAL AUTHORITY,01/12/2015,COMMISSION CHARGES-E-COMMERCE,PERMISSIONS,PROF SER FNCL-BANKING&INVSTMNT,WORLDPAY,96648,599.78
DEPARTMENT OF ENERGY AND CLIMATE CHANGE,THE COAL AUTHORITY,03/12/2015,COMMISSION CHARGES-E-COMMERCE,PERMISSIONS,PROF SER FNCL-BANKING&INVSTMNT,WORLDPAY LIMITED,96532,6.38
DEPARTMENT OF ENERGY AND CLIMATE CHANGE,THE COAL AUTHORITY,25/11/2015,CONSULTANCY,PERMISSIONS,PROF SER TMP STFF-SPCLST CNTRT,WYG ENV PLANNING TRANSPORT LTD,96964,1330.00
DEPARTMENT OF ENERGY AND CLIMATE CHANGE,THE COAL AUTHORITY,30/11/2015,CONSULTANCY,PERMISSIONS,PROF SER CNSLTNCY-PROP/CNSTRCN,JMC ENGINEERING (UK) LTD,96409,3971.20
DEPARTMENT OF ENERGY AND CLIMATE CHANGE,THE COAL AUTHORITY,30/11/2015,HOTEL ACCOMMODATION,PERMISSIONS,TRAVEL&EVENTS-HOTELS,REDFERN TRAVEL LTD,96662,56.17
DEPARTMENT OF ENERGY AND CLIMATE CHANGE,THE COAL AUTHORITY,01/12/2015,MILEAGE PAYMENTS,PERMISSIONS,FUELS/LUBRCNT/GAS-FUELS,STAFF EXPENSES CONTROL,96291,56.00
DEPARTMENT OF ENERGY AND CLIMATE CHANGE,THE COAL AUTHORITY,03/11/2015,SUBSISTENCE ALLOWANCES,PERMISSIONS,FACILITIES - FOOD,RBS GPC October 2015,97160,33.76
DEPARTMENT OF ENERGY AND CLIMATE CHANGE,THE COAL AUTHORITY,30/11/2015,CURR YR ADD-INTNGBLE INFO TECH,PLANNING & LOCAL AUTH LIAISON,ICT-SYSTEMS DELIVERY,SCISYS UK LTD,96505,20664.00
DEPARTMENT OF ENERGY AND CLIMATE CHANGE,THE COAL AUTHORITY,11/12/2015,CURR YR ADD-INTNGBLE INFO TECH,PLANNING & LOCAL AUTH LIAISON,ICT-SYSTEMS DELIVERY,SCISYS UK LTD,96988,900.00
DEPARTMENT OF ENERGY AND CLIMATE CHANGE,THE COAL AUTHORITY,30/11/2015,FARES - RAIL,PLANNING & LOCAL AUTH LIAISON,TRAVEL&EVENTS-RAIL,REDFERN TRAVEL LTD,96660,165.73
DEPARTMENT OF ENERGY AND CLIMATE CHANGE,THE COAL AUTHORITY,04/12/2015,FARES - RAIL,PLANNING & LOCAL AUTH LIAISON,TRAVEL&EVENTS-RAIL,STAFF EXPENSES CONTROL,96544,3.50
DEPARTMENT OF ENERGY AND CLIMATE CHANGE,THE COAL AUTHORITY,30/11/2015,HOTEL ACCOMMODATION,PLANNING & LOCAL AUTH LIAISON,TRAVEL&EVENTS-HOTELS,REDFERN TRAVEL LTD,96662,76.17
DEPARTMENT OF ENERGY AND CLIMATE CHANGE,THE COAL AUTHORITY,09/12/2015,IT-APPLICATIONS MANAGEMENT,PLANNING & LOCAL AUTH LIAISON,ICT-SYSTEMS DELIVERY,SCISYS UK LTD,96826,276.87
DEPARTMENT OF ENERGY AND CLIMATE CHANGE,THE COAL AUTHORITY,02/12/2015,MEMBERSHIP SUBSCRIPTIONS,PLANNING & LOCAL AUTH LIAISON,PERSONNEL RLTD-STAFF SUBSCRPTN,THOMSON REUTERS (PROFESSIONAL),96887,737.00
DEPARTMENT OF ENERGY AND CLIMATE CHANGE,THE COAL AUTHORITY,04/12/2015,MEMBERSHIP SUBSCRIPTIONS,PLANNING & LOCAL AUTH LIAISON,PERSONNEL RLTD-STAFF SUBSCRPTN,PETER HAKES,96666,120.00
DEPARTMENT OF ENERGY AND CLIMATE CHANGE,THE COAL AUTHORITY,04/12/2015,MILEAGE PAYMENTS,PLANNING & LOCAL AUTH LIAISON,FUELS/LUBRCNT/GAS-FUELS,STAFF EXPENSES CONTROL,96544,30.60
DEPARTMENT OF ENERGY AND CLIMATE CHANGE,THE COAL AUTHORITY,03/11/2015,SUBSISTENCE ALLOWANCES,PLANNING & LOCAL AUTH LIAISON,FACILITIES - FOOD,RBS GPC October 2015,97160,10.43
DEPARTMENT OF ENERGY AND CLIMATE CHANGE,THE COAL AUTHORITY,04/12/2015,SUBSISTENCE ALLOWANCES,PLANNING & LOCAL AUTH LIAISON,FACILITIES - FOOD,STAFF EXPENSES CONTROL,96544,8.48
DEPARTMENT OF ENERGY AND CLIMATE CHANGE,THE COAL AUTHORITY,04/12/2015,INCIDENTALS,PROCUREMENT,VEHICLES-FLEET MANAGEMENT,STAFF EXPENSES CONTROL,96545,9.58
DEPARTMENT OF ENERGY AND CLIMATE CHANGE,THE COAL AUTHORITY,04/12/2015,INCIDENTALS,PROCUREMENT,VEHICLES-FLEET MANAGEMENT,STAFF EXPENSES CONTROL,96546,13.33
DEPARTMENT OF ENERGY AND CLIMATE CHANGE,THE COAL AUTHORITY,04/12/2015,MILEAGE PAYMENTS,PROCUREMENT,FUELS/LUBRCNT/GAS-FUELS,STAFF EXPENSES CONTROL,96545,71.40
DEPARTMENT OF ENERGY AND CLIMATE CHANGE,THE COAL AUTHORITY,04/12/2015,MILEAGE PAYMENTS,PROCUREMENT,FUELS/LUBRCNT/GAS-FUELS,STAFF EXPENSES CONTROL,96546,418.20
DEPARTMENT OF ENERGY AND CLIMATE CHANGE,THE COAL AUTHORITY,04/12/2015,SUBSISTENCE ALLOWANCES,PROCUREMENT,FACILITIES - FOOD,STAFF EXPENSES CONTROL,96545,39.40
DEPARTMENT OF ENERGY AND CLIMATE CHANGE,THE COAL AUTHORITY,04/12/2015,SUBSISTENCE ALLOWANCES,PROCUREMENT,FACILITIES - FOOD,STAFF EXPENSES CONTROL,96546,13.34
DEPARTMENT OF ENERGY AND CLIMATE CHANGE,THE COAL AUTHORITY,30/11/2015,CONSULTANCY - PROPERTY SALES,PROPERTY MANAGEMENT & SALES,PROF SER-OPERATIONAL SERVICES,BUTTERS JOHN BEE,96444,775.00
DEPARTMENT OF ENERGY AND CLIMATE CHANGE,THE COAL AUTHORITY,30/11/2015,CONSULTANCY - PROPERTY SALES,PROPERTY MANAGEMENT & SALES,PROF SER-OPERATIONAL SERVICES,BUTTERS JOHN BEE,96445,1770.00
DEPARTMENT OF ENERGY AND CLIMATE CHANGE,THE COAL AUTHORITY,30/11/2015,CONSULTANCY - PROPERTY SALES,PROPERTY MANAGEMENT & SALES,PROF SER-OPERATIONAL SERVICES,BUTTERS JOHN BEE,96446,1770.00
DEPARTMENT OF ENERGY AND CLIMATE CHANGE,THE COAL AUTHORITY,30/11/2015,CONSULTANCY - PROPERTY SALES,PROPERTY MANAGEMENT & SALES,PROF SER-OPERATIONAL SERVICES,BUTTERS JOHN BEE,96447,525.00
DEPARTMENT OF ENERGY AND CLIMATE CHANGE,THE COAL AUTHORITY,30/11/2015,CONSULTANCY - PROPERTY SALES,PROPERTY MANAGEMENT & SALES,PROF SER-OPERATIONAL SERVICES,BUTTERS JOHN BEE,96448,525.00
DEPARTMENT OF ENERGY AND CLIMATE CHANGE,THE COAL AUTHORITY,30/11/2015,CONSULTANCY - PROPERTY SALES,PROPERTY MANAGEMENT & SALES,PROF SER-OPERATIONAL SERVICES,BUTTERS JOHN BEE,96449,775.00
DEPARTMENT OF ENERGY AND CLIMATE CHANGE,THE COAL AUTHORITY,30/11/2015,CONSULTANCY - PROPERTY SALES,PROPERTY MANAGEMENT & SALES,PROF SER-OPERATIONAL SERVICES,BUTTERS JOHN BEE,96450,525.00
DEPARTMENT OF ENERGY AND CLIMATE CHANGE,THE COAL AUTHORITY,30/11/2015,LAND MANAGEMENT-ESTATES,PROPERTY MANAGEMENT & SALES,PROF SER TECH-ENGINEERING SER,MARK N CAREY LIMITED,96770,130.00
DEPARTMENT OF ENERGY AND CLIMATE CHANGE,THE COAL AUTHORITY,16/12/2015,LEGAL FEES - SALES,PROPERTY MANAGEMENT & SALES,PROF SER-LEGAL SERVICES,ANDERSON STRATHERN,97004,39.00
DEPARTMENT OF ENERGY AND CLIMATE CHANGE,THE COAL AUTHORITY,30/11/2015,OTHER CONTRACTOR COSTS,PROPERTY MANAGEMENT & SALES,PROF SER CNSLTNCY-PPM CNSLTNCY,JMC ENGINEERING (UK) LTD,96408,1438.30
DEPARTMENT OF ENERGY AND CLIMATE CHANGE,THE COAL AUTHORITY,07/12/2015,PROPERTY RENTS PAYABLE,PROPERTY MANAGEMENT & SALES,FACILITIES-BUILDING MANAGEMENT,NETWORK RAIL,96955,23.00
DEPARTMENT OF ENERGY AND CLIMATE CHANGE,THE COAL AUTHORITY,07/12/2015,PROPERTY RENTS PAYABLE,PROPERTY MANAGEMENT & SALES,FACILITIES-BUILDING MANAGEMENT,NETWORK RAIL,96954,2.00
DEPARTMENT OF ENERGY AND CLIMATE CHANGE,THE COAL AUTHORITY,07/12/2015,PROPERTY RENTS PAYABLE,PROPERTY MANAGEMENT & SALES,FACILITIES-BUILDING MANAGEMENT,NETWORK RAIL,96953,415.00
DEPARTMENT OF ENERGY AND CLIMATE CHANGE,THE COAL AUTHORITY,07/12/2015,PROPERTY RENTS PAYABLE,PROPERTY MANAGEMENT & SALES,FACILITIES-BUILDING MANAGEMENT,NETWORK RAIL,96881,846.35
DEPARTMENT OF ENERGY AND CLIMATE CHANGE,THE COAL AUTHORITY,09/12/2015,PROPERTY RENTS PAYABLE,PROPERTY MANAGEMENT & SALES,FACILITIES-BUILDING MANAGEMENT,JAMES DONALDSON & SONS LTD,96772,7000.00
DEPARTMENT OF ENERGY AND CLIMATE CHANGE,THE COAL AUTHORITY,10/12/2015,PROPERTY RENTS PAYABLE,PROPERTY MANAGEMENT & SALES,FACILITIES-BUILDING MANAGEMENT,TRUSTEES OF THE PLUMPTRE CHILD,96727,52022.48
DEPARTMENT OF ENERGY AND CLIMATE CHANGE,THE COAL AUTHORITY,30/11/2015,RESTRTN CLSED CLLRY STE-PROP,PROPERTY MANAGEMENT & SALES,FACILITIES - SECURITY,CRIMEFIGHTER ALARMS LTD,96442,993.06
DEPARTMENT OF ENERGY AND CLIMATE CHANGE,THE COAL AUTHORITY,09/12/2015,RESTRTN CLSED CLLRY STE-PROP,PROPERTY MANAGEMENT & SALES,ENERGY&UTILITIES-WATER,SOUTHERN WATER SERVICES LTD,96866,26.27
DEPARTMENT OF ENERGY AND CLIMATE CHANGE,THE COAL AUTHORITY,16/12/2015,RESTRTN CLSED CLLRY STE-PROP,PROPERTY MANAGEMENT & SALES,WASTE MANAGEMENT-WSTE MNGT SER,M T S CLEANSING SERVICES LTD,97005,381.69
DEPARTMENT OF ENERGY AND CLIMATE CHANGE,THE COAL AUTHORITY,01/12/2015,COMMISSION CHARGES-E-COMMERCE,RECORDS STORAGE,PROF SER FNCL-BANKING&INVSTMNT,WORLDPAY,96648,15.90
DEPARTMENT OF ENERGY AND CLIMATE CHANGE,THE COAL AUTHORITY,01/12/2015,IT-APPLICATIONS MANAGEMENT,RECORDS STORAGE,ICT-TELECOMS,DAISY COMMUNICATIONS LTD,96695,6250.00
DEPARTMENT OF ENERGY AND CLIMATE CHANGE,THE COAL AUTHORITY,27/11/2015,PAYMENTS TO AGENCIES FOR TEMPS,RECORDS STORAGE,PROF SER TMP STFF-TEMP WRKERS,KEY PERSONNEL SOLUTIONS LTD,96328,282.49
DEPARTMENT OF ENERGY AND CLIMATE CHANGE,THE COAL AUTHORITY,04/12/2015,PAYMENTS TO AGENCIES FOR TEMPS,RECORDS STORAGE,PROF SER TMP STFF-TEMP WRKERS,KEY PERSONNEL SOLUTIONS LTD,96602,390.60
DEPARTMENT OF ENERGY AND CLIMATE CHANGE,THE COAL AUTHORITY,11/12/2015,PAYMENTS TO AGENCIES FOR TEMPS,RECORDS STORAGE,PROF SER TMP STFF-TEMP WRKERS,KEY PERSONNEL SOLUTIONS LTD,96864,477.79
DEPARTMENT OF ENERGY AND CLIMATE CHANGE,THE COAL AUTHORITY,03/11/2015,HOTEL ACCOMMODATION,REGULATION MANAGEMENT,TRAVEL&EVENTS-HOTELS,RBS GPC October 2015,97160,97.41
DEPARTMENT OF ENERGY AND CLIMATE CHANGE,THE COAL AUTHORITY,03/11/2015,INCIDENTALS,REGULATION MANAGEMENT,VEHICLES-FLEET MANAGEMENT,RBS GPC October 2015,97160,4.17
DEPARTMENT OF ENERGY AND CLIMATE CHANGE,THE COAL AUTHORITY,03/11/2015,INCIDENTALS,REGULATION MANAGEMENT,TRAVEL&EVENTS-OTHER,RBS GPC October 2015,97160,32.99
DEPARTMENT OF ENERGY AND CLIMATE CHANGE,THE COAL AUTHORITY,09/12/2015,MILEAGE PAYMENTS,REGULATION MANAGEMENT,FUELS/LUBRCNT/GAS-FUELS,STAFF EXPENSES CONTROL,96699,61.65
DEPARTMENT OF ENERGY AND CLIMATE CHANGE,THE COAL AUTHORITY,09/12/2015,SUBSISTENCE ALLOWANCES,REGULATION MANAGEMENT,FACILITIES - FOOD,STAFF EXPENSES CONTROL,96699,6.27
DEPARTMENT OF ENERGY AND CLIMATE CHANGE,THE COAL AUTHORITY,04/12/2015,TRAINING AND EDUCATION,REGULATION MANAGEMENT,PROF SER LRNG&DEV-STAFF TRNING,POLICY FORUM FOR WALES,96524,210.00
DEPARTMENT OF ENERGY AND CLIMATE CHANGE,THE COAL AUTHORITY,30/11/2015,FARES - RAIL,RESEARCH & DEVELOPMENT,TRAVEL&EVENTS-RAIL,REDFERN TRAVEL LTD,96660,91.11
DEPARTMENT OF ENERGY AND CLIMATE CHANGE,THE COAL AUTHORITY,30/11/2015,HOTEL ACCOMMODATION,RESEARCH & DEVELOPMENT,TRAVEL&EVENTS-HOTELS,REDFERN TRAVEL LTD,96662,75.48
DEPARTMENT OF ENERGY AND CLIMATE CHANGE,THE COAL AUTHORITY,03/11/2015,CENTRAL TRAINING BUDGET,SHE,PROF SER LRNG&DEV-STAFF TRNING,RBS GPC October 2015,97160,489.25
DEPARTMENT OF ENERGY AND CLIMATE CHANGE,THE COAL AUTHORITY,04/12/2015,CENTRAL TRAINING BUDGET,SHE,PROF SER LRNG&DEV-STAFF TRNING,MINES RESCUE SERVICE LIMITED,96535,330.00
DEPARTMENT OF ENERGY AND CLIMATE CHANGE,THE COAL AUTHORITY,10/12/2015,CENTRAL TRAINING BUDGET,SHE,PROF SER LRNG&DEV-STAFF TRNING,O HEAP & SON (DERBY) LIMITED,96920,460.00
DEPARTMENT OF ENERGY AND CLIMATE CHANGE,THE COAL AUTHORITY,21/10/2015,CONSULTANCY,SHE,PROF SER CNSLTNCY-TCHNL CNSLTY,AECOM INFRASTRUCTURE & ENV,96878,3700.67
DEPARTMENT OF ENERGY AND CLIMATE CHANGE,THE COAL AUTHORITY,30/11/2015,FARES - RAIL,SHE,TRAVEL&EVENTS-RAIL,REDFERN TRAVEL LTD,96660,68.66
DEPARTMENT OF ENERGY AND CLIMATE CHANGE,THE COAL AUTHORITY,30/11/2015,HOTEL ACCOMMODATION,SHE,TRAVEL&EVENTS-HOTELS,REDFERN TRAVEL LTD,96662,373.17
DEPARTMENT OF ENERGY AND CLIMATE CHANGE,THE COAL AUTHORITY,03/11/2015,MEMBERSHIP SUBSCRIPTIONS,SHE,PERSONNEL RLTD-STAFF SUBSCRPTN,RBS GPC October 2015,97160,309.00
DEPARTMENT OF ENERGY AND CLIMATE CHANGE,THE COAL AUTHORITY,03/09/2015,PROFESSIONAL SUBSCRIPTIONS,SHE,PERSONNEL RLTD-STAFF SUBSCRPTN,RBS GPC August 2015,97120,185.00
DEPARTMENT OF ENERGY AND CLIMATE CHANGE,THE COAL AUTHORITY,03/11/2015,PROFESSIONAL SUBSCRIPTIONS,SHE,PERSONNEL RLTD-STAFF SUBSCRPTN,RBS GPC October 2015,97160,360.55
DEPARTMENT OF ENERGY AND CLIMATE CHANGE,THE COAL AUTHORITY,03/09/2015,SAFETY CLOTHING,SHE,OPRTNL GOODS&SERV-CLOTHING,RBS GPC August 2015,97120,423.08
DEPARTMENT OF ENERGY AND CLIMATE CHANGE,THE COAL AUTHORITY,01/10/2015,SAFETY CLOTHING,SHE,OPRTNL GOODS&SERV-CLOTHING,ARCO LIMITED,96778,142.54
DEPARTMENT OF ENERGY AND CLIMATE CHANGE,THE COAL AUTHORITY,06/10/2015,SAFETY CLOTHING,SHE,OPRTNL GOODS&SERV-CLOTHING,ARCO LIMITED,96779,237.66
DEPARTMENT OF ENERGY AND CLIMATE CHANGE,THE COAL AUTHORITY,06/10/2015,SAFETY CLOTHING,SHE,OPRTNL GOODS&SERV-CLOTHING,ARCO LIMITED,96780,53.74
DEPARTMENT OF ENERGY AND CLIMATE CHANGE,THE COAL AUTHORITY,06/10/2015,SAFETY CLOTHING,SHE,OPRTNL GOODS&SERV-CLOTHING,ARCO LIMITED,96781,16.29
DEPARTMENT OF ENERGY AND CLIMATE CHANGE,THE COAL AUTHORITY,23/10/2015,SAFETY CLOTHING,SHE,OPRTNL GOODS&SERV-CLOTHING,ARCO LIMITED,96782,126.64
DEPARTMENT OF ENERGY AND CLIMATE CHANGE,THE COAL AUTHORITY,23/10/2015,SAFETY CLOTHING,SHE,OPRTNL GOODS&SERV-CLOTHING,ARCO LIMITED,96783,43.89
DEPARTMENT OF ENERGY AND CLIMATE CHANGE,THE COAL AUTHORITY,03/11/2015,SAFETY CLOTHING,SHE,OPRTNL GOODS&SERV-CLOTHING,RBS GPC October 2015,97160,266.48
DEPARTMENT OF ENERGY AND CLIMATE CHANGE,THE COAL AUTHORITY,24/11/2015,SAFETY CLOTHING,SHE,OPRTNL GOODS&SERV-CLOTHING,ARCO LIMITED,96276,81.97
DEPARTMENT OF ENERGY AND CLIMATE CHANGE,THE COAL AUTHORITY,25/11/2015,SAFETY CLOTHING,SHE,OPRTNL GOODS&SERV-CLOTHING,ARCO LIMITED,96274,-114.53
DEPARTMENT OF ENERGY AND CLIMATE CHANGE,THE COAL AUTHORITY,25/11/2015,SAFETY CLOTHING,SHE,OPRTNL GOODS&SERV-CLOTHING,ARCO LIMITED,96275,-13.58
DEPARTMENT OF ENERGY AND CLIMATE CHANGE,THE COAL AUTHORITY,30/11/2015,SAFETY CLOTHING,SHE,OPRTNL GOODS&SERV-CLOTHING,ARCO LIMITED,96784,39.61
DEPARTMENT OF ENERGY AND CLIMATE CHANGE,THE COAL AUTHORITY,30/11/2015,SAFETY CLOTHING,SHE,OPRTNL GOODS&SERV-CLOTHING,ARCO LIMITED,96785,63.32
DEPARTMENT OF ENERGY AND CLIMATE CHANGE,THE COAL AUTHORITY,30/11/2015,SAFETY CLOTHING,SHE,OPRTNL GOODS&SERV-CLOTHING,ARCO LIMITED,96786,37.02
DEPARTMENT OF ENERGY AND CLIMATE CHANGE,THE COAL AUTHORITY,03/12/2015,SAFETY CLOTHING,SHE,OPRTNL GOODS&SERV-CLOTHING,ROCKALL SAFETY,96586,140.50
DEPARTMENT OF ENERGY AND CLIMATE CHANGE,THE COAL AUTHORITY,04/12/2015,SAFETY CLOTHING,SHE,OPRTNL GOODS&SERV-CLOTHING,ARCO LIMITED,96726,21.18
DEPARTMENT OF ENERGY AND CLIMATE CHANGE,THE COAL AUTHORITY,07/12/2015,SAFETY CLOTHING,SHE,OPRTNL GOODS&SERV-CLOTHING,ROCKALL SAFETY,96663,10.00
DEPARTMENT OF ENERGY AND CLIMATE CHANGE,THE COAL AUTHORITY,07/12/2015,SAFETY CLOTHING,SHE,OPRTNL GOODS&SERV-CLOTHING,ROCKALL SAFETY,96664,45.00
DEPARTMENT OF ENERGY AND CLIMATE CHANGE,THE COAL AUTHORITY,07/12/2015,SAFETY CLOTHING,SHE,OPRTNL GOODS&SERV-CLOTHING,ROCKALL SAFETY,96665,10.00
DEPARTMENT OF ENERGY AND CLIMATE CHANGE,THE COAL AUTHORITY,08/12/2015,SAFETY CLOTHING,SHE,OPRTNL GOODS&SERV-CLOTHING,ARCO LIMITED,96787,39.61
DEPARTMENT OF ENERGY AND CLIMATE CHANGE,THE COAL AUTHORITY,09/12/2015,SAFETY CLOTHING,SHE,OPRTNL GOODS&SERV-CLOTHING,ARCO LIMITED,96788,63.32
DEPARTMENT OF ENERGY AND CLIMATE CHANGE,THE COAL AUTHORITY,10/12/2015,SAFETY CLOTHING,SHE,OPRTNL GOODS&SERV-CLOTHING,ARCO LIMITED,96789,63.32
DEPARTMENT OF ENERGY AND CLIMATE CHANGE,THE COAL AUTHORITY,03/11/2015,SUBSISTENCE ALLOWANCES,SHE,FACILITIES - FOOD,RBS GPC October 2015,97160,77.33
DEPARTMENT OF ENERGY AND CLIMATE CHANGE,THE COAL AUTHORITY,03/10/2015,TRAINING AND EDUCATION,SHE,PROF SER LRNG&DEV-STAFF TRNING,RBS GPC September 2015,97159,62.50
DEPARTMENT OF ENERGY AND CLIMATE CHANGE,THE COAL AUTHORITY,08/12/2015,TRAINING AND EDUCATION,SHE,PROF SER LRNG&DEV-STAFF TRNING,AWBERY MANAGEMENT CENTRE LTD,96725,90.00
DEPARTMENT OF ENERGY AND CLIMATE CHANGE,THE COAL AUTHORITY,02/12/2015,CNTRCTR & CLAIM CSTS-BRDGEWATR,SUBSIDENCE,CONSTRUCTION-MAIN CONTRACTORS,THE BRIDGEWATER CANAL CO LTD,96416,55584.38
DEPARTMENT OF ENERGY AND CLIMATE CHANGE,THE COAL AUTHORITY,02/12/2015,CNTRCTR & CLAIM CSTS-BRDGEWATR,SUBSIDENCE,CONSTRUCTION-MAIN CONTRACTORS,THE BRIDGEWATER CANAL CO LTD,96417,518.09
DEPARTMENT OF ENERGY AND CLIMATE CHANGE,THE COAL AUTHORITY,02/12/2015,CNTRCTR & CLAIM CSTS-BRDGEWATR,SUBSIDENCE,CONSTRUCTION-MAIN CONTRACTORS,THE BRIDGEWATER CANAL CO LTD,96418,766.75
DEPARTMENT OF ENERGY AND CLIMATE CHANGE,THE COAL AUTHORITY,02/12/2015,CNTRCTR & CLAIM CSTS-BRDGEWATR,SUBSIDENCE,CONSTRUCTION-MAIN CONTRACTORS,THE BRIDGEWATER CANAL CO LTD,96419,4192.50
DEPARTMENT OF ENERGY AND CLIMATE CHANGE,THE COAL AUTHORITY,02/12/2015,CNTRCTR & CLAIM CSTS-BRDGEWATR,SUBSIDENCE,CONSTRUCTION-MAIN CONTRACTORS,THE BRIDGEWATER CANAL CO LTD,96420,3870.00
DEPARTMENT OF ENERGY AND CLIMATE CHANGE,THE COAL AUTHORITY,02/12/2015,CNTRCTR & CLAIM CSTS-BRDGEWATR,SUBSIDENCE,CONSTRUCTION-MAIN CONTRACTORS,THE BRIDGEWATER CANAL CO LTD,96421,44.90
DEPARTMENT OF ENERGY AND CLIMATE CHANGE,THE COAL AUTHORITY,02/12/2015,CNTRCTR & CLAIM CSTS-BRDGEWATR,SUBSIDENCE,CONSTRUCTION-MAIN CONTRACTORS,THE BRIDGEWATER CANAL CO LTD,96422,3878.94
DEPARTMENT OF ENERGY AND CLIMATE CHANGE,THE COAL AUTHORITY,02/12/2015,CNTRCTR & CLAIM CSTS-BRDGEWATR,SUBSIDENCE,CONSTRUCTION-MAIN CONTRACTORS,THE BRIDGEWATER CANAL CO LTD,96423,3332.50
DEPARTMENT OF ENERGY AND CLIMATE CHANGE,THE COAL AUTHORITY,02/12/2015,CNTRCTR & CLAIM CSTS-BRDGEWATR,SUBSIDENCE,CONSTRUCTION-MAIN CONTRACTORS,THE BRIDGEWATER CANAL CO LTD,96424,3915.97
DEPARTMENT OF ENERGY AND CLIMATE CHANGE,THE COAL AUTHORITY,02/12/2015,CNTRCTR & CLAIM CSTS-BRDGEWATR,SUBSIDENCE,CONSTRUCTION-MAIN CONTRACTORS,THE BRIDGEWATER CANAL CO LTD,96425,258.00
DEPARTMENT OF ENERGY AND CLIMATE CHANGE,THE COAL AUTHORITY,08/12/2015,CNTRCTR & CLAIM CSTS-BRDGEWATR,SUBSIDENCE,CONSTRUCTION-MAIN CONTRACTORS,THE BRIDGEWATER CANAL CO LTD,96636,108119.09
DEPARTMENT OF ENERGY AND CLIMATE CHANGE,THE COAL AUTHORITY,20/11/2015,CONTRACTORS AND CLAIM COSTS,SUBSIDENCE,CONSTRUCTION-CNSTRN SER PROVDR,SWS ENVIRONMENTAL SERVICES,96432,550.00
DEPARTMENT OF ENERGY AND CLIMATE CHANGE,THE COAL AUTHORITY,30/11/2015,CONTRACTORS AND CLAIM COSTS,SUBSIDENCE,CONSTRUCTION-CNSTRN SER PROVDR,STUDIO-G ARCHITECTURE LLP,96530,1722.00
DEPARTMENT OF ENERGY AND CLIMATE CHANGE,THE COAL AUTHORITY,30/11/2015,CONTRACTORS AND CLAIM COSTS,SUBSIDENCE,CONSTRUCTION-MAIN CONTRACTORS,NAL PLANT LIMITED,96585,2807.06
DEPARTMENT OF ENERGY AND CLIMATE CHANGE,THE COAL AUTHORITY,30/11/2015,CONTRACTORS AND CLAIM COSTS,SUBSIDENCE,CONSTRUCTION-CNSTRN SER PROVDR,CORNERSTONE  PROJECTS LTD,96301,103.00
DEPARTMENT OF ENERGY AND CLIMATE CHANGE,THE COAL AUTHORITY,01/12/2015,CONTRACTORS AND CLAIM COSTS,SUBSIDENCE,FACILITIES-ACCOMDTN SERVICES,IRENT,96280,650.00
DEPARTMENT OF ENERGY AND CLIMATE CHANGE,THE COAL AUTHORITY,01/12/2015,CONTRACTORS AND CLAIM COSTS,SUBSIDENCE,FACILITIES-ACCOMDTN SERVICES,IRENT,96281,455.00
DEPARTMENT OF ENERGY AND CLIMATE CHANGE,THE COAL AUTHORITY,01/12/2015,CONTRACTORS AND CLAIM COSTS,SUBSIDENCE,LOGISTICS-WAREHOUSE&STORAGE,IRENT,96282,260.00
DEPARTMENT OF ENERGY AND CLIMATE CHANGE,THE COAL AUTHORITY,01/12/2015,CONTRACTORS AND CLAIM COSTS,SUBSIDENCE,FACILITIES-ACCOMDTN SERVICES,SARAH MAINS RESIDENTIAL LTD,96337,675.00
DEPARTMENT OF ENERGY AND CLIMATE CHANGE,THE COAL AUTHORITY,01/12/2015,CONTRACTORS AND CLAIM COSTS,SUBSIDENCE,CONSTRUCTION-MAIN CONTRACTORS,GEOL-CONSULTANTS LTD,96343,1330.00
DEPARTMENT OF ENERGY AND CLIMATE CHANGE,THE COAL AUTHORITY,03/12/2015,CONTRACTORS AND CLAIM COSTS,SUBSIDENCE,CONSTRUCTION-MAIN CONTRACTORS,QUANTUM GEOTECHNICAL LTD,96694,7045.00
DEPARTMENT OF ENERGY AND CLIMATE CHANGE,THE COAL AUTHORITY,03/12/2015,CONTRACTORS AND CLAIM COSTS,SUBSIDENCE,CONSTRUCTION-MAIN CONTRACTORS,GEOL-CONSULTANTS LTD,96427,750.00
DEPARTMENT OF ENERGY AND CLIMATE CHANGE,THE COAL AUTHORITY,07/12/2015,CONTRACTORS AND CLAIM COSTS,SUBSIDENCE,FACILITIES-ACCOMDTN SERVICES,MRS S PECK,96580,439.92
DEPARTMENT OF ENERGY AND CLIMATE CHANGE,THE COAL AUTHORITY,07/12/2015,CONTRACTORS AND CLAIM COSTS,SUBSIDENCE,CONSTRUCTION-MAIN CONTRACTORS,JIM DAVIES CIVIL ENGINEERING,96638,1609.00
DEPARTMENT OF ENERGY AND CLIMATE CHANGE,THE COAL AUTHORITY,08/12/2015,CONTRACTORS AND CLAIM COSTS,SUBSIDENCE,"CONSTRUCTION-BLD,REPR&MAINTNCE",G GOLDTHORPE & SONS,96671,2035.80
DEPARTMENT OF ENERGY AND CLIMATE CHANGE,THE COAL AUTHORITY,10/12/2015,CONTRACTORS AND CLAIM COSTS,SUBSIDENCE,PROF SER-LEGAL SERVICES,WARDELL ARMSTRONG LLP,96912,8476.60
DEPARTMENT OF ENERGY AND CLIMATE CHANGE,THE COAL AUTHORITY,07/12/2015,LEGAL COSTS,SUBSIDENCE,PROF SER-LEGAL SERVICES,DLA PIPER UK LLP,96723,25060.00
DEPARTMENT OF ENERGY AND CLIMATE CHANGE,THE COAL AUTHORITY,03/11/2015,OFFICE MACHINERY PURCHASED,SUBSIDENCE,ENGINEERING GOODS-INDUSTRIAL,RBS GPC October 2015,97160,93.83
DEPARTMENT OF ENERGY AND CLIMATE CHANGE,THE COAL AUTHORITY,01/12/2015,CURR YR ADDNS MINEWATER SCHEME,SUBSIDENCE PUMPING STATIONS,"CONSTRUCTION-BLD,REPR&MAINTNCE",OUSE&DERWNT INTERN DRAINGE BRD,96591,29408.38
DEPARTMENT OF ENERGY AND CLIMATE CHANGE,THE COAL AUTHORITY,04/12/2015,CURR YR ADDNS SUBS PMPNG STNS,SUBSIDENCE PUMPING STATIONS,ENERGY&UTILITIES-ELECTRICITY,NORTHERN POWERGRID (YORKSHIRE) PLC,96525,1682.40
DEPARTMENT OF ENERGY AND CLIMATE CHANGE,THE COAL AUTHORITY,08/12/2015,CURR YR ADDNS SUBS PMPNG STNS,SUBSIDENCE PUMPING STATIONS,PSPES NOT APPLICABLE,JEREMY BENN ASSOCIATES LTD,96683,105.00
DEPARTMENT OF ENERGY AND CLIMATE CHANGE,THE COAL AUTHORITY,08/12/2015,CURR YR ADDNS SUBS PMPNG STNS,SUBSIDENCE PUMPING STATIONS,PSPES NOT APPLICABLE,JEREMY BENN ASSOCIATES LTD,96683,140.00
DEPARTMENT OF ENERGY AND CLIMATE CHANGE,THE COAL AUTHORITY,08/12/2015,CURR YR ADDNS SUBS PMPNG STNS,SUBSIDENCE PUMPING STATIONS,PSPES NOT APPLICABLE,JEREMY BENN ASSOCIATES LTD,96683,210.00
DEPARTMENT OF ENERGY AND CLIMATE CHANGE,THE COAL AUTHORITY,08/12/2015,CURR YR ADDNS SUBS PMPNG STNS,SUBSIDENCE PUMPING STATIONS,PSPES NOT APPLICABLE,JEREMY BENN ASSOCIATES LTD,96683,2000.00
DEPARTMENT OF ENERGY AND CLIMATE CHANGE,THE COAL AUTHORITY,14/12/2015,CURR YR ADDNS SUBS PMPNG STNS,SUBSIDENCE PUMPING STATIONS,PROF SER TECH-ENGINEERING SER,MOTT MACDONALD LTD,96880,1454.68
DEPARTMENT OF ENERGY AND CLIMATE CHANGE,THE COAL AUTHORITY,14/12/2015,CURR YR ADDNS SUBS PMPNG STNS,SUBSIDENCE PUMPING STATIONS,PROF SER TECH-ENGINEERING SER,MOTT MACDONALD LTD,96880,1454.68
DEPARTMENT OF ENERGY AND CLIMATE CHANGE,THE COAL AUTHORITY,14/12/2015,CURR YR ADDNS SUBS PMPNG STNS,SUBSIDENCE PUMPING STATIONS,PROF SER TECH-ENGINEERING SER,MOTT MACDONALD LTD,96880,1454.68
DEPARTMENT OF ENERGY AND CLIMATE CHANGE,THE COAL AUTHORITY,08/12/2015,SUB PUMP STTN MAINTENANCE-OTHR,SUBSIDENCE PUMPING STATIONS,PSPES NOT APPLICABLE,JEREMY BENN ASSOCIATES LTD,96681,280.00
DEPARTMENT OF ENERGY AND CLIMATE CHANGE,THE COAL AUTHORITY,08/12/2015,SUB PUMP STTN MAINTENANCE-OTHR,SUBSIDENCE PUMPING STATIONS,PSPES NOT APPLICABLE,JEREMY BENN ASSOCIATES LTD,96682,1120.00
DEPARTMENT OF ENERGY AND CLIMATE CHANGE,THE COAL AUTHORITY,09/12/2015,SUB PUMP STTN MAINTENANCE-OTHR,SUBSIDENCE PUMPING STATIONS,PSPES NOT APPLICABLE,JEREMY BENN ASSOCIATES LTD,96774,2304.50
DEPARTMENT OF ENERGY AND CLIMATE CHANGE,THE COAL AUTHORITY,14/12/2015,SUB PUMP STTN MAINTENANCE-OTHR,SUBSIDENCE PUMPING STATIONS,ICT-TELECOMS,DANVM DRAINAGE COMMISSIONERS,96868,191.60
DEPARTMENT OF ENERGY AND CLIMATE CHANGE,THE COAL AUTHORITY,14/12/2015,SUB PUMP STTN MAINTENANCE-OTHR,SUBSIDENCE PUMPING STATIONS,"CONSTRUCTION-BLD,REPR&MAINTNCE",DANVM DRAINAGE COMMISSIONERS,96868,228.45
DEPARTMENT OF ENERGY AND CLIMATE CHANGE,THE COAL AUTHORITY,14/12/2015,SUB PUMP STTN MAINTENANCE-OTHR,SUBSIDENCE PUMPING STATIONS,ICT-TELECOMS,DANVM DRAINAGE COMMISSIONERS,96868,63.76
DEPARTMENT OF ENERGY AND CLIMATE CHANGE,THE COAL AUTHORITY,14/12/2015,SUB PUMP STTN MAINTENANCE-OTHR,SUBSIDENCE PUMPING STATIONS,"CONSTRUCTION-BLD,REPR&MAINTNCE",DANVM DRAINAGE COMMISSIONERS,96868,76.15
DEPARTMENT OF ENERGY AND CLIMATE CHANGE,THE COAL AUTHORITY,14/12/2015,SUB PUMP STTN MAINTENANCE-OTHR,SUBSIDENCE PUMPING STATIONS,ICT-TELECOMS,DANVM DRAINAGE COMMISSIONERS,96868,243.01
DEPARTMENT OF ENERGY AND CLIMATE CHANGE,THE COAL AUTHORITY,14/12/2015,SUB PUMP STTN MAINTENANCE-OTHR,SUBSIDENCE PUMPING STATIONS,"CONSTRUCTION-BLD,REPR&MAINTNCE",DANVM DRAINAGE COMMISSIONERS,96868,41.13
DEPARTMENT OF ENERGY AND CLIMATE CHANGE,THE COAL AUTHORITY,14/12/2015,SUB PUMP STTN MAINTENANCE-OTHR,SUBSIDENCE PUMPING STATIONS,ICT-TELECOMS,DANVM DRAINAGE COMMISSIONERS,96868,191.00
DEPARTMENT OF ENERGY AND CLIMATE CHANGE,THE COAL AUTHORITY,14/12/2015,SUB PUMP STTN MAINTENANCE-OTHR,SUBSIDENCE PUMPING STATIONS,ICT-TELECOMS,DANVM DRAINAGE COMMISSIONERS,96868,192.80
DEPARTMENT OF ENERGY AND CLIMATE CHANGE,THE COAL AUTHORITY,14/12/2015,SUB PUMP STTN MAINTENANCE-OTHR,SUBSIDENCE PUMPING STATIONS,"CONSTRUCTION-BLD,REPR&MAINTNCE",DANVM DRAINAGE COMMISSIONERS,96868,133.45
DEPARTMENT OF ENERGY AND CLIMATE CHANGE,THE COAL AUTHORITY,14/12/2015,SUB PUMP STTN MAINTENANCE-OTHR,SUBSIDENCE PUMPING STATIONS,ICT-TELECOMS,DANVM DRAINAGE COMMISSIONERS,96868,254.24
DEPARTMENT OF ENERGY AND CLIMATE CHANGE,THE COAL AUTHORITY,14/12/2015,SUB PUMP STTN MAINTENANCE-OTHR,SUBSIDENCE PUMPING STATIONS,"CONSTRUCTION-BLD,REPR&MAINTNCE",DANVM DRAINAGE COMMISSIONERS,96868,269.00
DEPARTMENT OF ENERGY AND CLIMATE CHANGE,THE COAL AUTHORITY,14/12/2015,SUB PUMP STTN MAINTENANCE-OTHR,SUBSIDENCE PUMPING STATIONS,ICT-TELECOMS,DANVM DRAINAGE COMMISSIONERS,96868,214.91
DEPARTMENT OF ENERGY AND CLIMATE CHANGE,THE COAL AUTHORITY,14/12/2015,SUB PUMP STTN MAINTENANCE-OTHR,SUBSIDENCE PUMPING STATIONS,"CONSTRUCTION-BLD,REPR&MAINTNCE",DANVM DRAINAGE COMMISSIONERS,96868,1469.60
DEPARTMENT OF ENERGY AND CLIMATE CHANGE,THE COAL AUTHORITY,14/12/2015,SUB PUMP STTN MAINTENANCE-OTHR,SUBSIDENCE PUMPING STATIONS,ICT-TELECOMS,DANVM DRAINAGE COMMISSIONERS,96868,144.16
DEPARTMENT OF ENERGY AND CLIMATE CHANGE,THE COAL AUTHORITY,14/12/2015,SUB PUMP STTN MAINTENANCE-OTHR,SUBSIDENCE PUMPING STATIONS,"CONSTRUCTION-BLD,REPR&MAINTNCE",DANVM DRAINAGE COMMISSIONERS,96868,237.59
DEPARTMENT OF ENERGY AND CLIMATE CHANGE,THE COAL AUTHORITY,14/12/2015,SUB PUMP STTN MAINTENANCE-OTHR,SUBSIDENCE PUMPING STATIONS,ICT-TELECOMS,DANVM DRAINAGE COMMISSIONERS,96868,193.40
DEPARTMENT OF ENERGY AND CLIMATE CHANGE,THE COAL AUTHORITY,14/12/2015,SUB PUMP STTN MAINTENANCE-OTHR,SUBSIDENCE PUMPING STATIONS,"CONSTRUCTION-BLD,REPR&MAINTNCE",DANVM DRAINAGE COMMISSIONERS,96868,890.33
DEPARTMENT OF ENERGY AND CLIMATE CHANGE,THE COAL AUTHORITY,14/12/2015,SUB PUMP STTN MAINTENANCE-OTHR,SUBSIDENCE PUMPING STATIONS,ENERGY&UTILITIES-ELECTRICITY,DANVM DRAINAGE COMMISSIONERS,96868,282.00
DEPARTMENT OF ENERGY AND CLIMATE CHANGE,THE COAL AUTHORITY,14/12/2015,SUB PUMP STTN MAINTENANCE-OTHR,SUBSIDENCE PUMPING STATIONS,ICT-TELECOMS,DANVM DRAINAGE COMMISSIONERS,96868,96.25
DEPARTMENT OF ENERGY AND CLIMATE CHANGE,THE COAL AUTHORITY,14/12/2015,SUB PUMP STTN MAINTENANCE-OTHR,SUBSIDENCE PUMPING STATIONS,"CONSTRUCTION-BLD,REPR&MAINTNCE",DANVM DRAINAGE COMMISSIONERS,96868,114.23
DEPARTMENT OF ENERGY AND CLIMATE CHANGE,THE COAL AUTHORITY,14/12/2015,SUB PUMP STTN MAINTENANCE-OTHR,SUBSIDENCE PUMPING STATIONS,ICT-TELECOMS,DANVM DRAINAGE COMMISSIONERS,96868,127.17
DEPARTMENT OF ENERGY AND CLIMATE CHANGE,THE COAL AUTHORITY,14/12/2015,SUB PUMP STTN MAINTENANCE-OTHR,SUBSIDENCE PUMPING STATIONS,"CONSTRUCTION-BLD,REPR&MAINTNCE",DANVM DRAINAGE COMMISSIONERS,96868,439.23
DEPARTMENT OF ENERGY AND CLIMATE CHANGE,THE COAL AUTHORITY,14/12/2015,SUB PUMP STTN MAINTENANCE-OTHR,SUBSIDENCE PUMPING STATIONS,ICT-TELECOMS,DANVM DRAINAGE COMMISSIONERS,96868,201.80
DEPARTMENT OF ENERGY AND CLIMATE CHANGE,THE COAL AUTHORITY,14/12/2015,SUB PUMP STTN MAINTENANCE-OTHR,SUBSIDENCE PUMPING STATIONS,"CONSTRUCTION-BLD,REPR&MAINTNCE",DANVM DRAINAGE COMMISSIONERS,96868,192.75
DEPARTMENT OF ENERGY AND CLIMATE CHANGE,THE COAL AUTHORITY,14/12/2015,SUB PUMP STTN MAINTENANCE-OTHR,SUBSIDENCE PUMPING STATIONS,ICT-TELECOMS,DANVM DRAINAGE COMMISSIONERS,96868,191.00
DEPARTMENT OF ENERGY AND CLIMATE CHANGE,THE COAL AUTHORITY,14/12/2015,SUB PUMP STTN MAINTENANCE-OTHR,SUBSIDENCE PUMPING STATIONS,"CONSTRUCTION-BLD,REPR&MAINTNCE",DANVM DRAINAGE COMMISSIONERS,96868,192.65
DEPARTMENT OF ENERGY AND CLIMATE CHANGE,THE COAL AUTHORITY,14/12/2015,SUB PUMP STTN MAINTENANCE-OTHR,SUBSIDENCE PUMPING STATIONS,"CONSTRUCTION-BLD,REPR&MAINTNCE",DANVM DRAINAGE COMMISSIONERS,96868,38.45
DEPARTMENT OF ENERGY AND CLIMATE CHANGE,THE COAL AUTHORITY,14/12/2015,SUB PUMP STTN MAINTENANCE-OTHR,SUBSIDENCE PUMPING STATIONS,ICT-TELECOMS,DANVM DRAINAGE COMMISSIONERS,96868,195.50
DEPARTMENT OF ENERGY AND CLIMATE CHANGE,THE COAL AUTHORITY,14/12/2015,SUB PUMP STTN MAINTENANCE-OTHR,SUBSIDENCE PUMPING STATIONS,"CONSTRUCTION-BLD,REPR&MAINTNCE",DANVM DRAINAGE COMMISSIONERS,96868,1800.00
DEPARTMENT OF ENERGY AND CLIMATE CHANGE,THE COAL AUTHORITY,14/12/2015,SUB PUMP STTN MAINTENANCE-OTHR,SUBSIDENCE PUMPING STATIONS,ICT-TELECOMS,DANVM DRAINAGE COMMISSIONERS,96868,191.00
DEPARTMENT OF ENERGY AND CLIMATE CHANGE,THE COAL AUTHORITY,14/12/2015,SUB PUMP STTN MAINTENANCE-OTHR,SUBSIDENCE PUMPING STATIONS,"CONSTRUCTION-BLD,REPR&MAINTNCE",DANVM DRAINAGE COMMISSIONERS,96868,133.45
DEPARTMENT OF ENERGY AND CLIMATE CHANGE,THE COAL AUTHORITY,14/12/2015,SUB PUMP STTN MAINTENANCE-OTHR,SUBSIDENCE PUMPING STATIONS,ICT-TELECOMS,DANVM DRAINAGE COMMISSIONERS,96868,191.00
DEPARTMENT OF ENERGY AND CLIMATE CHANGE,THE COAL AUTHORITY,14/12/2015,SUB PUMP STTN MAINTENANCE-OTHR,SUBSIDENCE PUMPING STATIONS,"CONSTRUCTION-BLD,REPR&MAINTNCE",DANVM DRAINAGE COMMISSIONERS,96868,201.25
DEPARTMENT OF ENERGY AND CLIMATE CHANGE,THE COAL AUTHORITY,14/12/2015,SUB PUMP STTN MAINTENANCE-OTHR,SUBSIDENCE PUMPING STATIONS,ICT-TELECOMS,DANVM DRAINAGE COMMISSIONERS,96868,191.00
DEPARTMENT OF ENERGY AND CLIMATE CHANGE,THE COAL AUTHORITY,14/12/2015,SUB PUMP STTN MAINTENANCE-OTHR,SUBSIDENCE PUMPING STATIONS,"CONSTRUCTION-BLD,REPR&MAINTNCE",DANVM DRAINAGE COMMISSIONERS,96868,228.45
DEPARTMENT OF ENERGY AND CLIMATE CHANGE,THE COAL AUTHORITY,14/12/2015,SUB PUMP STTN MAINTENANCE-OTHR,SUBSIDENCE PUMPING STATIONS,"CONSTRUCTION-BLD,REPR&MAINTNCE",DANVM DRAINAGE COMMISSIONERS,96868,95.00
DEPARTMENT OF ENERGY AND CLIMATE CHANGE,THE COAL AUTHORITY,14/12/2015,SUB PUMP STTN MAINTENANCE-OTHR,SUBSIDENCE PUMPING STATIONS,ICT-TELECOMS,DANVM DRAINAGE COMMISSIONERS,96868,143.26
DEPARTMENT OF ENERGY AND CLIMATE CHANGE,THE COAL AUTHORITY,14/12/2015,SUB PUMP STTN MAINTENANCE-OTHR,SUBSIDENCE PUMPING STATIONS,"CONSTRUCTION-BLD,REPR&MAINTNCE",DANVM DRAINAGE COMMISSIONERS,96868,237.59
DEPARTMENT OF ENERGY AND CLIMATE CHANGE,THE COAL AUTHORITY,14/12/2015,SUB PUMP STTN MAINTENANCE-OTHR,SUBSIDENCE PUMPING STATIONS,ICT-TELECOMS,DANVM DRAINAGE COMMISSIONERS,96868,236.16
DEPARTMENT OF ENERGY AND CLIMATE CHANGE,THE COAL AUTHORITY,14/12/2015,SUB PUMP STTN MAINTENANCE-OTHR,SUBSIDENCE PUMPING STATIONS,"CONSTRUCTION-BLD,REPR&MAINTNCE",DANVM DRAINAGE COMMISSIONERS,96868,1119.45
DEPARTMENT OF ENERGY AND CLIMATE CHANGE,THE COAL AUTHORITY,14/12/2015,SUB PUMP STTN MAINTENANCE-OTHR,SUBSIDENCE PUMPING STATIONS,ICT-TELECOMS,DANVM DRAINAGE COMMISSIONERS,96868,143.26
DEPARTMENT OF ENERGY AND CLIMATE CHANGE,THE COAL AUTHORITY,14/12/2015,SUB PUMP STTN MAINTENANCE-OTHR,SUBSIDENCE PUMPING STATIONS,"CONSTRUCTION-BLD,REPR&MAINTNCE",DANVM DRAINAGE COMMISSIONERS,96868,171.34
DEPARTMENT OF ENERGY AND CLIMATE CHANGE,THE COAL AUTHORITY,14/12/2015,SUB PUMP STTN MAINTENANCE-OTHR,SUBSIDENCE PUMPING STATIONS,ICT-TELECOMS,DANVM DRAINAGE COMMISSIONERS,96868,169.03
DEPARTMENT OF ENERGY AND CLIMATE CHANGE,THE COAL AUTHORITY,14/12/2015,SUB PUMP STTN MAINTENANCE-OTHR,SUBSIDENCE PUMPING STATIONS,"CONSTRUCTION-BLD,REPR&MAINTNCE",DANVM DRAINAGE COMMISSIONERS,96868,202.18
DEPARTMENT OF ENERGY AND CLIMATE CHANGE,THE COAL AUTHORITY,14/12/2015,SUB PUMP STTN MAINTENANCE-OTHR,SUBSIDENCE PUMPING STATIONS,ICT-TELECOMS,DANVM DRAINAGE COMMISSIONERS,96868,191.00
DEPARTMENT OF ENERGY AND CLIMATE CHANGE,THE COAL AUTHORITY,14/12/2015,SUB PUMP STTN MAINTENANCE-OTHR,SUBSIDENCE PUMPING STATIONS,"CONSTRUCTION-BLD,REPR&MAINTNCE",DANVM DRAINAGE COMMISSIONERS,96868,287.75
DEPARTMENT OF ENERGY AND CLIMATE CHANGE,THE COAL AUTHORITY,14/12/2015,SUB PUMP STTN MAINTENANCE-OTHR,SUBSIDENCE PUMPING STATIONS,ICT-TELECOMS,DANVM DRAINAGE COMMISSIONERS,96868,191.30
DEPARTMENT OF ENERGY AND CLIMATE CHANGE,THE COAL AUTHORITY,14/12/2015,SUB PUMP STTN MAINTENANCE-OTHR,SUBSIDENCE PUMPING STATIONS,"CONSTRUCTION-BLD,REPR&MAINTNCE",DANVM DRAINAGE COMMISSIONERS,96868,95.00
DEPARTMENT OF ENERGY AND CLIMATE CHANGE,THE COAL AUTHORITY,14/12/2015,SUB PUMP STTN MAINTENANCE-OTHR,SUBSIDENCE PUMPING STATIONS,ICT-TELECOMS,DANVM DRAINAGE COMMISSIONERS,96868,191.00
DEPARTMENT OF ENERGY AND CLIMATE CHANGE,THE COAL AUTHORITY,14/12/2015,SUB PUMP STTN MAINTENANCE-OTHR,SUBSIDENCE PUMPING STATIONS,"CONSTRUCTION-BLD,REPR&MAINTNCE",DANVM DRAINAGE COMMISSIONERS,96868,95.00
DEPARTMENT OF ENERGY AND CLIMATE CHANGE,THE COAL AUTHORITY,14/12/2015,SUB PUMP STTN MAINTENANCE-OTHR,SUBSIDENCE PUMPING STATIONS,ICT-TELECOMS,DANVM DRAINAGE COMMISSIONERS,96868,72.09
DEPARTMENT OF ENERGY AND CLIMATE CHANGE,THE COAL AUTHORITY,14/12/2015,SUB PUMP STTN MAINTENANCE-OTHR,SUBSIDENCE PUMPING STATIONS,"CONSTRUCTION-BLD,REPR&MAINTNCE",DANVM DRAINAGE COMMISSIONERS,96868,95.00
DEPARTMENT OF ENERGY AND CLIMATE CHANGE,THE COAL AUTHORITY,14/12/2015,SUB PUMP STTN MAINTENANCE-OTHR,SUBSIDENCE PUMPING STATIONS,ICT-TELECOMS,DANVM DRAINAGE COMMISSIONERS,96868,191.75
DEPARTMENT OF ENERGY AND CLIMATE CHANGE,THE COAL AUTHORITY,14/12/2015,SUB PUMP STTN MAINTENANCE-OTHR,SUBSIDENCE PUMPING STATIONS,"CONSTRUCTION-BLD,REPR&MAINTNCE",DANVM DRAINAGE COMMISSIONERS,96868,228.45
DEPARTMENT OF ENERGY AND CLIMATE CHANGE,THE COAL AUTHORITY,16/12/2015,SUB PUMP STTN MAINTENANCE-OTHR,SUBSIDENCE PUMPING STATIONS,CONSTRUCTION-CNSTRN SER PROVDR,CORNERSTONE  PROJECTS LTD,96937,78.00
DEPARTMENT OF ENERGY AND CLIMATE CHANGE,THE COAL AUTHORITY,20/11/2015,SUB PUMP STTN MAINTENANCE-PWER,SUBSIDENCE PUMPING STATIONS,ENERGY&UTILITIES-ELECTRICITY,BRITISH GAS BUSINESS,96945,-20.34
DEPARTMENT OF ENERGY AND CLIMATE CHANGE,THE COAL AUTHORITY,30/11/2015,SUB PUMP STTN MAINTENANCE-PWER,SUBSIDENCE PUMPING STATIONS,ENERGY&UTILITIES-ELECTRICITY,BRITISH GAS BUSINESS,96643,-26.79
DEPARTMENT OF ENERGY AND CLIMATE CHANGE,THE COAL AUTHORITY,30/11/2015,SUB PUMP STTN MAINTENANCE-PWER,SUBSIDENCE PUMPING STATIONS,ENERGY&UTILITIES-ELECTRICITY,BRITISH GAS BUSINESS,96643,-58.00
DEPARTMENT OF ENERGY AND CLIMATE CHANGE,THE COAL AUTHORITY,30/11/2015,SUB PUMP STTN MAINTENANCE-PWER,SUBSIDENCE PUMPING STATIONS,ENERGY&UTILITIES-ELECTRICITY,BRITISH GAS BUSINESS,96643,-14.48
DEPARTMENT OF ENERGY AND CLIMATE CHANGE,THE COAL AUTHORITY,30/11/2015,SUB PUMP STTN MAINTENANCE-PWER,SUBSIDENCE PUMPING STATIONS,ENERGY&UTILITIES-ELECTRICITY,BRITISH GAS BUSINESS,96643,-42.17
DEPARTMENT OF ENERGY AND CLIMATE CHANGE,THE COAL AUTHORITY,30/11/2015,SUB PUMP STTN MAINTENANCE-PWER,SUBSIDENCE PUMPING STATIONS,ENERGY&UTILITIES-ELECTRICITY,BRITISH GAS BUSINESS,96643,-163.29
DEPARTMENT OF ENERGY AND CLIMATE CHANGE,THE COAL AUTHORITY,30/11/2015,SUB PUMP STTN MAINTENANCE-PWER,SUBSIDENCE PUMPING STATIONS,ENERGY&UTILITIES-ELECTRICITY,BRITISH GAS BUSINESS,96643,-47.55
DEPARTMENT OF ENERGY AND CLIMATE CHANGE,THE COAL AUTHORITY,30/11/2015,SUB PUMP STTN MAINTENANCE-PWER,SUBSIDENCE PUMPING STATIONS,ENERGY&UTILITIES-ELECTRICITY,BRITISH GAS BUSINESS,96641,-31.59
DEPARTMENT OF ENERGY AND CLIMATE CHANGE,THE COAL AUTHORITY,30/11/2015,SUB PUMP STTN MAINTENANCE-PWER,SUBSIDENCE PUMPING STATIONS,ENERGY&UTILITIES-ELECTRICITY,BRITISH GAS BUSINESS,96641,-27.03
DEPARTMENT OF ENERGY AND CLIMATE CHANGE,THE COAL AUTHORITY,30/11/2015,SUB PUMP STTN MAINTENANCE-PWER,SUBSIDENCE PUMPING STATIONS,ENERGY&UTILITIES-ELECTRICITY,BRITISH GAS BUSINESS,96641,-59.04
DEPARTMENT OF ENERGY AND CLIMATE CHANGE,THE COAL AUTHORITY,30/11/2015,SUB PUMP STTN MAINTENANCE-PWER,SUBSIDENCE PUMPING STATIONS,ENERGY&UTILITIES-ELECTRICITY,BRITISH GAS BUSINESS,96641,-15.42
DEPARTMENT OF ENERGY AND CLIMATE CHANGE,THE COAL AUTHORITY,30/11/2015,SUB PUMP STTN MAINTENANCE-PWER,SUBSIDENCE PUMPING STATIONS,ENERGY&UTILITIES-ELECTRICITY,BRITISH GAS BUSINESS,96641,-42.41
DEPARTMENT OF ENERGY AND CLIMATE CHANGE,THE COAL AUTHORITY,30/11/2015,SUB PUMP STTN MAINTENANCE-PWER,SUBSIDENCE PUMPING STATIONS,ENERGY&UTILITIES-ELECTRICITY,BRITISH GAS BUSINESS,96641,-167.48
DEPARTMENT OF ENERGY AND CLIMATE CHANGE,THE COAL AUTHORITY,30/11/2015,SUB PUMP STTN MAINTENANCE-PWER,SUBSIDENCE PUMPING STATIONS,ENERGY&UTILITIES-ELECTRICITY,BRITISH GAS BUSINESS,96641,-48.17
DEPARTMENT OF ENERGY AND CLIMATE CHANGE,THE COAL AUTHORITY,30/11/2015,SUB PUMP STTN MAINTENANCE-PWER,SUBSIDENCE PUMPING STATIONS,ENERGY&UTILITIES-ELECTRICITY,BRITISH GAS BUSINESS,96642,-27.47
DEPARTMENT OF ENERGY AND CLIMATE CHANGE,THE COAL AUTHORITY,30/11/2015,SUB PUMP STTN MAINTENANCE-PWER,SUBSIDENCE PUMPING STATIONS,ENERGY&UTILITIES-ELECTRICITY,BRITISH GAS BUSINESS,96642,-23.58
DEPARTMENT OF ENERGY AND CLIMATE CHANGE,THE COAL AUTHORITY,30/11/2015,SUB PUMP STTN MAINTENANCE-PWER,SUBSIDENCE PUMPING STATIONS,ENERGY&UTILITIES-ELECTRICITY,BRITISH GAS BUSINESS,96642,-50.56
DEPARTMENT OF ENERGY AND CLIMATE CHANGE,THE COAL AUTHORITY,30/11/2015,SUB PUMP STTN MAINTENANCE-PWER,SUBSIDENCE PUMPING STATIONS,ENERGY&UTILITIES-ELECTRICITY,BRITISH GAS BUSINESS,96642,-10.75
DEPARTMENT OF ENERGY AND CLIMATE CHANGE,THE COAL AUTHORITY,30/11/2015,SUB PUMP STTN MAINTENANCE-PWER,SUBSIDENCE PUMPING STATIONS,ENERGY&UTILITIES-ELECTRICITY,BRITISH GAS BUSINESS,96642,-35.65
DEPARTMENT OF ENERGY AND CLIMATE CHANGE,THE COAL AUTHORITY,30/11/2015,SUB PUMP STTN MAINTENANCE-PWER,SUBSIDENCE PUMPING STATIONS,ENERGY&UTILITIES-ELECTRICITY,BRITISH GAS BUSINESS,96642,-141.79
DEPARTMENT OF ENERGY AND CLIMATE CHANGE,THE COAL AUTHORITY,30/11/2015,SUB PUMP STTN MAINTENANCE-PWER,SUBSIDENCE PUMPING STATIONS,ENERGY&UTILITIES-ELECTRICITY,BRITISH GAS BUSINESS,96642,-41.02
DEPARTMENT OF ENERGY AND CLIMATE CHANGE,THE COAL AUTHORITY,03/12/2015,SUB PUMP STTN MAINTENANCE-PWER,SUBSIDENCE PUMPING STATIONS,ENERGY&UTILITIES-ELECTRICITY,BRITISH GAS BUSINESS,96645,31.84
DEPARTMENT OF ENERGY AND CLIMATE CHANGE,THE COAL AUTHORITY,03/12/2015,SUB PUMP STTN MAINTENANCE-PWER,SUBSIDENCE PUMPING STATIONS,ENERGY&UTILITIES-ELECTRICITY,BRITISH GAS BUSINESS,96645,27.47
DEPARTMENT OF ENERGY AND CLIMATE CHANGE,THE COAL AUTHORITY,03/12/2015,SUB PUMP STTN MAINTENANCE-PWER,SUBSIDENCE PUMPING STATIONS,ENERGY&UTILITIES-ELECTRICITY,BRITISH GAS BUSINESS,96645,31.59
DEPARTMENT OF ENERGY AND CLIMATE CHANGE,THE COAL AUTHORITY,03/12/2015,SUB PUMP STTN MAINTENANCE-PWER,SUBSIDENCE PUMPING STATIONS,ENERGY&UTILITIES-ELECTRICITY,BRITISH GAS BUSINESS,96645,26.79
DEPARTMENT OF ENERGY AND CLIMATE CHANGE,THE COAL AUTHORITY,03/12/2015,SUB PUMP STTN MAINTENANCE-PWER,SUBSIDENCE PUMPING STATIONS,ENERGY&UTILITIES-ELECTRICITY,BRITISH GAS BUSINESS,96645,23.58
DEPARTMENT OF ENERGY AND CLIMATE CHANGE,THE COAL AUTHORITY,03/12/2015,SUB PUMP STTN MAINTENANCE-PWER,SUBSIDENCE PUMPING STATIONS,ENERGY&UTILITIES-ELECTRICITY,BRITISH GAS BUSINESS,96645,27.03
DEPARTMENT OF ENERGY AND CLIMATE CHANGE,THE COAL AUTHORITY,03/12/2015,SUB PUMP STTN MAINTENANCE-PWER,SUBSIDENCE PUMPING STATIONS,ENERGY&UTILITIES-ELECTRICITY,BRITISH GAS BUSINESS,96645,58.00
DEPARTMENT OF ENERGY AND CLIMATE CHANGE,THE COAL AUTHORITY,03/12/2015,SUB PUMP STTN MAINTENANCE-PWER,SUBSIDENCE PUMPING STATIONS,ENERGY&UTILITIES-ELECTRICITY,BRITISH GAS BUSINESS,96645,50.56
DEPARTMENT OF ENERGY AND CLIMATE CHANGE,THE COAL AUTHORITY,03/12/2015,SUB PUMP STTN MAINTENANCE-PWER,SUBSIDENCE PUMPING STATIONS,ENERGY&UTILITIES-ELECTRICITY,BRITISH GAS BUSINESS,96645,59.04
DEPARTMENT OF ENERGY AND CLIMATE CHANGE,THE COAL AUTHORITY,03/12/2015,SUB PUMP STTN MAINTENANCE-PWER,SUBSIDENCE PUMPING STATIONS,ENERGY&UTILITIES-ELECTRICITY,BRITISH GAS BUSINESS,96645,8.04
DEPARTMENT OF ENERGY AND CLIMATE CHANGE,THE COAL AUTHORITY,03/12/2015,SUB PUMP STTN MAINTENANCE-PWER,SUBSIDENCE PUMPING STATIONS,ENERGY&UTILITIES-ELECTRICITY,BRITISH GAS BUSINESS,96645,8.78
DEPARTMENT OF ENERGY AND CLIMATE CHANGE,THE COAL AUTHORITY,03/12/2015,SUB PUMP STTN MAINTENANCE-PWER,SUBSIDENCE PUMPING STATIONS,ENERGY&UTILITIES-ELECTRICITY,BRITISH GAS BUSINESS,96645,10.94
DEPARTMENT OF ENERGY AND CLIMATE CHANGE,THE COAL AUTHORITY,03/12/2015,SUB PUMP STTN MAINTENANCE-PWER,SUBSIDENCE PUMPING STATIONS,ENERGY&UTILITIES-ELECTRICITY,BRITISH GAS BUSINESS,96645,7.81
DEPARTMENT OF ENERGY AND CLIMATE CHANGE,THE COAL AUTHORITY,03/12/2015,SUB PUMP STTN MAINTENANCE-PWER,SUBSIDENCE PUMPING STATIONS,ENERGY&UTILITIES-ELECTRICITY,BRITISH GAS BUSINESS,96645,42.17
DEPARTMENT OF ENERGY AND CLIMATE CHANGE,THE COAL AUTHORITY,03/12/2015,SUB PUMP STTN MAINTENANCE-PWER,SUBSIDENCE PUMPING STATIONS,ENERGY&UTILITIES-ELECTRICITY,BRITISH GAS BUSINESS,96645,35.65
DEPARTMENT OF ENERGY AND CLIMATE CHANGE,THE COAL AUTHORITY,03/12/2015,SUB PUMP STTN MAINTENANCE-PWER,SUBSIDENCE PUMPING STATIONS,ENERGY&UTILITIES-ELECTRICITY,BRITISH GAS BUSINESS,96645,42.41
DEPARTMENT OF ENERGY AND CLIMATE CHANGE,THE COAL AUTHORITY,03/12/2015,SUB PUMP STTN MAINTENANCE-PWER,SUBSIDENCE PUMPING STATIONS,ENERGY&UTILITIES-ELECTRICITY,BRITISH GAS BUSINESS,96645,163.29
DEPARTMENT OF ENERGY AND CLIMATE CHANGE,THE COAL AUTHORITY,03/12/2015,SUB PUMP STTN MAINTENANCE-PWER,SUBSIDENCE PUMPING STATIONS,ENERGY&UTILITIES-ELECTRICITY,BRITISH GAS BUSINESS,96645,141.79
DEPARTMENT OF ENERGY AND CLIMATE CHANGE,THE COAL AUTHORITY,03/12/2015,SUB PUMP STTN MAINTENANCE-PWER,SUBSIDENCE PUMPING STATIONS,ENERGY&UTILITIES-ELECTRICITY,BRITISH GAS BUSINESS,96645,167.48
DEPARTMENT OF ENERGY AND CLIMATE CHANGE,THE COAL AUTHORITY,03/12/2015,SUB PUMP STTN MAINTENANCE-PWER,SUBSIDENCE PUMPING STATIONS,ENERGY&UTILITIES-ELECTRICITY,BRITISH GAS BUSINESS,96645,47.55
DEPARTMENT OF ENERGY AND CLIMATE CHANGE,THE COAL AUTHORITY,03/12/2015,SUB PUMP STTN MAINTENANCE-PWER,SUBSIDENCE PUMPING STATIONS,ENERGY&UTILITIES-ELECTRICITY,BRITISH GAS BUSINESS,96645,41.02
DEPARTMENT OF ENERGY AND CLIMATE CHANGE,THE COAL AUTHORITY,03/12/2015,SUB PUMP STTN MAINTENANCE-PWER,SUBSIDENCE PUMPING STATIONS,ENERGY&UTILITIES-ELECTRICITY,BRITISH GAS BUSINESS,96645,48.17
DEPARTMENT OF ENERGY AND CLIMATE CHANGE,THE COAL AUTHORITY,11/12/2015,SUB PUMP STTN MAINTENANCE-PWER,SUBSIDENCE PUMPING STATIONS,ENERGY&UTILITIES-ELECTRICITY,DANVM DRAINAGE COMMISSIONERS,96893,-109.72
DEPARTMENT OF ENERGY AND CLIMATE CHANGE,THE COAL AUTHORITY,11/12/2015,SUB PUMP STTN MAINTENANCE-PWER,SUBSIDENCE PUMPING STATIONS,ENERGY&UTILITIES-ELECTRICITY,DANVM DRAINAGE COMMISSIONERS,96897,-3.40
DEPARTMENT OF ENERGY AND CLIMATE CHANGE,THE COAL AUTHORITY,11/12/2015,SUB PUMP STTN MAINTENANCE-PWER,SUBSIDENCE PUMPING STATIONS,ENERGY&UTILITIES-ELECTRICITY,DANVM DRAINAGE COMMISSIONERS,96898,-2150.66
DEPARTMENT OF ENERGY AND CLIMATE CHANGE,THE COAL AUTHORITY,11/12/2015,SUB PUMP STTN MAINTENANCE-PWER,SUBSIDENCE PUMPING STATIONS,ENERGY&UTILITIES-ELECTRICITY,DANVM DRAINAGE COMMISSIONERS,96892,68.69
DEPARTMENT OF ENERGY AND CLIMATE CHANGE,THE COAL AUTHORITY,11/12/2015,SUB PUMP STTN MAINTENANCE-PWER,SUBSIDENCE PUMPING STATIONS,ENERGY&UTILITIES-ELECTRICITY,DANVM DRAINAGE COMMISSIONERS,96892,1416.96
DEPARTMENT OF ENERGY AND CLIMATE CHANGE,THE COAL AUTHORITY,11/12/2015,SUB PUMP STTN MAINTENANCE-PWER,SUBSIDENCE PUMPING STATIONS,ENERGY&UTILITIES-ELECTRICITY,DANVM DRAINAGE COMMISSIONERS,96892,151.15
DEPARTMENT OF ENERGY AND CLIMATE CHANGE,THE COAL AUTHORITY,11/12/2015,SUB PUMP STTN MAINTENANCE-PWER,SUBSIDENCE PUMPING STATIONS,ENERGY&UTILITIES-ELECTRICITY,DANVM DRAINAGE COMMISSIONERS,96892,14.62
DEPARTMENT OF ENERGY AND CLIMATE CHANGE,THE COAL AUTHORITY,11/12/2015,SUB PUMP STTN MAINTENANCE-PWER,SUBSIDENCE PUMPING STATIONS,ENERGY&UTILITIES-ELECTRICITY,DANVM DRAINAGE COMMISSIONERS,96892,695.89
DEPARTMENT OF ENERGY AND CLIMATE CHANGE,THE COAL AUTHORITY,11/12/2015,SUB PUMP STTN MAINTENANCE-PWER,SUBSIDENCE PUMPING STATIONS,ENERGY&UTILITIES-ELECTRICITY,DANVM DRAINAGE COMMISSIONERS,96892,62.79
DEPARTMENT OF ENERGY AND CLIMATE CHANGE,THE COAL AUTHORITY,11/12/2015,SUB PUMP STTN MAINTENANCE-PWER,SUBSIDENCE PUMPING STATIONS,ENERGY&UTILITIES-ELECTRICITY,DANVM DRAINAGE COMMISSIONERS,96892,21.91
DEPARTMENT OF ENERGY AND CLIMATE CHANGE,THE COAL AUTHORITY,11/12/2015,SUB PUMP STTN MAINTENANCE-PWER,SUBSIDENCE PUMPING STATIONS,ENERGY&UTILITIES-ELECTRICITY,DANVM DRAINAGE COMMISSIONERS,96892,42.34
DEPARTMENT OF ENERGY AND CLIMATE CHANGE,THE COAL AUTHORITY,11/12/2015,SUB PUMP STTN MAINTENANCE-PWER,SUBSIDENCE PUMPING STATIONS,ENERGY&UTILITIES-ELECTRICITY,DANVM DRAINAGE COMMISSIONERS,96892,219.85
DEPARTMENT OF ENERGY AND CLIMATE CHANGE,THE COAL AUTHORITY,11/12/2015,SUB PUMP STTN MAINTENANCE-PWER,SUBSIDENCE PUMPING STATIONS,ENERGY&UTILITIES-ELECTRICITY,DANVM DRAINAGE COMMISSIONERS,96892,63.01
DEPARTMENT OF ENERGY AND CLIMATE CHANGE,THE COAL AUTHORITY,11/12/2015,SUB PUMP STTN MAINTENANCE-PWER,SUBSIDENCE PUMPING STATIONS,ENERGY&UTILITIES-ELECTRICITY,DANVM DRAINAGE COMMISSIONERS,96892,196.99
DEPARTMENT OF ENERGY AND CLIMATE CHANGE,THE COAL AUTHORITY,11/12/2015,SUB PUMP STTN MAINTENANCE-PWER,SUBSIDENCE PUMPING STATIONS,ENERGY&UTILITIES-ELECTRICITY,DANVM DRAINAGE COMMISSIONERS,96892,354.62
DEPARTMENT OF ENERGY AND CLIMATE CHANGE,THE COAL AUTHORITY,11/12/2015,SUB PUMP STTN MAINTENANCE-PWER,SUBSIDENCE PUMPING STATIONS,ENERGY&UTILITIES-ELECTRICITY,DANVM DRAINAGE COMMISSIONERS,96892,1117.81
DEPARTMENT OF ENERGY AND CLIMATE CHANGE,THE COAL AUTHORITY,11/12/2015,SUB PUMP STTN MAINTENANCE-PWER,SUBSIDENCE PUMPING STATIONS,ENERGY&UTILITIES-ELECTRICITY,BRITISH GAS BUSINESS,96943,30.90
DEPARTMENT OF ENERGY AND CLIMATE CHANGE,THE COAL AUTHORITY,11/12/2015,SUB PUMP STTN MAINTENANCE-PWER,SUBSIDENCE PUMPING STATIONS,ENERGY&UTILITIES-ELECTRICITY,BRITISH GAS BUSINESS,96943,60.84
DEPARTMENT OF ENERGY AND CLIMATE CHANGE,THE COAL AUTHORITY,11/12/2015,SUB PUMP STTN MAINTENANCE-PWER,SUBSIDENCE PUMPING STATIONS,ENERGY&UTILITIES-ELECTRICITY,BRITISH GAS BUSINESS,96943,8.04
DEPARTMENT OF ENERGY AND CLIMATE CHANGE,THE COAL AUTHORITY,11/12/2015,SUB PUMP STTN MAINTENANCE-PWER,SUBSIDENCE PUMPING STATIONS,ENERGY&UTILITIES-ELECTRICITY,BRITISH GAS BUSINESS,96943,53.59
DEPARTMENT OF ENERGY AND CLIMATE CHANGE,THE COAL AUTHORITY,11/12/2015,SUB PUMP STTN MAINTENANCE-PWER,SUBSIDENCE PUMPING STATIONS,ENERGY&UTILITIES-ELECTRICITY,BRITISH GAS BUSINESS,96943,253.75
DEPARTMENT OF ENERGY AND CLIMATE CHANGE,THE COAL AUTHORITY,11/12/2015,SUB PUMP STTN MAINTENANCE-PWER,SUBSIDENCE PUMPING STATIONS,ENERGY&UTILITIES-ELECTRICITY,BRITISH GAS BUSINESS,96943,347.52
DEPARTMENT OF ENERGY AND CLIMATE CHANGE,THE COAL AUTHORITY,11/12/2015,SUB PUMP STTN MAINTENANCE-PWER,SUBSIDENCE PUMPING STATIONS,ENERGY&UTILITIES-ELECTRICITY,BRITISH GAS BUSINESS,96943,431.74
DEPARTMENT OF ENERGY AND CLIMATE CHANGE,THE COAL AUTHORITY,11/12/2015,SUB PUMP STTN MAINTENANCE-PWER,SUBSIDENCE PUMPING STATIONS,ENERGY&UTILITIES-ELECTRICITY,BRITISH GAS BUSINESS,96943,40.66
DEPARTMENT OF ENERGY AND CLIMATE CHANGE,THE COAL AUTHORITY,11/12/2015,SUB PUMP STTN MAINTENANCE-PWER,SUBSIDENCE PUMPING STATIONS,ENERGY&UTILITIES-ELECTRICITY,BRITISH GAS BUSINESS,96943,41.16
DEPARTMENT OF ENERGY AND CLIMATE CHANGE,THE COAL AUTHORITY,11/12/2015,SUB PUMP STTN MAINTENANCE-PWER,SUBSIDENCE PUMPING STATIONS,ENERGY&UTILITIES-ELECTRICITY,BRITISH GAS BUSINESS,96943,492.97
DEPARTMENT OF ENERGY AND CLIMATE CHANGE,THE COAL AUTHORITY,11/12/2015,SUB PUMP STTN MAINTENANCE-PWER,SUBSIDENCE PUMPING STATIONS,ENERGY&UTILITIES-ELECTRICITY,BRITISH GAS BUSINESS,96943,577.91
DEPARTMENT OF ENERGY AND CLIMATE CHANGE,THE COAL AUTHORITY,11/12/2015,SUB PUMP STTN MAINTENANCE-PWER,SUBSIDENCE PUMPING STATIONS,ENERGY&UTILITIES-ELECTRICITY,BRITISH GAS BUSINESS,96943,27.85
DEPARTMENT OF ENERGY AND CLIMATE CHANGE,THE COAL AUTHORITY,11/12/2015,SUB PUMP STTN MAINTENANCE-PWER,SUBSIDENCE PUMPING STATIONS,ENERGY&UTILITIES-ELECTRICITY,BRITISH GAS BUSINESS,96943,10.41
DEPARTMENT OF ENERGY AND CLIMATE CHANGE,THE COAL AUTHORITY,11/12/2015,SUB PUMP STTN MAINTENANCE-PWER,SUBSIDENCE PUMPING STATIONS,ENERGY&UTILITIES-ELECTRICITY,BRITISH GAS BUSINESS,96943,152.78
DEPARTMENT OF ENERGY AND CLIMATE CHANGE,THE COAL AUTHORITY,11/12/2015,SUB PUMP STTN MAINTENANCE-PWER,SUBSIDENCE PUMPING STATIONS,ENERGY&UTILITIES-ELECTRICITY,BRITISH GAS BUSINESS,96943,55.76
DEPARTMENT OF ENERGY AND CLIMATE CHANGE,THE COAL AUTHORITY,11/12/2015,SUB PUMP STTN MAINTENANCE-PWER,SUBSIDENCE PUMPING STATIONS,ENERGY&UTILITIES-ELECTRICITY,BRITISH GAS BUSINESS,96943,77.47
DEPARTMENT OF ENERGY AND CLIMATE CHANGE,THE COAL AUTHORITY,11/12/2015,SUB PUMP STTN MAINTENANCE-PWER,SUBSIDENCE PUMPING STATIONS,ENERGY&UTILITIES-ELECTRICITY,BRITISH GAS BUSINESS,96943,76.32
DEPARTMENT OF ENERGY AND CLIMATE CHANGE,THE COAL AUTHORITY,11/12/2015,SUB PUMP STTN MAINTENANCE-PWER,SUBSIDENCE PUMPING STATIONS,ENERGY&UTILITIES-ELECTRICITY,BRITISH GAS BUSINESS,96946,31.29
DEPARTMENT OF ENERGY AND CLIMATE CHANGE,THE COAL AUTHORITY,11/12/2015,SUB PUMP STTN MAINTENANCE-PWER,SUBSIDENCE PUMPING STATIONS,ENERGY&UTILITIES-ELECTRICITY,BRITISH GAS BUSINESS,96946,28.38
DEPARTMENT OF ENERGY AND CLIMATE CHANGE,THE COAL AUTHORITY,11/12/2015,SUB PUMP STTN MAINTENANCE-PWER,SUBSIDENCE PUMPING STATIONS,ENERGY&UTILITIES-ELECTRICITY,BRITISH GAS BUSINESS,96946,400.95
DEPARTMENT OF ENERGY AND CLIMATE CHANGE,THE COAL AUTHORITY,11/12/2015,SUB PUMP STTN MAINTENANCE-PWER,SUBSIDENCE PUMPING STATIONS,ENERGY&UTILITIES-ELECTRICITY,BRITISH GAS BUSINESS,96946,42.14
DEPARTMENT OF ENERGY AND CLIMATE CHANGE,THE COAL AUTHORITY,11/12/2015,SUB PUMP STTN MAINTENANCE-PWER,SUBSIDENCE PUMPING STATIONS,ENERGY&UTILITIES-ELECTRICITY,BRITISH GAS BUSINESS,96946,180.90
DEPARTMENT OF ENERGY AND CLIMATE CHANGE,THE COAL AUTHORITY,11/12/2015,SUB PUMP STTN MAINTENANCE-PWER,SUBSIDENCE PUMPING STATIONS,ENERGY&UTILITIES-ELECTRICITY,BRITISH GAS BUSINESS,96946,50.03
DEPARTMENT OF ENERGY AND CLIMATE CHANGE,THE COAL AUTHORITY,15/12/2015,SUB PUMP STTN MAINTENANCE-PWER,SUBSIDENCE PUMPING STATIONS,ENERGY&UTILITIES-ELECTRICITY,DONCASTER EAST I D B,96918,-275.85
DEPARTMENT OF ENERGY AND CLIMATE CHANGE,THE COAL AUTHORITY,15/12/2015,SUB PUMP STTN MAINTENANCE-PWER,SUBSIDENCE PUMPING STATIONS,ENERGY&UTILITIES-ELECTRICITY,DONCASTER EAST I D B,96917,3.60
DEPARTMENT OF ENERGY AND CLIMATE CHANGE,THE COAL AUTHORITY,15/12/2015,SUB PUMP STTN MAINTENANCE-PWER,SUBSIDENCE PUMPING STATIONS,ENERGY&UTILITIES-ELECTRICITY,DONCASTER EAST I D B,96917,156.54
DEPARTMENT OF ENERGY AND CLIMATE CHANGE,THE COAL AUTHORITY,15/12/2015,SUB PUMP STTN MAINTENANCE-PWER,SUBSIDENCE PUMPING STATIONS,ENERGY&UTILITIES-ELECTRICITY,DONCASTER EAST I D B,96917,122.32
DEPARTMENT OF ENERGY AND CLIMATE CHANGE,THE COAL AUTHORITY,15/12/2015,SUB PUMP STTN MAINTENANCE-PWER,SUBSIDENCE PUMPING STATIONS,ENERGY&UTILITIES-ELECTRICITY,DONCASTER EAST I D B,96917,124.71
DEPARTMENT OF ENERGY AND CLIMATE CHANGE,THE COAL AUTHORITY,15/12/2015,SUB PUMP STTN MAINTENANCE-PWER,SUBSIDENCE PUMPING STATIONS,ENERGY&UTILITIES-ELECTRICITY,DONCASTER EAST I D B,96917,0.85
DEPARTMENT OF ENERGY AND CLIMATE CHANGE,THE COAL AUTHORITY,15/12/2015,SUB PUMP STTN MAINTENANCE-PWER,SUBSIDENCE PUMPING STATIONS,ENERGY&UTILITIES-ELECTRICITY,DONCASTER EAST I D B,96917,104.85
DEPARTMENT OF ENERGY AND CLIMATE CHANGE,THE COAL AUTHORITY,15/12/2015,SUB PUMP STTN MAINTENANCE-PWER,SUBSIDENCE PUMPING STATIONS,ENERGY&UTILITIES-ELECTRICITY,DONCASTER EAST I D B,96917,46.71
DEPARTMENT OF ENERGY AND CLIMATE CHANGE,THE COAL AUTHORITY,15/12/2015,SUB PUMP STTN MAINTENANCE-PWER,SUBSIDENCE PUMPING STATIONS,ENERGY&UTILITIES-ELECTRICITY,DONCASTER EAST I D B,96917,42.47
DEPARTMENT OF ENERGY AND CLIMATE CHANGE,THE COAL AUTHORITY,15/12/2015,SUB PUMP STTN MAINTENANCE-PWER,SUBSIDENCE PUMPING STATIONS,ENERGY&UTILITIES-ELECTRICITY,DONCASTER EAST I D B,96917,573.88
DEPARTMENT OF ENERGY AND CLIMATE CHANGE,THE COAL AUTHORITY,15/12/2015,SUB PUMP STTN MAINTENANCE-PWER,SUBSIDENCE PUMPING STATIONS,ENERGY&UTILITIES-ELECTRICITY,EDF ENERGY,96941,1094.87
DEPARTMENT OF ENERGY AND CLIMATE CHANGE,THE COAL AUTHORITY,15/12/2015,SUB PUMP STTN MAINTENANCE-PWER,SUBSIDENCE PUMPING STATIONS,ENERGY&UTILITIES-ELECTRICITY,EDF ENERGY,96941,1841.75
DEPARTMENT OF ENERGY AND CLIMATE CHANGE,THE COAL AUTHORITY,15/12/2015,SUB PUMP STTN MAINTENANCE-PWER,SUBSIDENCE PUMPING STATIONS,ENERGY&UTILITIES-ELECTRICITY,EDF ENERGY,96941,757.18
DEPARTMENT OF ENERGY AND CLIMATE CHANGE,THE COAL AUTHORITY,15/12/2015,SUB PUMP STTN MAINTENANCE-PWER,SUBSIDENCE PUMPING STATIONS,ENERGY&UTILITIES-ELECTRICITY,EDF ENERGY,96941,330.35
DEPARTMENT OF ENERGY AND CLIMATE CHANGE,THE COAL AUTHORITY,03/11/2015,CAR HIRE,SURFACE HAZARDS,TRAVEL&EVENTS-VEHICLE HIRE,ENTERPRISE RENT A CAR,96315,136.85
DEPARTMENT OF ENERGY AND CLIMATE CHANGE,THE COAL AUTHORITY,05/11/2015,CAR HIRE,SURFACE HAZARDS,TRAVEL&EVENTS-VEHICLE HIRE,ENTERPRISE RENT A CAR,96311,48.50
DEPARTMENT OF ENERGY AND CLIMATE CHANGE,THE COAL AUTHORITY,21/11/2015,CAR HIRE,SURFACE HAZARDS,TRAVEL&EVENTS-VEHICLE HIRE,ENTERPRISE RENT A CAR,96303,76.05
DEPARTMENT OF ENERGY AND CLIMATE CHANGE,THE COAL AUTHORITY,30/11/2015,CHILDCARE VOUCHERS,SURFACE HAZARDS,PERSONNEL RLTD-STAFF CHILDCARE,FIDELITI LIMITED,96318,50.00
DEPARTMENT OF ENERGY AND CLIMATE CHANGE,THE COAL AUTHORITY,03/11/2015,CONTRACTORS AND CLAIM COSTS,SURFACE HAZARDS,CONSTRUCTION-CNSTRN SUPPLIES,RBS GPC October 2015,97160,25.61
DEPARTMENT OF ENERGY AND CLIMATE CHANGE,THE COAL AUTHORITY,25/11/2015,CONTRACTORS AND CLAIM COSTS,SURFACE HAZARDS,ENERGY&UTILITIES-ELECTRICITY,EDF ENERGY,96336,365.42
DEPARTMENT OF ENERGY AND CLIMATE CHANGE,THE COAL AUTHORITY,30/11/2015,CONTRACTORS AND CLAIM COSTS,SURFACE HAZARDS,CONSTRUCTION-MAIN CONTRACTORS,GEOL-CONSULTANTS LTD,96287,264.00
DEPARTMENT OF ENERGY AND CLIMATE CHANGE,THE COAL AUTHORITY,30/11/2015,CONTRACTORS AND CLAIM COSTS,SURFACE HAZARDS,CONSTRUCTION-CNSTRN SER PROVDR,CORNERSTONE  PROJECTS LTD,96297,103.00
DEPARTMENT OF ENERGY AND CLIMATE CHANGE,THE COAL AUTHORITY,30/11/2015,CONTRACTORS AND CLAIM COSTS,SURFACE HAZARDS,CONSTRUCTION-CNSTRN SER PROVDR,CORNERSTONE  PROJECTS LTD,96298,262.90
DEPARTMENT OF ENERGY AND CLIMATE CHANGE,THE COAL AUTHORITY,30/11/2015,CONTRACTORS AND CLAIM COSTS,SURFACE HAZARDS,CONSTRUCTION-CNSTRN SER PROVDR,CORNERSTONE  PROJECTS LTD,96299,58.00
DEPARTMENT OF ENERGY AND CLIMATE CHANGE,THE COAL AUTHORITY,01/12/2015,CONTRACTORS AND CLAIM COSTS,SURFACE HAZARDS,CONSTRUCTION-MAIN CONTRACTORS,GEOL-CONSULTANTS LTD,96327,1495.00
DEPARTMENT OF ENERGY AND CLIMATE CHANGE,THE COAL AUTHORITY,02/12/2015,CONTRACTORS AND CLAIM COSTS,SURFACE HAZARDS,CONSTRUCTION-MAIN CONTRACTORS,LLETTYSHENKIN CONS CO LTD,96431,297.80
DEPARTMENT OF ENERGY AND CLIMATE CHANGE,THE COAL AUTHORITY,03/12/2015,CONTRACTORS AND CLAIM COSTS,SURFACE HAZARDS,CONSTRUCTION-MAIN CONTRACTORS,J MURPHY & SONS LIMITED,96582,1317.10
DEPARTMENT OF ENERGY AND CLIMATE CHANGE,THE COAL AUTHORITY,03/12/2015,CONTRACTORS AND CLAIM COSTS,SURFACE HAZARDS,CONSTRUCTION-MAIN CONTRACTORS,J MURPHY & SONS LIMITED,96584,13313.39
DEPARTMENT OF ENERGY AND CLIMATE CHANGE,THE COAL AUTHORITY,03/12/2015,CONTRACTORS AND CLAIM COSTS,SURFACE HAZARDS,CONSTRUCTION-MAIN CONTRACTORS,GEOL-CONSULTANTS LTD,96426,1495.00
DEPARTMENT OF ENERGY AND CLIMATE CHANGE,THE COAL AUTHORITY,04/12/2015,CONTRACTORS AND CLAIM COSTS,SURFACE HAZARDS,CONSTRUCTION-MAIN CONTRACTORS,BALFOUR BEATTY CIVIL ENG LTD,96675,7602.32
DEPARTMENT OF ENERGY AND CLIMATE CHANGE,THE COAL AUTHORITY,04/12/2015,CONTRACTORS AND CLAIM COSTS,SURFACE HAZARDS,CONSTRUCTION-MAIN CONTRACTORS,BALFOUR BEATTY CIVIL ENG LTD,96676,8832.48
DEPARTMENT OF ENERGY AND CLIMATE CHANGE,THE COAL AUTHORITY,07/12/2015,CONTRACTORS AND CLAIM COSTS,SURFACE HAZARDS,CONSTRUCTION-MAIN CONTRACTORS,BALFOUR BEATTY CIVIL ENG LTD,96581,2567.05
DEPARTMENT OF ENERGY AND CLIMATE CHANGE,THE COAL AUTHORITY,07/12/2015,CONTRACTORS AND CLAIM COSTS,SURFACE HAZARDS,CONSTRUCTION-CNSTRN SER PROVDR,PMC SURVEYS,96635,3768.30
DEPARTMENT OF ENERGY AND CLIMATE CHANGE,THE COAL AUTHORITY,07/12/2015,CONTRACTORS AND CLAIM COSTS,SURFACE HAZARDS,CONSTRUCTION-MAIN CONTRACTORS,JIM DAVIES CIVIL ENGINEERING,96637,272.25
DEPARTMENT OF ENERGY AND CLIMATE CHANGE,THE COAL AUTHORITY,09/12/2015,CONTRACTORS AND CLAIM COSTS,SURFACE HAZARDS,CONSTRUCTION-CNSTRN SER PROVDR,SWS ENVIRONMENTAL SERVICES,96832,3300.00
DEPARTMENT OF ENERGY AND CLIMATE CHANGE,THE COAL AUTHORITY,09/12/2015,CONTRACTORS AND CLAIM COSTS,SURFACE HAZARDS,CONSTRUCTION-MAIN CONTRACTORS,JIM HASTINGS LIMITED,96956,1116.86
DEPARTMENT OF ENERGY AND CLIMATE CHANGE,THE COAL AUTHORITY,11/12/2015,CONTRACTORS AND CLAIM COSTS,SURFACE HAZARDS,CONSTRUCTION-MAIN CONTRACTORS,ALLIANCE GROUP SOLUTIONS LTD,96760,5051.78
DEPARTMENT OF ENERGY AND CLIMATE CHANGE,THE COAL AUTHORITY,11/12/2015,CONTRACTORS AND CLAIM COSTS,SURFACE HAZARDS,CONSTRUCTION-MAIN CONTRACTORS,ALLIANCE GROUP SOLUTIONS LTD,96761,2865.60
DEPARTMENT OF ENERGY AND CLIMATE CHANGE,THE COAL AUTHORITY,11/12/2015,CONTRACTORS AND CLAIM COSTS,SURFACE HAZARDS,CONSTRUCTION-MAIN CONTRACTORS,ALLIANCE GROUP SOLUTIONS LTD,96762,2613.84
DEPARTMENT OF ENERGY AND CLIMATE CHANGE,THE COAL AUTHORITY,11/12/2015,CONTRACTORS AND CLAIM COSTS,SURFACE HAZARDS,CONSTRUCTION-MAIN CONTRACTORS,ALLIANCE GROUP SOLUTIONS LTD,96763,1683.41
DEPARTMENT OF ENERGY AND CLIMATE CHANGE,THE COAL AUTHORITY,11/12/2015,CONTRACTORS AND CLAIM COSTS,SURFACE HAZARDS,CONSTRUCTION-MAIN CONTRACTORS,SOIL ENGINEERING GEOSERVICES L,96777,38868.28
DEPARTMENT OF ENERGY AND CLIMATE CHANGE,THE COAL AUTHORITY,11/12/2015,CONTRACTORS AND CLAIM COSTS,SURFACE HAZARDS,CONSTRUCTION-MAIN CONTRACTORS,LLETTYSHENKIN CONS CO LTD,96792,521.25
DEPARTMENT OF ENERGY AND CLIMATE CHANGE,THE COAL AUTHORITY,11/12/2015,CONTRACTORS AND CLAIM COSTS,SURFACE HAZARDS,CONSTRUCTION-MAIN CONTRACTORS,LLETTYSHENKIN CONS CO LTD,96793,341.25
DEPARTMENT OF ENERGY AND CLIMATE CHANGE,THE COAL AUTHORITY,14/12/2015,CONTRACTORS AND CLAIM COSTS,SURFACE HAZARDS,"CONSTRUCTION-BLD,REPR&MAINTNCE",MRS D MURPHY,96843,75.00
DEPARTMENT OF ENERGY AND CLIMATE CHANGE,THE COAL AUTHORITY,14/12/2015,CONTRACTORS AND CLAIM COSTS,SURFACE HAZARDS,CONSTRUCTION-MAIN CONTRACTORS,BALFOUR BEATTY CIVIL ENG LTD,96847,797.68
DEPARTMENT OF ENERGY AND CLIMATE CHANGE,THE COAL AUTHORITY,14/12/2015,CONTRACTORS AND CLAIM COSTS,SURFACE HAZARDS,CONSTRUCTION-MAIN CONTRACTORS,BALFOUR BEATTY CIVIL ENG LTD,96875,5940.00
DEPARTMENT OF ENERGY AND CLIMATE CHANGE,THE COAL AUTHORITY,14/12/2015,CONTRACTORS AND CLAIM COSTS,SURFACE HAZARDS,CONSTRUCTION-MAIN CONTRACTORS,BALFOUR BEATTY CIVIL ENG LTD,96876,146.40
DEPARTMENT OF ENERGY AND CLIMATE CHANGE,THE COAL AUTHORITY,16/12/2015,CONTRACTORS AND CLAIM COSTS,SURFACE HAZARDS,CONSTRUCTION-CNSTRN SER PROVDR,CORNERSTONE  PROJECTS LTD,96931,271.98
DEPARTMENT OF ENERGY AND CLIMATE CHANGE,THE COAL AUTHORITY,16/12/2015,CONTRACTORS AND CLAIM COSTS,SURFACE HAZARDS,CONSTRUCTION-CNSTRN SER PROVDR,CORNERSTONE  PROJECTS LTD,96933,102.00
DEPARTMENT OF ENERGY AND CLIMATE CHANGE,THE COAL AUTHORITY,16/12/2015,CONTRACTORS AND CLAIM COSTS,SURFACE HAZARDS,CONSTRUCTION-CNSTRN SER PROVDR,CORNERSTONE  PROJECTS LTD,96934,58.00
DEPARTMENT OF ENERGY AND CLIMATE CHANGE,THE COAL AUTHORITY,16/12/2015,CONTRACTORS AND CLAIM COSTS,SURFACE HAZARDS,CONSTRUCTION-CNSTRN SER PROVDR,CORNERSTONE  PROJECTS LTD,96935,103.00
DEPARTMENT OF ENERGY AND CLIMATE CHANGE,THE COAL AUTHORITY,16/12/2015,CONTRACTORS AND CLAIM COSTS,SURFACE HAZARDS,CONSTRUCTION-CNSTRN SER PROVDR,CORNERSTONE  PROJECTS LTD,96929,58.00
DEPARTMENT OF ENERGY AND CLIMATE CHANGE,THE COAL AUTHORITY,16/12/2015,CONTRACTORS AND CLAIM COSTS,SURFACE HAZARDS,CONSTRUCTION-CNSTRN SER PROVDR,CORNERSTONE  PROJECTS LTD,96924,103.00
DEPARTMENT OF ENERGY AND CLIMATE CHANGE,THE COAL AUTHORITY,16/12/2015,CONTRACTORS AND CLAIM COSTS,SURFACE HAZARDS,CONSTRUCTION-CNSTRN SER PROVDR,CORNERSTONE  PROJECTS LTD,96925,153.00
DEPARTMENT OF ENERGY AND CLIMATE CHANGE,THE COAL AUTHORITY,16/12/2015,CONTRACTORS AND CLAIM COSTS,SURFACE HAZARDS,CONSTRUCTION-CNSTRN SER PROVDR,CORNERSTONE  PROJECTS LTD,96926,153.00
DEPARTMENT OF ENERGY AND CLIMATE CHANGE,THE COAL AUTHORITY,16/12/2015,CONTRACTORS AND CLAIM COSTS,SURFACE HAZARDS,CONSTRUCTION-CNSTRN SER PROVDR,CORNERSTONE  PROJECTS LTD,96927,217.90
DEPARTMENT OF ENERGY AND CLIMATE CHANGE,THE COAL AUTHORITY,30/11/2015,CURR YR ADD-INTNGBLE INFO TECH,SURFACE HAZARDS,ICT-SYSTEMS DELIVERY,SCISYS UK LTD,96505,103320.00
DEPARTMENT OF ENERGY AND CLIMATE CHANGE,THE COAL AUTHORITY,11/12/2015,CURR YR ADD-INTNGBLE INFO TECH,SURFACE HAZARDS,ICT-SYSTEMS DELIVERY,SCISYS UK LTD,96988,5400.00
DEPARTMENT OF ENERGY AND CLIMATE CHANGE,THE COAL AUTHORITY,03/11/2015,FARES - RAIL,SURFACE HAZARDS,TRAVEL&EVENTS-RAIL,RBS GPC October 2015,97160,16.90
DEPARTMENT OF ENERGY AND CLIMATE CHANGE,THE COAL AUTHORITY,30/11/2015,FARES - RAIL,SURFACE HAZARDS,TRAVEL&EVENTS-RAIL,REDFERN TRAVEL LTD,96660,220.12
DEPARTMENT OF ENERGY AND CLIMATE CHANGE,THE COAL AUTHORITY,03/11/2015,FUEL (VEHICLE),SURFACE HAZARDS,FUELS/LUBRCNT/GAS-FUELS,RBS GPC October 2015,97160,58.40
DEPARTMENT OF ENERGY AND CLIMATE CHANGE,THE COAL AUTHORITY,02/12/2015,FUEL (VEHICLE),SURFACE HAZARDS,FUELS/LUBRCNT/GAS-FUELS,ALLSTAR BUSINESS SOLUTIONS LTD,96497,45.02
DEPARTMENT OF ENERGY AND CLIMATE CHANGE,THE COAL AUTHORITY,02/12/2015,FUEL (VEHICLE),SURFACE HAZARDS,FUELS/LUBRCNT/GAS-FUELS,ALLSTAR BUSINESS SOLUTIONS LTD,96499,49.67
DEPARTMENT OF ENERGY AND CLIMATE CHANGE,THE COAL AUTHORITY,02/12/2015,FUEL (VEHICLE),SURFACE HAZARDS,FUELS/LUBRCNT/GAS-FUELS,ALLSTAR BUSINESS SOLUTIONS LTD,96500,69.81
DEPARTMENT OF ENERGY AND CLIMATE CHANGE,THE COAL AUTHORITY,02/12/2015,FUEL (VEHICLE),SURFACE HAZARDS,FUELS/LUBRCNT/GAS-FUELS,ALLSTAR BUSINESS SOLUTIONS LTD,96501,67.16
DEPARTMENT OF ENERGY AND CLIMATE CHANGE,THE COAL AUTHORITY,02/12/2015,FUEL (VEHICLE),SURFACE HAZARDS,FUELS/LUBRCNT/GAS-FUELS,ALLSTAR BUSINESS SOLUTIONS LTD,96489,50.10
DEPARTMENT OF ENERGY AND CLIMATE CHANGE,THE COAL AUTHORITY,02/12/2015,FUEL (VEHICLE),SURFACE HAZARDS,FUELS/LUBRCNT/GAS-FUELS,ALLSTAR BUSINESS SOLUTIONS LTD,96490,57.75
DEPARTMENT OF ENERGY AND CLIMATE CHANGE,THE COAL AUTHORITY,02/12/2015,FUEL (VEHICLE),SURFACE HAZARDS,FUELS/LUBRCNT/GAS-FUELS,ALLSTAR BUSINESS SOLUTIONS LTD,96492,46.58
DEPARTMENT OF ENERGY AND CLIMATE CHANGE,THE COAL AUTHORITY,02/12/2015,FUEL (VEHICLE),SURFACE HAZARDS,FUELS/LUBRCNT/GAS-FUELS,ALLSTAR BUSINESS SOLUTIONS LTD,96496,98.25
DEPARTMENT OF ENERGY AND CLIMATE CHANGE,THE COAL AUTHORITY,09/12/2015,FUEL (VEHICLE),SURFACE HAZARDS,FUELS/LUBRCNT/GAS-FUELS,ALLSTAR BUSINESS SOLUTIONS LTD,96747,49.93
DEPARTMENT OF ENERGY AND CLIMATE CHANGE,THE COAL AUTHORITY,09/12/2015,FUEL (VEHICLE),SURFACE HAZARDS,FUELS/LUBRCNT/GAS-FUELS,ALLSTAR BUSINESS SOLUTIONS LTD,96748,132.04
DEPARTMENT OF ENERGY AND CLIMATE CHANGE,THE COAL AUTHORITY,09/12/2015,FUEL (VEHICLE),SURFACE HAZARDS,FUELS/LUBRCNT/GAS-FUELS,ALLSTAR BUSINESS SOLUTIONS LTD,96752,73.33
DEPARTMENT OF ENERGY AND CLIMATE CHANGE,THE COAL AUTHORITY,09/12/2015,FUEL (VEHICLE),SURFACE HAZARDS,FUELS/LUBRCNT/GAS-FUELS,ALLSTAR BUSINESS SOLUTIONS LTD,96753,58.28
DEPARTMENT OF ENERGY AND CLIMATE CHANGE,THE COAL AUTHORITY,09/12/2015,FUEL (VEHICLE),SURFACE HAZARDS,FUELS/LUBRCNT/GAS-FUELS,ALLSTAR BUSINESS SOLUTIONS LTD,96750,52.64
DEPARTMENT OF ENERGY AND CLIMATE CHANGE,THE COAL AUTHORITY,09/12/2015,FUEL (VEHICLE),SURFACE HAZARDS,FUELS/LUBRCNT/GAS-FUELS,ALLSTAR BUSINESS SOLUTIONS LTD,96754,42.28
DEPARTMENT OF ENERGY AND CLIMATE CHANGE,THE COAL AUTHORITY,09/12/2015,FUEL (VEHICLE),SURFACE HAZARDS,FUELS/LUBRCNT/GAS-FUELS,ALLSTAR BUSINESS SOLUTIONS LTD,96755,26.16
DEPARTMENT OF ENERGY AND CLIMATE CHANGE,THE COAL AUTHORITY,09/12/2015,FUEL (VEHICLE),SURFACE HAZARDS,FUELS/LUBRCNT/GAS-FUELS,ALLSTAR BUSINESS SOLUTIONS LTD,96756,68.73
DEPARTMENT OF ENERGY AND CLIMATE CHANGE,THE COAL AUTHORITY,14/12/2015,FUEL (VEHICLE),SURFACE HAZARDS,FUELS/LUBRCNT/GAS-FUELS,VAT RECLMD PM BUSNESS MLGE,96848,-430.54
DEPARTMENT OF ENERGY AND CLIMATE CHANGE,THE COAL AUTHORITY,16/12/2015,FUEL (VEHICLE),SURFACE HAZARDS,FUELS/LUBRCNT/GAS-FUELS,ALLSTAR BUSINESS SOLUTIONS LTD,96976,85.72
DEPARTMENT OF ENERGY AND CLIMATE CHANGE,THE COAL AUTHORITY,16/12/2015,FUEL (VEHICLE),SURFACE HAZARDS,FUELS/LUBRCNT/GAS-FUELS,ALLSTAR BUSINESS SOLUTIONS LTD,96977,141.96
DEPARTMENT OF ENERGY AND CLIMATE CHANGE,THE COAL AUTHORITY,16/12/2015,FUEL (VEHICLE),SURFACE HAZARDS,FUELS/LUBRCNT/GAS-FUELS,ALLSTAR BUSINESS SOLUTIONS LTD,96978,118.55
DEPARTMENT OF ENERGY AND CLIMATE CHANGE,THE COAL AUTHORITY,16/12/2015,FUEL (VEHICLE),SURFACE HAZARDS,FUELS/LUBRCNT/GAS-FUELS,ALLSTAR BUSINESS SOLUTIONS LTD,96979,87.01
DEPARTMENT OF ENERGY AND CLIMATE CHANGE,THE COAL AUTHORITY,16/12/2015,FUEL (VEHICLE),SURFACE HAZARDS,FUELS/LUBRCNT/GAS-FUELS,ALLSTAR BUSINESS SOLUTIONS LTD,96980,68.12
DEPARTMENT OF ENERGY AND CLIMATE CHANGE,THE COAL AUTHORITY,16/12/2015,FUEL (VEHICLE),SURFACE HAZARDS,FUELS/LUBRCNT/GAS-FUELS,ALLSTAR BUSINESS SOLUTIONS LTD,96981,62.25
DEPARTMENT OF ENERGY AND CLIMATE CHANGE,THE COAL AUTHORITY,16/12/2015,FUEL (VEHICLE),SURFACE HAZARDS,FUELS/LUBRCNT/GAS-FUELS,ALLSTAR BUSINESS SOLUTIONS LTD,96982,84.62
DEPARTMENT OF ENERGY AND CLIMATE CHANGE,THE COAL AUTHORITY,16/12/2015,FUEL (VEHICLE),SURFACE HAZARDS,FUELS/LUBRCNT/GAS-FUELS,ALLSTAR BUSINESS SOLUTIONS LTD,96984,58.17
DEPARTMENT OF ENERGY AND CLIMATE CHANGE,THE COAL AUTHORITY,16/12/2015,FUEL (VEHICLE),SURFACE HAZARDS,FUELS/LUBRCNT/GAS-FUELS,ALLSTAR BUSINESS SOLUTIONS LTD,96985,51.01
DEPARTMENT OF ENERGY AND CLIMATE CHANGE,THE COAL AUTHORITY,16/12/2015,FUEL (VEHICLE),SURFACE HAZARDS,FUELS/LUBRCNT/GAS-FUELS,ALLSTAR BUSINESS SOLUTIONS LTD,96986,78.06
DEPARTMENT OF ENERGY AND CLIMATE CHANGE,THE COAL AUTHORITY,16/12/2015,FUEL (VEHICLE),SURFACE HAZARDS,FUELS/LUBRCNT/GAS-FUELS,ALLSTAR BUSINESS SOLUTIONS LTD,96987,38.84
DEPARTMENT OF ENERGY AND CLIMATE CHANGE,THE COAL AUTHORITY,03/11/2015,HOTEL ACCOMMODATION,SURFACE HAZARDS,TRAVEL&EVENTS-HOTELS,RBS GPC October 2015,97160,45.00
DEPARTMENT OF ENERGY AND CLIMATE CHANGE,THE COAL AUTHORITY,30/11/2015,HOTEL ACCOMMODATION,SURFACE HAZARDS,TRAVEL&EVENTS-HOTELS,REDFERN TRAVEL LTD,96662,906.46
DEPARTMENT OF ENERGY AND CLIMATE CHANGE,THE COAL AUTHORITY,03/11/2015,INCIDENTALS,SURFACE HAZARDS,VEHICLES-FLEET MANAGEMENT,RBS GPC October 2015,97160,42.82
DEPARTMENT OF ENERGY AND CLIMATE CHANGE,THE COAL AUTHORITY,10/12/2015,INCIDENTALS,SURFACE HAZARDS,VEHICLES-FLEET MANAGEMENT,STAFF EXPENSES CONTROL,96720,1.60
DEPARTMENT OF ENERGY AND CLIMATE CHANGE,THE COAL AUTHORITY,09/12/2015,IT-APPLICATIONS MANAGEMENT,SURFACE HAZARDS,ICT-SYSTEMS DELIVERY,SCISYS UK LTD,96826,1661.24
DEPARTMENT OF ENERGY AND CLIMATE CHANGE,THE COAL AUTHORITY,11/12/2015,LEGAL COSTS,SURFACE HAZARDS,PROF SER-OPERATIONAL SERVICES,LAND REGISTRY,96842,6.00
DEPARTMENT OF ENERGY AND CLIMATE CHANGE,THE COAL AUTHORITY,11/12/2015,M/W PUMPING TESTS,SURFACE HAZARDS,CONSTRUCTION-MAIN CONTRACTORS,LLETTYSHENKIN CONS CO LTD,96791,7010.54
DEPARTMENT OF ENERGY AND CLIMATE CHANGE,THE COAL AUTHORITY,03/11/2015,MEETINGS,SURFACE HAZARDS,FACILITIES - FOOD,RBS GPC October 2015,97160,6.57
DEPARTMENT OF ENERGY AND CLIMATE CHANGE,THE COAL AUTHORITY,01/12/2015,MEMBERSHIP SUBSCRIPTIONS,SURFACE HAZARDS,PERSONNEL RLTD-STAFF SUBSCRPTN,BSI,96608,583.00
DEPARTMENT OF ENERGY AND CLIMATE CHANGE,THE COAL AUTHORITY,04/12/2015,MILEAGE PAYMENTS,SURFACE HAZARDS,FUELS/LUBRCNT/GAS-FUELS,STAFF EXPENSES CONTROL,96547,37.60
DEPARTMENT OF ENERGY AND CLIMATE CHANGE,THE COAL AUTHORITY,10/12/2015,MILEAGE PAYMENTS,SURFACE HAZARDS,FUELS/LUBRCNT/GAS-FUELS,STAFF EXPENSES CONTROL,96720,331.43
DEPARTMENT OF ENERGY AND CLIMATE CHANGE,THE COAL AUTHORITY,14/12/2015,MILEAGE PAYMENTS,SURFACE HAZARDS,FUELS/LUBRCNT/GAS-FUELS,STAFF EXPENSES CONTROL,96806,233.55
DEPARTMENT OF ENERGY AND CLIMATE CHANGE,THE COAL AUTHORITY,03/11/2015,MONITORING AND EQUIPMENT,SURFACE HAZARDS,ENGINEERING GOODS-TOOLS,RBS GPC October 2015,97160,320.00
DEPARTMENT OF ENERGY AND CLIMATE CHANGE,THE COAL AUTHORITY,30/10/2015,OFFICE MACHINERY PURCHASED,SURFACE HAZARDS,OPRTNL GOODS&SERV-ELEC MNTRING,ENVIRONMENTAL SCIENTIFICS GRP,96837,2349.92
DEPARTMENT OF ENERGY AND CLIMATE CHANGE,THE COAL AUTHORITY,03/11/2015,OFFICE MACHINERY PURCHASED,SURFACE HAZARDS,OPRTNL GOODS&SERV-ELEC MNTRING,RBS GPC October 2015,97160,70.01
DEPARTMENT OF ENERGY AND CLIMATE CHANGE,THE COAL AUTHORITY,03/11/2015,OFFICE MACHINERY PURCHASED,SURFACE HAZARDS,ENGINEERING GOODS-TOOLS,RBS GPC October 2015,97160,30.15
DEPARTMENT OF ENERGY AND CLIMATE CHANGE,THE COAL AUTHORITY,03/11/2015,OFFICE MACHINERY PURCHASED,SURFACE HAZARDS,CONSTRUCTION-CNSTRN SUPPLIES,RBS GPC October 2015,97160,507.60
DEPARTMENT OF ENERGY AND CLIMATE CHANGE,THE COAL AUTHORITY,03/11/2015,OFFICE MACHINERY PURCHASED,SURFACE HAZARDS,OFFICE SOLUTIONS-OFFICE CNSMBL,RBS GPC October 2015,97160,48.96
DEPARTMENT OF ENERGY AND CLIMATE CHANGE,THE COAL AUTHORITY,10/12/2015,OFFICE MACHINERY PURCHASED,SURFACE HAZARDS,OPRTNL GOODS&SERV-ELEC MNTRING,RIBBLE ENVIRO LTD,96838,330.00
DEPARTMENT OF ENERGY AND CLIMATE CHANGE,THE COAL AUTHORITY,08/12/2015,OUTSOURCED MANAGEMENT-PS&S,SURFACE HAZARDS,SOCIAL CARE-EMERGENCY SERVICES,MINES RESCUE SERVICE LIMITED,96668,26100.00
DEPARTMENT OF ENERGY AND CLIMATE CHANGE,THE COAL AUTHORITY,29/11/2015,PAYMENTS TO AGENCIES FOR TEMPS,SURFACE HAZARDS,PROF SER TMP STFF-SPCLST CNTRT,VENTURE FINANCE PLC,96434,1082.90
DEPARTMENT OF ENERGY AND CLIMATE CHANGE,THE COAL AUTHORITY,06/12/2015,PAYMENTS TO AGENCIES FOR TEMPS,SURFACE HAZARDS,PROF SER TMP STFF-SPCLST CNTRT,VENTURE FINANCE PLC,96729,1082.90
DEPARTMENT OF ENERGY AND CLIMATE CHANGE,THE COAL AUTHORITY,13/12/2015,PAYMENTS TO AGENCIES FOR TEMPS,SURFACE HAZARDS,PROF SER TMP STFF-SPCLST CNTRT,VENTURE FINANCE PLC,96947,943.67
DEPARTMENT OF ENERGY AND CLIMATE CHANGE,THE COAL AUTHORITY,03/11/2015,POSTAGE,SURFACE HAZARDS,OFFICE SOLUTIONS-POST&COURIER,RBS GPC October 2015,97160,29.60
DEPARTMENT OF ENERGY AND CLIMATE CHANGE,THE COAL AUTHORITY,03/11/2015,PRINTING,SURFACE HAZARDS,OFFICE SOLUTIONS-OFFICE CNSMBL,RBS GPC October 2015,97160,31.00
DEPARTMENT OF ENERGY AND CLIMATE CHANGE,THE COAL AUTHORITY,03/11/2015,PROFESSIONAL SUBSCRIPTIONS,SURFACE HAZARDS,PERSONNEL RLTD-STAFF SUBSCRPTN,RBS GPC October 2015,97160,213.00
DEPARTMENT OF ENERGY AND CLIMATE CHANGE,THE COAL AUTHORITY,03/11/2015,STATIONERY,SURFACE HAZARDS,OFFICE SOLUTIONS-OFFICE CNSMBL,RBS GPC October 2015,97160,34.80
DEPARTMENT OF ENERGY AND CLIMATE CHANGE,THE COAL AUTHORITY,03/11/2015,SUBSISTENCE ALLOWANCES,SURFACE HAZARDS,FACILITIES - FOOD,RBS GPC October 2015,97160,374.86
DEPARTMENT OF ENERGY AND CLIMATE CHANGE,THE COAL AUTHORITY,09/12/2015,SUBSISTENCE ALLOWANCES,SURFACE HAZARDS,FACILITIES - FOOD,STAFF EXPENSES CONTROL,96692,22.27
DEPARTMENT OF ENERGY AND CLIMATE CHANGE,THE COAL AUTHORITY,10/12/2015,SUBSISTENCE ALLOWANCES,SURFACE HAZARDS,FACILITIES - FOOD,STAFF EXPENSES CONTROL,96720,7.64
DEPARTMENT OF ENERGY AND CLIMATE CHANGE,THE COAL AUTHORITY,07/05/2015,TRAINING AND EDUCATION,SURFACE HAZARDS,PROF SER LRNG&DEV-STAFF TRNING,SYMMONS MADGE ASSOCIATES LLP,96824,1200.00
DEPARTMENT OF ENERGY AND CLIMATE CHANGE,THE COAL AUTHORITY,17/11/2015,TRAINING AND EDUCATION,SURFACE HAZARDS,PROF SER LRNG&DEV-STAFF TRNING,SYMMONS MADGE ASSOCIATES LLP,96822,698.05
DEPARTMENT OF ENERGY AND CLIMATE CHANGE,THE COAL AUTHORITY,30/11/2015,CONTRACTORS AND CLAIM COSTS,THORESBY COLLIERY,CONSTRUCTION-CNSTRN SER PROVDR,CORNERSTONE  PROJECTS LTD,96300,103.00
DEPARTMENT OF ENERGY AND CLIMATE CHANGE,THE COAL AUTHORITY,20/11/2015,CONTRACTORS AND CLAIM COSTS,TIP MAINTENANCE/IMPROVEMENTS,CONSTRUCTION-MAIN CONTRACTORS,BALFOUR BEATTY CIVIL ENG LTD,96674,732.60
DEPARTMENT OF ENERGY AND CLIMATE CHANGE,THE COAL AUTHORITY,30/11/2015,OUTSOURCED MANAGEMENT TIPS,TIP MAINTENANCE/IMPROVEMENTS,PROF SER CNSLTNCY-TCHNL CNSLTY,JMC ENGINEERING (UK) LTD,96454,4232.00
DEPARTMENT OF ENERGY AND CLIMATE CHANGE,THE COAL AUTHORITY,30/11/2015,OUTSOURCED MANAGEMENT TIPS,TIP MAINTENANCE/IMPROVEMENTS,PROF SER CNSLTNCY-TCHNL CNSLTY,JMC ENGINEERING (UK) LTD,96453,324.10
DEPARTMENT OF ENERGY AND CLIMATE CHANGE,THE COAL AUTHORITY,15/12/2015,OUTSOURCED MANAGEMENT TIPS,TIP MAINTENANCE/IMPROVEMENTS,PROF SER CNSLTNCY-PROP/CNSTRCN,HALCROW GROUP LIMITED,96915,13020.45
